Workbook

Sheet CoverSheet
A1: Ongoing Progress Update and Disbursement Request
A2: Cover Sheet: Instructions • This template is compatible with MS Excel 2013 and later versions. Some drop-downs and formulae may not work with earlier versions and specifically MS Excel 2010. Hence, PRs with earlier MS versions are requested to upgrade to MS Excel 2013 to have the full functionalities of the tool. • Principal Recipients are first required to complete the Cover Sheet with the General Grant Information listed in the boxes below. They can refer to their Grant Face Sheet/Grant Confirmation to fill part of this information. • Principal Recipients are required to fill in the information related to the periods covered by the progress update and disbursement request. • Principal Recipients are required to select the type of submission, i.e. whether they are submitting a Mid-Year (or Quarterly) Progress Update or a Year-End Progress Update/Disbursement Request. This is important as the forms will change depending on the type of submission selected.
A4: GENERAL GRANT INFORMATION
A5: Country: | D5: Georgia | F5: PROGRESS UPDATE
A6: (Disease) Component | D6: HIV/AIDS | F6: Progress Update - Reporting Period: | I6: Cycle: | J6: Semester | K6: Number: | L6: 5
A7: Grant Name/Number: | D7: GEO-H-NCDC | F7: Progress Update - Period Covered: | I7: Beginning Date: | J7: 2016-01-01 | K7: End Date: | L7: 30-06-2016
A8: Principal Recipient: | D8: National Center for Disease Control and Public Health
A9: LFA Name: | D9: UNOPS | F9: DISBURSEMENT REQUEST
A10: Program Start Date: | D10: 2014-04-01 | F10: Disbursement Request - Disbursement Period: | I10: Cycle: | K10: Number: | L10: N/A
A11: Currency: | D11: EUR | F11: Disbursement Request - Period Covered: | I11: Beginning Date: | K11: End Date:
D13: Are you submitting: • A Progress Update (PU); or • A Progress Update/Disbursement Request (PU/DR).

Sheet Data (hidden)
A1: Component | B1: Catalog Module Name | C1: Intervention Name | D1: Old Component | E1: Module - Intervention | I1: Component | L1: Component | M1: Catalog Module Name | O1: Component | P1: Impact/Outcome | S1: Data Sources
A2: Malaria | B2: Specific prevention interventions (SPI) | C2: Intermittent preventive treatment (IPT) - In pregnancy | D2: Malaria | E2: =CONCATENATE(B2," - ",C2) -> Specific prevention interventions (SPI) - Intermittent preventive treatment (IPT) - In pregnancy | I2: Malaria | L2: Malaria | M2: Specific prevention interventions (SPI) | N2: Module1 | O2: Malaria | P2: Impact | Q2: =CONCATENATE(O2,P2) -> MalariaImpact | R2: Type1 | S2: HMIS
A3: Malaria | B3: Specific prevention interventions (SPI) | C3: Intermittent preventive treatment (IPT) - In infancy | D3: Malaria | E3: =CONCATENATE(B3," - ",C3) -> Specific prevention interventions (SPI) - Intermittent preventive treatment (IPT) - In infancy | I3: Tuberculosis | L3: Malaria | M3: Vector control | N3: Module2 | O3: Tuberculosis | P3: Impact | Q3: =CONCATENATE(O3,P3) -> TuberculosisImpact | R3: Type2 | S3: Patient records
A4: Malaria | B4: Specific prevention interventions (SPI) | C4: Seasonal malaria chemoprevention | D4: Malaria | E4: Specific prevention interventions (SPI) - Seasonal malaria chemoprevention | I4: HIV/TB | L4: Malaria | M4: Case management | N4: Module3 | O4: HIV/TB | P4: Impact | Q4: HIV/TBImpact | R4: Type3 | S4: Training records
A5: Malaria | B5: Specific prevention interventions (SPI) | C5: IEC/BCC | D5: Malaria | E5: Specific prevention interventions (SPI) - IEC/BCC | I5: HIV/AIDS | L5: Tuberculosis | M5: TB care and prevention | N5: Module4 | O5: HIV/AIDS | P5: Impact | Q5: HIV/AIDSImpact | R5: Type4 | S5: MICS (Multiple Indicator Cluster Survey)
A6: Malaria | B6: Vector control | C6: Long-lasting insecticidal nets (LLIN) - Mass campaign | D6: Malaria | E6: Vector control - Long-lasting insecticidal nets (LLIN) - Mass campaign | I6: Health Systems Strengthening | L6: Tuberculosis | M6: MDR-TB | N6: Module5 | O6: Health Systems Strengthening | P6: Impact | Q6: Health Systems StrengtheningImpact | R6: Type5 | S6: DHS/DHS+ (Demographic and Health Survey)
A7: Malaria | B7: Vector control | C7: Long-lasting insecticidal nets (LLIN) - Continuous distribution | D7: Malaria | E7: Vector control - Long-lasting insecticidal nets (LLIN) - Continuous distribution | L7: HIV/TB | M7: TB care and prevention | N7: Module6 | O7: Malaria | P7: Outcome | Q7: MalariaOutcome | R7: Type6 | S7: AIS (AIDS Indicator Survey)
A8: Malaria | B8: Vector control | C8: Indoor residual spraying (IRS) | D8: Malaria | E8: Vector control - Indoor residual spraying (IRS) | L8: HIV/TB | M8: MDR-TB | N8: Module7 | O8: Tuberculosis | P8: Outcome | Q8: TuberculosisOutcome | R8: Type7 | S8: BSS (Behavioral Surveillance Survey)
A9: Malaria | B9: Vector control | C9: Other vector vontrol measures | D9: Malaria | E9: Vector control - Other vector vontrol measures | L9: HIV/TB | M9: Prevention programs for general population | N9: Module8 | O9: HIV/TB | P9: Outcome | Q9: HIV/TBOutcome | R9: Type8 | S9: Health Facility survey
A10: Malaria | B10: Vector control | C10: Entomological monitoring | D10: Malaria | E10: Vector control - Entomological monitoring | L10: HIV/TB | M10: Prevention programs for MSM and TGs | N10: Module9 | O10: HIV/AIDS | P10: Outcome | Q10: HIV/AIDSOutcome | R10: Type9 | S10: SAMS (Service Availability Mapping Survey)
A11: Malaria | B11: Case management | C11: Facility-based treatment | D11: Malaria | E11: Case management - Facility-based treatment | L11: HIV/TB | M11: Prevention programs for people who inject drugs (PWID) and their partners | N11: Module10 | O11: Health Systems Strengthening | P11: Outcome | Q11: Health Systems StrengtheningOutcome | R11: Type10 | S11: Households survey
A12: Malaria | B12: Case management | C12: Epidemic preparedness and response | D12: Malaria | E12: Case management - Epidemic preparedness and response | L12: HIV/TB | M12: Prevention programs for other vulnerable populations (please specify) | N12: Module11 | S12: Specific surveys and research (specify)
A13: Malaria | B13: Case management | C13: Integrated community case management (ICCM) | D13: Malaria | E13: Case management - Integrated community case management (ICCM) | L13: HIV/TB | M13: Prevention programs for adolescents and youth, in and out of school | N13: Module12 | S13: Reports (specify)
A14: Malaria | B14: Case management | C14: Active case detection and investigation (elimination phase) | D14: Malaria | E14: Case management - Active case detection and investigation (elimination phase) | L14: HIV/TB | M14: Prevention programs for sex workers and their clients | N14: Module13 | S14: Vital and disease-specific registry
A15: Malaria | B15: Case management | C15: Therapeutic efficacy surveillance | D15: Malaria | E15: Case management - Therapeutic efficacy surveillance | L15: HIV/TB | M15: PMTCT | N15: Module14 | S15: Operational Research
A16: Malaria | B16: Case management | C16: Severe malaria | D16: Malaria | E16: Case management - Severe malaria | L16: HIV/TB | M16: Treatment, care and support | N16: Module15 | S16: Health Provider survey
A17: Malaria | B17: Case management | C17: Private sector co-payment mechanism | D17: Malaria | E17: Case management - Private sector co-payment mechanism | L17: HIV/AIDS | M17: Prevention programs for general population | N17: Module16 | S17: National Health Account
A18: Malaria | B18: Case management | C18: Private sector case management (other) | D18: Malaria | E18: Case management - Private sector case management (other) | L18: HIV/AIDS | M18: Prevention programs for MSM and TGs | N18: Module17 | S18: Administrative records
A19: Malaria | B19: Case management | C19: Ensuring drug quality | D19: Malaria | E19: Case management - Ensuring drug quality | L19: HIV/AIDS | M19: Prevention programs for people who inject drugs (PWID) and their partners | N19: Module18 | S19: R&R TB system, quarterly reports
A20: Tuberculosis | B20: TB care and prevention | C20: Case detection and diagnosis | D20: Tuberculosis; HIV/TB | E20: TB care and prevention - Case detection and diagnosis | L20: HIV/AIDS | M20: Prevention programs for other vulnerable populations (please specify) | N20: Module19 | S20: R&R TB system, yearly management report
A21: Tuberculosis | B21: TB care and prevention | C21: Treatment | D21: Tuberculosis; HIV/TB | E21: TB care and prevention - Treatment | L21: HIV/AIDS | M21: Prevention programs for adolescents and youth, in and out of school | N21: Module20 | S21: TB prevalence survey
A22: Tuberculosis | B22: TB care and prevention | C22: Prevention | D22: Tuberculosis; HIV/TB | E22: TB care and prevention - Prevention | L22: HIV/AIDS | M22: Prevention programs for sex workers and their clients | N22: Module21 | S22: TB patient register
A23: Tuberculosis | B23: MDR-TB | C23: Case detection and diagnosis: MDR-TB | D23: Tuberculosis; HIV/TB | E23: MDR-TB - Case detection and diagnosis: MDR-TB | L23: HIV/AIDS | M23: PMTCT | N23: Module22 | S23: TB laboratory register
A24: Tuberculosis | B24: MDR-TB | C24: Treatment: MDR-TB | D24: Tuberculosis; HIV/TB | E24: MDR-TB - Treatment: MDR-TB | L24: HIV/AIDS | M24: Treatment, care and support | N24: Module23 | S24: TB treatment card
A25: Tuberculosis | B25: MDR-TB | C25: Prevention for MDR-TB | D25: Tuberculosis; HIV/TB | E25: MDR-TB - Prevention for MDR-TB | L25: HIV/AIDS | M25: TB/HIV | N25: Module24 | S25: Specify- Reports, Surveys, Questionnaires etc.
A26: HIV/TB | B26: TB care and prevention | C26: Case detection and diagnosis | D26: Tuberculosis; HIV/TB | E26: TB care and prevention - Case detection and diagnosis | L26: Tuberculosis | M26: TB/HIV | N26: Module25 | S26: MIS (Malaria Indicator Survey)
A27: HIV/TB | B27: TB care and prevention | C27: Treatment | D27: Tuberculosis; HIV/TB | E27: TB care and prevention - Treatment | L27: HIV/TB | M27: TB/HIV | N27: Module26 | S27: Situation Analysis
A28: HIV/TB | B28: TB care and prevention | C28: Prevention | D28: Tuberculosis; HIV/TB | E28: TB care and prevention - Prevention | L28: HIV/AIDS | M28: Removing legal barriers to access | N28: Module27 | S28: Key informant survey
A29: HIV/TB | B29: MDR-TB | C29: Case detection and diagnosis: MDR-TB | D29: Tuberculosis; HIV/TB | E29: MDR-TB - Case detection and diagnosis: MDR-TB | L29: HIV/AIDS | M29: HSS - Service delivery | N29: Module28 | S29: Surveillance systems
A30: HIV/TB | B30: MDR-TB | C30: Treatment: MDR-TB | D30: Tuberculosis; HIV/TB | E30: MDR-TB - Treatment: MDR-TB | L30: HIV/AIDS | M30: HSS - Health and community workforce | N30: Module29 | S30: Modelled
A31: HIV/TB | B31: MDR-TB | C31: Prevention for MDR-TB | D31: Tuberculosis; HIV/TB | E31: MDR-TB - Prevention for MDR-TB | L31: HIV/AIDS | M31: HSS - Health information systems and M&E | N31: Module30 | S31: Other survey, specify
A32: HIV/TB | B32: Prevention programs for general population | C32: RMNCH linkages and gender-based violence (GBV) | D32: HIV/AIDS; HIV/TB | E32: Prevention programs for general population - RMNCH linkages and gender-based violence (GBV) | L32: HIV/AIDS | M32: Program management | N32: Module31 | S32: IBBS
A33: HIV/TB | B33: Prevention programs for general population | C33: Other interventions for general population - Please specify | D33: HIV/AIDS; HIV/TB | E33: Prevention programs for general population - Other interventions for general population - Please specify | L33: HIV/AIDS | M33: HSS - Procurement supply chain management (PSCM) | N33: Module32
A34: HIV/TB | B34: Prevention programs for MSM and TGs | C34: Behavioral change as part of programs for MSM and TGs | D34: HIV/AIDS; HIV/TB | E34: Prevention programs for MSM and TGs - Behavioral change as part of programs for MSM and TGs | L34: HIV/AIDS | M34: HSS - Policy and governance | N34: Module33
A35: HIV/TB | B35: Prevention programs for MSM and TGs | C35: Condoms as part of programs for MSM and TGs | D35: HIV/AIDS; HIV/TB | E35: Prevention programs for MSM and TGs - Condoms as part of programs for MSM and TGs | L35: HIV/AIDS | M35: HSS - Healthcare financing | N35: Module34
A36: HIV/TB | B36: Prevention programs for MSM and TGs | C36: HIV testing and counseling as part of programs for MSM and TGs | D36: HIV/AIDS; HIV/TB | E36: Prevention programs for MSM and TGs - HIV testing and counseling as part of programs for MSM and TGs | L36: HIV/AIDS | M36: HSS - Financial management | N36: Module35
A37: HIV/TB | B37: Prevention programs for MSM and TGs | C37: Diagnosis and treatment of STIs as part of programs for MSM and TGs | D37: HIV/AIDS; HIV/TB | E37: Prevention programs for MSM and TGs - Diagnosis and treatment of STIs as part of programs for MSM and TGs | L37: Tuberculosis | M37: Removing legal barriers to access | N37: Module36
A38: HIV/TB | B38: Prevention programs for people who inject drugs (PWID) and their partners | C38: Needle and Syringe programs as part of programs for PWID and their partners | D38: HIV/AIDS; HIV/TB | E38: Prevention programs for people who inject drugs (PWID) and their partners - Needle and Syringe programs as part of programs for PWID and their partners | L38: Tuberculosis | M38: HSS - Service delivery | N38: Module37
A39: HIV/TB | B39: Prevention programs for people who inject drugs (PWID) and their partners | C39: OST and other drug dependence treatment (PWIDs and their partners) | D39: HIV/AIDS; HIV/TB | E39: Prevention programs for people who inject drugs (PWID) and their partners - OST and other drug dependence treatment (PWIDs and their partners) | L39: Tuberculosis | M39: HSS - Health and community workforce | N39: Module38
A40: HIV/TB | B40: Prevention programs for other vulnerable populations (please specify) | C40: Condoms as part of programs for other vulnerable populations | D40: HIV/AIDS; HIV/TB | E40: Prevention programs for other vulnerable populations (please specify) - Condoms as part of programs for other vulnerable populations | L40: Tuberculosis | M40: HSS - Health information systems and M&E | N40: Module39
A41: HIV/TB | B41: Prevention programs for other vulnerable populations (please specify) | C41: Behavioral change as part of programs for other vulnerable populations | D41: HIV/AIDS; HIV/TB | E41: Prevention programs for other vulnerable populations (please specify) - Behavioral change as part of programs for other vulnerable populations | L41: Tuberculosis | M41: Program management | N41: Module40
A42: HIV/TB | B42: Prevention programs for other vulnerable populations (please specify) | C42: Diagnosis and treatment of STIs (other vulnerable populations) | D42: HIV/AIDS; HIV/TB | E42: Prevention programs for other vulnerable populations (please specify) - Diagnosis and treatment of STIs (other vulnerable populations) | L42: Tuberculosis | M42: HSS - Procurement supply chain management (PSCM) | N42: Module41
A43: HIV/TB | B43: Prevention programs for other vulnerable populations (please specify) | C43: Other interventions for other vulnerable populations - Please specify | D43: HIV/AIDS; HIV/TB | E43: Prevention programs for other vulnerable populations (please specify) - Other interventions for other vulnerable populations - Please specify | L43: Tuberculosis | M43: HSS - Policy and governance | N43: Module42
A44: HIV/TB | B44: Prevention programs for adolescents and youth, in and out of school | C44: Behavioral change as part of programs for adolescent and youth | D44: HIV/AIDS; HIV/TB | E44: Prevention programs for adolescents and youth, in and out of school - Behavioral change as part of programs for adolescent and youth | L44: Tuberculosis | M44: HSS - Healthcare financing | N44: Module43
A45: HIV/TB | B45: Prevention programs for adolescents and youth, in and out of school | C45: Condoms part of programs for adolescent and youth | D45: HIV/AIDS; HIV/TB | E45: Prevention programs for adolescents and youth, in and out of school - Condoms part of programs for adolescent and youth | L45: Tuberculosis | M45: HSS - Financial management | N45: Module44
A46: HIV/TB | B46: Prevention programs for general population | C46: Behavioral change as part of programs for general population | D46: HIV/AIDS; HIV/TB | E46: Prevention programs for general population - Behavioral change as part of programs for general population | L46: Malaria | M46: Removing legal barriers to access | N46: Module45
A47: HIV/TB | B47: Prevention programs for general population | C47: Condoms as part of programs for general population | D47: HIV/AIDS; HIV/TB | E47: Prevention programs for general population - Condoms as part of programs for general population | L47: Malaria | M47: HSS - Service delivery | N47: Module46
A48: HIV/TB | B48: Prevention programs for general population | C48: Male circumcision | D48: HIV/AIDS; HIV/TB | E48: Prevention programs for general population - Male circumcision | L48: Malaria | M48: HSS - Health and community workforce | N48: Module47
A49: HIV/TB | B49: Prevention programs for MSM and TGs | C49: Diagnosis and treatment of viral hepatitis as part of programs for MSM and TGs | D49: HIV/AIDS; HIV/TB | E49: Prevention programs for MSM and TGs - Diagnosis and treatment of viral hepatitis as part of programs for MSM and TGs | L49: Malaria | M49: HSS - Health information systems and M&E | N49: Module48
A50: HIV/TB | B50: Prevention programs for MSM and TGs | C50: Other interventions for MSM and TGs - Please specify | D50: HIV/AIDS; HIV/TB | E50: Prevention programs for MSM and TGs - Other interventions for MSM and TGs - Please specify | L50: Malaria | M50: Program management | N50: Module49
A51: HIV/TB | B51: Prevention programs for sex workers and their clients | C51: Behavioral change as part of programs for sex workers and their clients | D51: HIV/AIDS; HIV/TB | E51: Prevention programs for sex workers and their clients - Behavioral change as part of programs for sex workers and their clients | L51: Malaria | M51: HSS - Procurement supply chain management (PSCM) | N51: Module50
A52: HIV/TB | B52: Prevention programs for people who inject drugs (PWID) and their partners | C52: Diagnosis and treatment of viral hepatitis (PWIDs and their partners) | D52: HIV/AIDS; HIV/TB | E52: Prevention programs for people who inject drugs (PWID) and their partners - Diagnosis and treatment of viral hepatitis (PWIDs and their partners) | L52: Malaria | M52: HSS - Policy and governance | N52: Module51
A53: HIV/TB | B53: Prevention programs for people who inject drugs (PWID) and their partners | C53: Other interventions for IDUs and their partners - Please specify | D53: HIV/AIDS; HIV/TB | E53: Prevention programs for people who inject drugs (PWID) and their partners - Other interventions for IDUs and their partners - Please specify | L53: Malaria | M53: HSS - Healthcare financing | N53: Module52
A54: HIV/TB | B54: Prevention programs for other vulnerable populations (please specify) | C54: HIV testing and counseling as part of programs for other vulnerable populations | D54: HIV/AIDS; HIV/TB | E54: Prevention programs for other vulnerable populations (please specify) - HIV testing and counseling as part of programs for other vulnerable populations | L54: Malaria | M54: HSS - Financial management | N54: Module53
A55: HIV/TB | B55: Prevention programs for adolescents and youth, in and out of school | C55: HIV testing and counseling as part of programs for adolescent and youth | D55: HIV/AIDS; HIV/TB | E55: Prevention programs for adolescents and youth, in and out of school - HIV testing and counseling as part of programs for adolescent and youth | L55: Health Systems Strengthening | M55: Removing legal barriers to access | N55: Module54
A56: HIV/TB | B56: Prevention programs for adolescents and youth, in and out of school | C56: RMNCH linkages and GBV as part of programs for adolescent youth | D56: HIV/AIDS; HIV/TB | E56: Prevention programs for adolescents and youth, in and out of school - RMNCH linkages and GBV as part of programs for adolescent youth | L56: Health Systems Strengthening | M56: HSS - Service delivery | N56: Module55
A57: HIV/TB | B57: Prevention programs for adolescents and youth, in and out of school | C57: Young Key Population interventions as part of programs for adolescent and youth | D57: HIV/AIDS; HIV/TB | E57: Prevention programs for adolescents and youth, in and out of school - Young Key Population interventions as part of programs for adolescent and youth | L57: Health Systems Strengthening | M57: HSS - Health and community workforce | N57: Module56
A58: HIV/TB | B58: Prevention programs for adolescents and youth, in and out of school | C58: Other interventions for adolescent and youth | D58: HIV/AIDS; HIV/TB | E58: Prevention programs for adolescents and youth, in and out of school - Other interventions for adolescent and youth | L58: Health Systems Strengthening | M58: HSS - Health information systems and M&E | N58: Module57
A59: HIV/TB | B59: Prevention programs for general population | C59: HIV testing and counseling as part of programs for general population | D59: HIV/AIDS; HIV/TB | E59: Prevention programs for general population - HIV testing and counseling as part of programs for general population | L59: Health Systems Strengthening | M59: Program management | N59: Module58
A60: HIV/TB | B60: Prevention programs for sex workers and their clients | C60: Condoms as part of programs for sex workers and their clients | D60: HIV/AIDS; HIV/TB | E60: Prevention programs for sex workers and their clients - Condoms as part of programs for sex workers and their clients | L60: Health Systems Strengthening | M60: HSS - Procurement supply chain management (PSCM) | N60: Module59
A61: HIV/TB | B61: Prevention programs for sex workers and their clients | C61: HIV testing and counseling as part of programs for sex workers and their clients | D61: HIV/AIDS; HIV/TB | E61: Prevention programs for sex workers and their clients - HIV testing and counseling as part of programs for sex workers and their clients | L61: Health Systems Strengthening | M61: HSS - Policy and governance | N61: Module60
A62: HIV/TB | B62: Prevention programs for sex workers and their clients | C62: Diagnosis and treatment of STIs (sex workers and their clients) | D62: HIV/AIDS; HIV/TB | E62: Prevention programs for sex workers and their clients - Diagnosis and treatment of STIs (sex workers and their clients) | L62: Health Systems Strengthening | M62: HSS - Healthcare financing | N62: Module61
A63: HIV/TB | B63: Prevention programs for sex workers and their clients | C63: Harm reduction as part of programs for sex workers and their clients | D63: HIV/AIDS; HIV/TB | E63: Prevention programs for sex workers and their clients - Harm reduction as part of programs for sex workers and their clients | L63: Health Systems Strengthening | M63: HSS - Financial management | N63: Module62
A64: HIV/TB | B64: PMTCT | C64: Prong 1: Primary prevention of HIV infection among women of childbearing age | D64: HIV/AIDS; HIV/TB | E64: PMTCT - Prong 1: Primary prevention of HIV infection among women of childbearing age | L64: HIV/TB | M64: Removing legal barriers to access | N64: Module63
A65: HIV/TB | B65: PMTCT | C65: Prong 2: Preventing unintended pregnancies among women living with HIV | D65: HIV/AIDS; HIV/TB | E65: PMTCT - Prong 2: Preventing unintended pregnancies among women living with HIV | L65: HIV/TB | M65: HSS - Service delivery | N65: Module64
A66: HIV/TB | B66: PMTCT | C66: Prong 3: Preventing vertical HIV transmission | D66: HIV/AIDS; HIV/TB | E66: PMTCT - Prong 3: Preventing vertical HIV transmission | L66: HIV/TB | M66: HSS - Health and community workforce | N66: Module65
A67: HIV/TB | B67: PMTCT | C67: Prong 4: Treatment, care & support to mothers living with HIV, their children & | D67: HIV/AIDS; HIV/TB | E67: =CONCATENATE(B67," - ",C67) -> PMTCT - Prong 4: Treatment, care & support to mothers living with HIV, their children & | L67: HIV/TB | M67: HSS - Health information systems and M&E | N67: Module66
A68: HIV/TB | B68: PMTCT | C68: Other interventions for PMTCT- Please specify | D68: HIV/AIDS; HIV/TB | E68: PMTCT - Other interventions for PMTCT- Please specify | L68: HIV/TB | M68: Program management | N68: Module67
A69: HIV/TB | B69: Prevention programs for sex workers and their clients | C69: Other interventions for sex workers and their clients - Please specify | D69: HIV/AIDS; HIV/TB | E69: Prevention programs for sex workers and their clients - Other interventions for sex workers and their clients - Please specify | L69: HIV/TB | M69: HSS - Procurement supply chain management (PSCM) | N69: Module68
A70: HIV/TB | B70: Prevention programs for people who inject drugs (PWID) and their partners | C70: Behavioural change as part of programs for PWID and their partners | D70: HIV/AIDS; HIV/TB | E70: Prevention programs for people who inject drugs (PWID) and their partners - Behavioural change as part of programs for PWID and their partners | L70: HIV/TB | M70: HSS - Policy and governance | N70: Module69
A71: HIV/TB | B71: Prevention programs for people who inject drugs (PWID) and their partners | C71: Condoms as part of programs for PWID and their partners | D71: HIV/AIDS; HIV/TB | E71: Prevention programs for people who inject drugs (PWID) and their partners - Condoms as part of programs for PWID and their partners | L71: HIV/TB | M71: HSS - Healthcare financing | N71: Module70
A72: HIV/TB | B72: Treatment, care and support | C72: Pre-ART care | D72: HIV/AIDS; HIV/TB | E72: Treatment, care and support - Pre-ART care | L72: HIV/TB | M72: HSS - Financial management | N72: Module71
A73: HIV/TB | B73: Treatment, care and support | C73: Antiretroviral Therapy (ART) | D73: HIV/AIDS; HIV/TB | E73: Treatment, care and support - Antiretroviral Therapy (ART) | L73: HIV/AIDS | M73: Community systems strengthening | N73: Module72
A74: HIV/TB | B74: Treatment, care and support | C74: Treatment monitoring | D74: HIV/AIDS; HIV/TB | E74: Treatment, care and support - Treatment monitoring | L74: HIV/AIDS | M74: Results based Financing | N74: Module73
A75: HIV/TB | B75: Treatment, care and support | C75: Treatment adherence | D75: HIV/AIDS; HIV/TB | E75: Treatment, care and support - Treatment adherence | L75: Tuberculosis | M75: Community systems strengthening | N75: Module74
A76: HIV/TB | B76: Treatment, care and support | C76: Prevention, diagnosis and treatment of opportunistic infections | D76: HIV/AIDS; HIV/TB | E76: Treatment, care and support - Prevention, diagnosis and treatment of opportunistic infections | L76: Tuberculosis | M76: Results based Financing | N76: Module75
A77: HIV/TB | B77: Prevention programs for people who inject drugs (PWID) and their partners | C77: Diagnosis and treatment of STIs as part of programs for PWID and their partners | D77: HIV/AIDS; HIV/TB | E77: Prevention programs for people who inject drugs (PWID) and their partners - Diagnosis and treatment of STIs as part of programs for PWID and their partners | L77: Malaria | M77: Community systems strengthening | N77: Module76
A78: HIV/TB | B78: Treatment, care and support | C78: Counseling and psycho-social support | D78: HIV/AIDS; HIV/TB | E78: Treatment, care and support - Counseling and psycho-social support | L78: Malaria | M78: Results based Financing | N78: Module77
A79: HIV/TB | B79: Treatment, care and support | C79: Out-patient care | D79: HIV/AIDS; HIV/TB | E79: Treatment, care and support - Out-patient care | L79: HIV/TB | M79: Community systems strengthening | N79: Module78
A80: HIV/TB | B80: Treatment, care and support | C80: In-patient care | D80: HIV/AIDS; HIV/TB | E80: Treatment, care and support - In-patient care | L80: HIV/TB | M80: Results based Financing | N80: Module79
A81: HIV/TB | B81: Treatment, care and support | C81: Other interventions for treatment - Please specify | D81: HIV/AIDS; HIV/TB | E81: Treatment, care and support - Other interventions for treatment - Please specify
A82: HIV/TB | B82: Prevention programs for general population | C82: Diagnosis and treatment of STIs as part of programs for general population | D82: HIV/AIDS; HIV/TB | E82: Prevention programs for general population - Diagnosis and treatment of STIs as part of programs for general population
A83: HIV/TB | B83: Prevention programs for general population | C83: Blood safety | D83: HIV/AIDS; HIV/TB | E83: Prevention programs for general population - Blood safety
A84: HIV/AIDS | B84: Prevention programs for general population | C84: Orphan and vulnerable children (OVC) package | D84: HIV/AIDS; HIV/TB | E84: Prevention programs for general population - Orphan and vulnerable children (OVC) package
A85: HIV/AIDS | B85: Prevention programs for general population | C85: RMNCH linkages and gender-based violence (GBV) | D85: HIV/AIDS; HIV/TB | E85: Prevention programs for general population - RMNCH linkages and gender-based violence (GBV)
A86: HIV/AIDS | B86: Prevention programs for general population | C86: Other interventions for general population - Please specify | D86: HIV/AIDS; HIV/TB | E86: Prevention programs for general population - Other interventions for general population - Please specify
A87: HIV/AIDS | B87: Prevention programs for MSM and TGs | C87: Behavioral change as part of programs for MSM and TGs | D87: HIV/AIDS; HIV/TB | E87: Prevention programs for MSM and TGs - Behavioral change as part of programs for MSM and TGs
A88: HIV/AIDS | B88: Prevention programs for MSM and TGs | C88: Condoms as part of programs for MSM and TGs | D88: HIV/AIDS; HIV/TB | E88: Prevention programs for MSM and TGs - Condoms as part of programs for MSM and TGs
A89: HIV/AIDS | B89: Prevention programs for MSM and TGs | C89: HIV testing and counseling as part of programs for MSM and TGs | D89: HIV/AIDS; HIV/TB | E89: Prevention programs for MSM and TGs - HIV testing and counseling as part of programs for MSM and TGs
A90: HIV/AIDS | B90: Prevention programs for MSM and TGs | C90: Diagnosis and treatment of STIs as part of programs for MSM and TGs | D90: HIV/AIDS; HIV/TB | E90: Prevention programs for MSM and TGs - Diagnosis and treatment of STIs as part of programs for MSM and TGs
A91: HIV/AIDS | B91: Prevention programs for people who inject drugs (PWID) and their partners | C91: Needle and Syringe programs as part of programs for PWID and their partners | D91: HIV/AIDS; HIV/TB | E91: Prevention programs for people who inject drugs (PWID) and their partners - Needle and Syringe programs as part of programs for PWID and their partners
A92: HIV/AIDS | B92: Prevention programs for people who inject drugs (PWID) and their partners | C92: OST and other drug dependence treatment (PWIDs and their partners) | D92: HIV/AIDS; HIV/TB | E92: Prevention programs for people who inject drugs (PWID) and their partners - OST and other drug dependence treatment (PWIDs and their partners)
A93: HIV/AIDS | B93: Prevention programs for other vulnerable populations (please specify) | C93: Condoms as part of programs for other vulnerable populations | D93: HIV/AIDS; HIV/TB | E93: Prevention programs for other vulnerable populations (please specify) - Condoms as part of programs for other vulnerable populations
A94: HIV/AIDS | B94: Prevention programs for other vulnerable populations (please specify) | C94: Behavioral change as part of programs for other vulnerable populations | D94: HIV/AIDS; HIV/TB | E94: Prevention programs for other vulnerable populations (please specify) - Behavioral change as part of programs for other vulnerable populations
A95: HIV/AIDS | B95: Prevention programs for other vulnerable populations (please specify) | C95: Diagnosis and treatment of STIs (other vulnerable populations) | D95: HIV/AIDS; HIV/TB | E95: Prevention programs for other vulnerable populations (please specify) - Diagnosis and treatment of STIs (other vulnerable populations)
A96: HIV/AIDS | B96: Prevention programs for other vulnerable populations (please specify) | C96: Other interventions for other vulnerable populations - Please specify | D96: HIV/AIDS; HIV/TB | E96: Prevention programs for other vulnerable populations (please specify) - Other interventions for other vulnerable populations - Please specify
A97: HIV/AIDS | B97: Prevention programs for adolescents and youth, in and out of school | C97: Behavioral change as part of programs for adolescent and youth | D97: HIV/AIDS; HIV/TB | E97: Prevention programs for adolescents and youth, in and out of school - Behavioral change as part of programs for adolescent and youth
A98: HIV/AIDS | B98: Prevention programs for adolescents and youth, in and out of school | C98: Condoms part of programs for adolescent and youth | D98: HIV/AIDS; HIV/TB | E98: Prevention programs for adolescents and youth, in and out of school - Condoms part of programs for adolescent and youth
A99: HIV/AIDS | B99: Prevention programs for general population | C99: Behavioral change as part of programs for general population | D99: HIV/AIDS; HIV/TB | E99: Prevention programs for general population - Behavioral change as part of programs for general population
A100: HIV/AIDS | B100: Prevention programs for general population | C100: Condoms as part of programs for general population | D100: HIV/AIDS; HIV/TB | E100: Prevention programs for general population - Condoms as part of programs for general population
A101: HIV/AIDS | B101: Prevention programs for general population | C101: Male circumcision | D101: HIV/AIDS; HIV/TB | E101: Prevention programs for general population - Male circumcision
A102: HIV/AIDS | B102: Prevention programs for MSM and TGs | C102: Diagnosis and treatment of viral hepatitis as part of programs for MSM and TGs | D102: HIV/AIDS; HIV/TB | E102: Prevention programs for MSM and TGs - Diagnosis and treatment of viral hepatitis as part of programs for MSM and TGs
A103: HIV/AIDS | B103: Prevention programs for MSM and TGs | C103: Other interventions for MSM and TGs - Please specify | D103: HIV/AIDS; HIV/TB | E103: Prevention programs for MSM and TGs - Other interventions for MSM and TGs - Please specify
A104: HIV/AIDS | B104: Prevention programs for sex workers and their clients | C104: Behavioral change as part of programs for sex workers and their clients | D104: HIV/AIDS; HIV/TB | E104: Prevention programs for sex workers and their clients - Behavioral change as part of programs for sex workers and their clients
A105: HIV/AIDS | B105: Prevention programs for people who inject drugs (PWID) and their partners | C105: Diagnosis and treatment of viral hepatitis (PWIDs and their partners) | D105: HIV/AIDS; HIV/TB | E105: Prevention programs for people who inject drugs (PWID) and their partners - Diagnosis and treatment of viral hepatitis (PWIDs and their partners)
A106: HIV/AIDS | B106: Prevention programs for people who inject drugs (PWID) and their partners | C106: Other interventions for IDUs and their partners - Please specify | D106: HIV/AIDS; HIV/TB | E106: Prevention programs for people who inject drugs (PWID) and their partners - Other interventions for IDUs and their partners - Please specify
A107: HIV/AIDS | B107: Prevention programs for other vulnerable populations (please specify) | C107: HIV testing and counseling as part of programs for other vulnerable populations | D107: HIV/AIDS; HIV/TB | E107: Prevention programs for other vulnerable populations (please specify) - HIV testing and counseling as part of programs for other vulnerable populations
A108: HIV/AIDS | B108: Prevention programs for adolescents and youth, in and out of school | C108: HIV testing and counseling as part of programs for adolescent and youth | D108: HIV/AIDS; HIV/TB | E108: Prevention programs for adolescents and youth, in and out of school - HIV testing and counseling as part of programs for adolescent and youth
A109: HIV/AIDS | B109: Prevention programs for adolescents and youth, in and out of school | C109: RMNCH linkages and GBV as part of programs for adolescent youth | D109: HIV/AIDS; HIV/TB | E109: Prevention programs for adolescents and youth, in and out of school - RMNCH linkages and GBV as part of programs for adolescent youth
A110: HIV/AIDS | B110: Prevention programs for adolescents and youth, in and out of school | C110: Young Key Population interventions as part of programs for adolescent and youth | D110: HIV/AIDS; HIV/TB | E110: Prevention programs for adolescents and youth, in and out of school - Young Key Population interventions as part of programs for adolescent and youth
A111: HIV/AIDS | B111: Prevention programs for adolescents and youth, in and out of school | C111: Other interventions for adolescent and youth | D111: HIV/AIDS; HIV/TB | E111: Prevention programs for adolescents and youth, in and out of school - Other interventions for adolescent and youth
A112: HIV/AIDS | B112: Prevention programs for general population | C112: HIV testing and counseling as part of programs for general population | D112: HIV/AIDS; HIV/TB | E112: Prevention programs for general population - HIV testing and counseling as part of programs for general population
A113: HIV/AIDS | B113: Prevention programs for sex workers and their clients | C113: Condoms as part of programs for sex workers and their clients | D113: HIV/AIDS; HIV/TB | E113: Prevention programs for sex workers and their clients - Condoms as part of programs for sex workers and their clients
A114: HIV/AIDS | B114: Prevention programs for sex workers and their clients | C114: HIV testing and counseling as part of programs for sex workers and their clients | D114: HIV/AIDS; HIV/TB | E114: Prevention programs for sex workers and their clients - HIV testing and counseling as part of programs for sex workers and their clients
A115: HIV/AIDS | B115: Prevention programs for sex workers and their clients | C115: Diagnosis and treatment of STIs (sex workers and their clients) | D115: HIV/AIDS; HIV/TB | E115: Prevention programs for sex workers and their clients - Diagnosis and treatment of STIs (sex workers and their clients)
A116: HIV/AIDS | B116: Prevention programs for sex workers and their clients | C116: Harm reduction as part of programs for sex workers and their clients | D116: HIV/AIDS; HIV/TB | E116: Prevention programs for sex workers and their clients - Harm reduction as part of programs for sex workers and their clients
A117: HIV/AIDS | B117: PMTCT | C117: Prong 1: Primary prevention of HIV infection among women of childbearing age | D117: HIV/AIDS; HIV/TB | E117: PMTCT - Prong 1: Primary prevention of HIV infection among women of childbearing age
A118: HIV/AIDS | B118: PMTCT | C118: Prong 2: Preventing unintended pregnancies among women living with HIV | D118: HIV/AIDS; HIV/TB | E118: PMTCT - Prong 2: Preventing unintended pregnancies among women living with HIV
A119: HIV/AIDS | B119: PMTCT | C119: Prong 3: Preventing vertical HIV transmission | D119: HIV/AIDS; HIV/TB | E119: PMTCT - Prong 3: Preventing vertical HIV transmission
A120: HIV/AIDS | B120: PMTCT | C120: Prong 4: Treatment, care & support to mothers living with HIV, their children & | D120: HIV/AIDS; HIV/TB | E120: PMTCT - Prong 4: Treatment, care & support to mothers living with HIV, their children &
A121: HIV/AIDS | B121: PMTCT | C121: Other interventions for PMTCT- Please specify | D121: HIV/AIDS; HIV/TB | E121: PMTCT - Other interventions for PMTCT- Please specify
A122: HIV/AIDS | B122: Prevention programs for sex workers and their clients | C122: Other interventions for sex workers and their clients - Please specify | D122: HIV/AIDS; HIV/TB | E122: Prevention programs for sex workers and their clients - Other interventions for sex workers and their clients - Please specify
A123: HIV/AIDS | B123: Prevention programs for people who inject drugs (PWID) and their partners | C123: Behavioural change as part of programs for PWID and their partners | D123: HIV/AIDS; HIV/TB | E123: Prevention programs for people who inject drugs (PWID) and their partners - Behavioural change as part of programs for PWID and their partners
A124: HIV/AIDS | B124: Prevention programs for people who inject drugs (PWID) and their partners | C124: Condoms as part of programs for PWID and their partners | D124: HIV/AIDS; HIV/TB | E124: Prevention programs for people who inject drugs (PWID) and their partners - Condoms as part of programs for PWID and their partners
A125: HIV/AIDS | B125: Treatment, care and support | C125: Pre-ART care | D125: HIV/AIDS; HIV/TB | E125: Treatment, care and support - Pre-ART care
A126: HIV/AIDS | B126: Treatment, care and support | C126: Antiretroviral Therapy (ART) | D126: HIV/AIDS; HIV/TB | E126: Treatment, care and support - Antiretroviral Therapy (ART)
A127: HIV/AIDS | B127: Treatment, care and support | C127: Treatment monitoring | D127: HIV/AIDS; HIV/TB | E127: Treatment, care and support - Treatment monitoring
A128: HIV/AIDS | B128: Treatment, care and support | C128: Treatment adherence | D128: HIV/AIDS; HIV/TB | E128: Treatment, care and support - Treatment adherence
A129: HIV/AIDS | B129: Treatment, care and support | C129: Prevention, diagnosis and treatment of opportunistic infections | D129: HIV/AIDS; HIV/TB | E129: Treatment, care and support - Prevention, diagnosis and treatment of opportunistic infections
A130: HIV/AIDS | B130: Prevention programs for people who inject drugs (PWID) and their partners | C130: Diagnosis and treatment of STIs as part of programs for PWID and their partners | D130: HIV/AIDS; HIV/TB | E130: Prevention programs for people who inject drugs (PWID) and their partners - Diagnosis and treatment of STIs as part of programs for PWID and their partners
A131: HIV/AIDS | B131: Treatment, care and support | C131: Counseling and psycho-social support | D131: HIV/AIDS; HIV/TB | E131: =CONCATENATE(B131," - ",C131) -> Treatment, care and support - Counseling and psycho-social support
A132: HIV/AIDS | B132: Treatment, care and support | C132: Out-patient care | D132: HIV/AIDS; HIV/TB | E132: Treatment, care and support - Out-patient care
A133: HIV/AIDS | B133: Treatment, care and support | C133: In-patient care | D133: HIV/AIDS; HIV/TB | E133: Treatment, care and support - In-patient care
A134: HIV/AIDS | B134: Treatment, care and support | C134: Other interventions for treatment - Please specify | D134: HIV/AIDS; HIV/TB | E134: Treatment, care and support - Other interventions for treatment - Please specify
A135: HIV/AIDS | B135: Prevention programs for general population | C135: Diagnosis and treatment of STIs as part of programs for general population | D135: HIV/AIDS; HIV/TB | E135: Prevention programs for general population - Diagnosis and treatment of STIs as part of programs for general population
A136: HIV/AIDS | B136: Prevention programs for general population | C136: Blood safety | D136: HIV/AIDS; HIV/TB | E136: Prevention programs for general population - Blood safety
A137: HIV/AIDS | B137: Prevention programs for general population | C137: Orphan and vulnerable children (OVC) package | D137: HIV/AIDS; HIV/TB | E137: Prevention programs for general population - Orphan and vulnerable children (OVC) package
A138: HIV/AIDS | B138: TB/HIV | C138: TB/HIV collaborative interventions | D138: HIV/AIDS; Tuberculosis; HIV/TB | E138: TB/HIV - TB/HIV collaborative interventions
A139: HIV/AIDS | B139: TB/HIV | C139: Engaging all care providers | D139: HIV/AIDS; Tuberculosis; HIV/TB | E139: TB/HIV - Engaging all care providers
A140: HIV/AIDS | B140: TB/HIV | C140: Community TB care delivery | D140: HIV/AIDS; Tuberculosis; HIV/TB | E140: TB/HIV - Community TB care delivery
A141: HIV/AIDS | B141: TB/HIV | C141: Key Affected Populations | D141: HIV/AIDS; Tuberculosis; HIV/TB | E141: TB/HIV - Key Affected Populations
A142: HIV/AIDS | B142: TB/HIV | C142: Collaborative activities with other programs and sectors | D142: HIV/AIDS; Tuberculosis; HIV/TB | E142: TB/HIV - Collaborative activities with other programs and sectors
A143: Tuberculosis | B143: TB/HIV | C143: TB/HIV collaborative interventions | D143: HIV/AIDS; Tuberculosis; HIV/TB | E143: TB/HIV - TB/HIV collaborative interventions
A144: Tuberculosis | B144: TB/HIV | C144: Engaging all care providers | D144: HIV/AIDS; Tuberculosis; HIV/TB | E144: TB/HIV - Engaging all care providers
A145: Tuberculosis | B145: TB/HIV | C145: Community TB care delivery | D145: HIV/AIDS; Tuberculosis; HIV/TB | E145: TB/HIV - Community TB care delivery
A146: Tuberculosis | B146: TB/HIV | C146: Key Affected Populations | D146: HIV/AIDS; Tuberculosis; HIV/TB | E146: TB/HIV - Key Affected Populations
A147: Tuberculosis | B147: TB/HIV | C147: Collaborative activities with other programs and sectors | D147: HIV/AIDS; Tuberculosis; HIV/TB | E147: TB/HIV - Collaborative activities with other programs and sectors
A148: HIV/TB | B148: TB/HIV | C148: TB/HIV collaborative interventions | D148: HIV/AIDS; Tuberculosis; HIV/TB | E148: TB/HIV - TB/HIV collaborative interventions
A149: HIV/TB | B149: TB/HIV | C149: Engaging all care providers | D149: HIV/AIDS; Tuberculosis; HIV/TB | E149: TB/HIV - Engaging all care providers
A150: HIV/TB | B150: TB/HIV | C150: Community TB care delivery | D150: HIV/AIDS; Tuberculosis; HIV/TB | E150: TB/HIV - Community TB care delivery
A151: HIV/TB | B151: TB/HIV | C151: Key Affected Populations | D151: HIV/AIDS; Tuberculosis; HIV/TB | E151: TB/HIV - Key Affected Populations
A152: HIV/TB | B152: TB/HIV | C152: Collaborative activities with other programs and sectors | D152: HIV/AIDS; Tuberculosis; HIV/TB | E152: TB/HIV - Collaborative activities with other programs and sectors
A153: HIV/AIDS | B153: Removing legal barriers to access | C153: Training on rights for officials, health workers and police | D153: HIV/AIDS; Tuberculosis; Malaria; Health Systems Strengthening; HIV/TB | E153: Removing legal barriers to access - Training on rights for officials, health workers and police
A154: HIV/AIDS | B154: HSS - Service delivery | C154: Service organization and facility management | D154: HIV/AIDS; Tuberculosis; Malaria; Health Systems Strengthening; HIV/TB | E154: HSS - Service delivery - Service organization and facility management
A155: HIV/AIDS | B155: HSS - Service delivery | C155: Improving laboratory systems | D155: HIV/AIDS; Tuberculosis; Malaria; Health Systems Strengthening; HIV/TB | E155: HSS - Service delivery - Improving laboratory systems
A156: HIV/AIDS | B156: HSS - Service delivery | C156: Improving service delivery infrastructure | D156: HIV/AIDS; Tuberculosis; Malaria; Health Systems Strengthening; HIV/TB | E156: HSS - Service delivery - Improving service delivery infrastructure
A157: HIV/AIDS | B157: HSS - Service delivery | C157: Other | D157: HIV/AIDS; Tuberculosis; Malaria; Health Systems Strengthening; HIV/TB | E157: HSS - Service delivery - Other
A158: HIV/AIDS | B158: HSS - Health and community workforce | C158: Health and community workers capacity building | D158: HIV/AIDS; Tuberculosis; Malaria; Health Systems Strengthening; HIV/TB | E158: HSS - Health and community workforce - Health and community workers capacity building
A159: HIV/AIDS | B159: HSS - Health information systems and M&E | C159: Administrative and finance data sources | D159: HIV/AIDS; Tuberculosis; Malaria; Health Systems Strengthening; HIV/TB | E159: HSS - Health information systems and M&E - Administrative and finance data sources
A160: HIV/AIDS | B160: HSS - Health information systems and M&E | C160: Vital registration system | D160: HIV/AIDS; Tuberculosis; Malaria; Health Systems Strengthening; HIV/TB | E160: HSS - Health information systems and M&E - Vital registration system
A161: HIV/AIDS | B161: HSS - Health information systems and M&E | C161: Routine reporting | D161: HIV/AIDS; Tuberculosis; Malaria; Health Systems Strengthening; HIV/TB | E161: HSS - Health information systems and M&E - Routine reporting
A162: HIV/AIDS | B162: HSS - Health information systems and M&E | C162: Analysis, review and transparency | D162: HIV/AIDS; Tuberculosis; Malaria; Health Systems Strengthening; HIV/TB | E162: HSS - Health information systems and M&E - Analysis, review and transparency
A163: HIV/AIDS | B163: HSS - Health information systems and M&E | C163: Surveys | D163: HIV/AIDS; Tuberculosis; Malaria; Health Systems Strengthening; HIV/TB | E163: HSS - Health information systems and M&E - Surveys
A164: HIV/AIDS | B164: Program management | C164: Policy, planning, coordination and management | D164: HIV/AIDS; Tuberculosis; Malaria; Health Systems Strengthening; HIV/TB | E164: Program management - Policy, planning, coordination and management
A165: HIV/AIDS | B165: Program management | C165: Grant management | D165: HIV/AIDS; Tuberculosis; Malaria; Health Systems Strengthening; HIV/TB | E165: Program management - Grant management
A166: HIV/AIDS | B166: HSS - Health and community workforce | C166: Scaling up health and community workers | D166: HIV/AIDS; Tuberculosis; Malaria; Health Systems Strengthening; HIV/TB | E166: HSS - Health and community workforce - Scaling up health and community workers
A167: HIV/AIDS | B167: HSS - Health and community workforce | C167: Retention and distribution of health and community workers | D167: HIV/AIDS; Tuberculosis; Malaria; Health Systems Strengthening; HIV/TB | E167: HSS - Health and community workforce - Retention and distribution of health and community workers
A168: HIV/AIDS | B168: HSS - Procurement supply chain management (PSCM) | C168: Operationalization of procurement and supply chain management system | D168: HIV/AIDS; Tuberculosis; Malaria; Health Systems Strengthening; HIV/TB | E168: HSS - Procurement supply chain management (PSCM) - Operationalization of procurement and supply chain management system
A169: HIV/AIDS | B169: HSS - Procurement supply chain management (PSCM) | C169: PSM infrastructure and development of tools | D169: HIV/AIDS; Tuberculosis; Malaria; Health Systems Strengthening; HIV/TB | E169: HSS - Procurement supply chain management (PSCM) - PSM infrastructure and development of tools
A170: HIV/AIDS | B170: HSS - Policy and governance | C170: Development and implementation of health legislation, strategies and policies | D170: HIV/AIDS; Tuberculosis; Malaria; Health Systems Strengthening; HIV/TB | E170: HSS - Policy and governance - Development and implementation of health legislation, strategies and policies
A171: HIV/AIDS | B171: Program management | C171: Supporting procurement and supply management | D171: HIV/AIDS; Tuberculosis; Malaria; Health Systems Strengthening; HIV/TB | E171: Program management - Supporting procurement and supply management
A172: HIV/AIDS | B172: HSS - Policy and governance | C172: Monitoring and reporting implementation of laws and policies | D172: HIV/AIDS; Tuberculosis; Malaria; Health Systems Strengthening; HIV/TB | E172: HSS - Policy and governance - Monitoring and reporting implementation of laws and policies
A173: HIV/AIDS | B173: HSS - Healthcare financing | C173: Financial sustainability | D173: HIV/AIDS; Tuberculosis; Malaria; Health Systems Strengthening; HIV/TB | E173: HSS - Healthcare financing - Financial sustainability
A174: HIV/AIDS | B174: HSS - Healthcare financing | C174: Equity of healthcare financing | D174: HIV/AIDS; Tuberculosis; Malaria; Health Systems Strengthening; HIV/TB | E174: HSS - Healthcare financing - Equity of healthcare financing
A175: HIV/AIDS | B175: HSS - Financial management | C175: Performance,transparency&accountability of financial management system in health | D175: HIV/AIDS; Tuberculosis; Malaria; Health Systems Strengthening; HIV/TB | E175: HSS - Financial management - Performance,transparency&accountability of financial management system in health
A176: HIV/AIDS | B176: Removing legal barriers to access | C176: Legal and policy environment assessment and law reform | D176: HIV/AIDS; Tuberculosis; Malaria; Health Systems Strengthening; HIV/TB | E176: Removing legal barriers to access - Legal and policy environment assessment and law reform
A177: HIV/AIDS | B177: Removing legal barriers to access | C177: Legal aid services and legal literacy | D177: HIV/AIDS; Tuberculosis; Malaria; Health Systems Strengthening; HIV/TB | E177: Removing legal barriers to access - Legal aid services and legal literacy
A178: HIV/AIDS | B178: Removing legal barriers to access | C178: Community-based monitoring of legal rights | D178: HIV/AIDS; Tuberculosis; Malaria; Health Systems Strengthening; HIV/TB | E178: Removing legal barriers to access - Community-based monitoring of legal rights
A179: HIV/AIDS | B179: Removing legal barriers to access | C179: Policy advocacy on legal rights | D179: HIV/AIDS; Tuberculosis; Malaria; Health Systems Strengthening; HIV/TB | E179: Removing legal barriers to access - Policy advocacy on legal rights
A180: Tuberculosis | B180: Removing legal barriers to access | C180: Training on rights for officials, health workers and police | D180: HIV/AIDS; Tuberculosis; Malaria; Health Systems Strengthening; HIV/TB | E180: Removing legal barriers to access - Training on rights for officials, health workers and police
A181: Tuberculosis | B181: HSS - Service delivery | C181: Service organization and facility management | D181: HIV/AIDS; Tuberculosis; Malaria; Health Systems Strengthening; HIV/TB | E181: HSS - Service delivery - Service organization and facility management
A182: Tuberculosis | B182: HSS - Service delivery | C182: Improving laboratory systems | D182: HIV/AIDS; Tuberculosis; Malaria; Health Systems Strengthening; HIV/TB | E182: HSS - Service delivery - Improving laboratory systems
A183: Tuberculosis | B183: HSS - Service delivery | C183: Improving service delivery infrastructure | D183: HIV/AIDS; Tuberculosis; Malaria; Health Systems Strengthening; HIV/TB | E183: HSS - Service delivery - Improving service delivery infrastructure
A184: Tuberculosis | B184: HSS - Service delivery | C184: Other | D184: HIV/AIDS; Tuberculosis; Malaria; Health Systems Strengthening; HIV/TB | E184: HSS - Service delivery - Other
A185: Tuberculosis | B185: HSS - Health and community workforce | C185: Health and community workers capacity building | D185: HIV/AIDS; Tuberculosis; Malaria; Health Systems Strengthening; HIV/TB | E185: HSS - Health and community workforce - Health and community workers capacity building
A186: Tuberculosis | B186: HSS - Health information systems and M&E | C186: Administrative and finance data sources | D186: HIV/AIDS; Tuberculosis; Malaria; Health Systems Strengthening; HIV/TB | E186: HSS - Health information systems and M&E - Administrative and finance data sources
A187: Tuberculosis | B187: HSS - Health information systems and M&E | C187: Vital registration system | D187: HIV/AIDS; Tuberculosis; Malaria; Health Systems Strengthening; HIV/TB | E187: HSS - Health information systems and M&E - Vital registration system
A188: Tuberculosis | B188: HSS - Health information systems and M&E | C188: Routine reporting | D188: HIV/AIDS; Tuberculosis; Malaria; Health Systems Strengthening; HIV/TB | E188: HSS - Health information systems and M&E - Routine reporting
A189: Tuberculosis | B189: HSS - Health information systems and M&E | C189: Analysis, review and transparency | D189: HIV/AIDS; Tuberculosis; Malaria; Health Systems Strengthening; HIV/TB | E189: HSS - Health information systems and M&E - Analysis, review and transparency
A190: Tuberculosis | B190: HSS - Health information systems and M&E | C190: Surveys | D190: HIV/AIDS; Tuberculosis; Malaria; Health Systems Strengthening; HIV/TB | E190: HSS - Health information systems and M&E - Surveys
A191: Tuberculosis | B191: Program management | C191: Policy, planning, coordination and management | D191: HIV/AIDS; Tuberculosis; Malaria; Health Systems Strengthening; HIV/TB | E191: Program management - Policy, planning, coordination and management
A192: Tuberculosis | B192: Program management | C192: Grant management | D192: HIV/AIDS; Tuberculosis; Malaria; Health Systems Strengthening; HIV/TB | E192: Program management - Grant management
A193: Tuberculosis | B193: HSS - Health and community workforce | C193: Scaling up health and community workers | D193: HIV/AIDS; Tuberculosis; Malaria; Health Systems Strengthening; HIV/TB | E193: HSS - Health and community workforce - Scaling up health and community workers
A194: Tuberculosis | B194: HSS - Health and community workforce | C194: Retention and distribution of health and community workers | D194: HIV/AIDS; Tuberculosis; Malaria; Health Systems Strengthening; HIV/TB | E194: HSS - Health and community workforce - Retention and distribution of health and community workers
A195: Tuberculosis | B195: HSS - Procurement supply chain management (PSCM) | C195: Operationalization of procurement and supply chain management system | D195: HIV/AIDS; Tuberculosis; Malaria; Health Systems Strengthening; HIV/TB | E195: =CONCATENATE(B195," - ",C195) -> HSS - Procurement supply chain management (PSCM) - Operationalization of procurement and supply chain management system
A196: Tuberculosis | B196: HSS - Procurement supply chain management (PSCM) | C196: PSM infrastructure and development of tools | D196: HIV/AIDS; Tuberculosis; Malaria; Health Systems Strengthening; HIV/TB | E196: HSS - Procurement supply chain management (PSCM) - PSM infrastructure and development of tools
A197: Tuberculosis | B197: HSS - Policy and governance | C197: Development and implementation of health legislation, strategies and policies | D197: HIV/AIDS; Tuberculosis; Malaria; Health Systems Strengthening; HIV/TB | E197: HSS - Policy and governance - Development and implementation of health legislation, strategies and policies
A198: Tuberculosis | B198: Program management | C198: Supporting procurement and supply management | D198: HIV/AIDS; Tuberculosis; Malaria; Health Systems Strengthening; HIV/TB | E198: Program management - Supporting procurement and supply management
A199: Tuberculosis | B199: HSS - Policy and governance | C199: Monitoring and reporting implementation of laws and policies | D199: HIV/AIDS; Tuberculosis; Malaria; Health Systems Strengthening; HIV/TB | E199: HSS - Policy and governance - Monitoring and reporting implementation of laws and policies
A200: Tuberculosis | B200: HSS - Healthcare financing | C200: Financial sustainability | D200: HIV/AIDS; Tuberculosis; Malaria; Health Systems Strengthening; HIV/TB | E200: HSS - Healthcare financing - Financial sustainability
... 107 more rows

Sheet Impact Outcome Indicators_1A
A1: On-going Progress Update and Disbursement Request
Z2: AIS (AIDS Indicator Survey) | AF2: AIS (AIDS Indicator Survey)
Z3: BSS (Behavioral and Surveillance Survey) | AF3: BSS (Behavioral and Surveillance Survey)
A4: GENERAL GRANT INFORMATION | Z4: Census | AF4: Census
A5: Country: | Z5: Clinical cohort follow-up studies | AF5: Clinical cohort follow-up studies
A6: Disease: | C6: Select | Z6: DHS/DHS+ (Demographic and Health Survey) | AF6: DHS/DHS+ (Demographic and Health Survey)
A7: Grant Number: | Z7: MICS (Multiple Indicator Cluster Survey) | AF7: MICS (Multiple Indicator Cluster Survey)
A8: Principal Recipient: | Z8: MIS (Malaria Indicator Survey) | AF8: MIS (Malaria Indicator Survey)
A9: Program Start Date: | Z9: WHO Global report/estimates | AF9: WHO Global report/estimates
A10: Currency: | C10: Select | Z10: Other (type as appropriate) | AF10: Other (type as appropriate)
A11: PROGRESS UPDATE
A12: Progress Update - Reporting Period: | C12: Cycle: | D12: Select | E12: Number:
A13: Progress Update - Period Covered: | C13: Beginning Date: | E13: End Date:
A14: Progress Update - Number:
A15: DISBURSEMENT REQUEST
A16: Disbursement Request - Disbursement Period: | C16: Cycle: | D16: Select | E16: Number:
A17: Disbursement Request - Period Covered: | C17: Beginning Date: | E17: End Date:
A18: Disbursement Request - Number:
A22: Section 1: Programmatic Progress
A23: Note: The table below should contain those Impact/Outcome indicators that are (1) due for reporting during the current year of a grant and (2) those reporting on which is overdue from the previous periods.
A24: A. Impact / Outcome Indicators | Q24: For LFA Use Only | AC24: For the Global Fund Use Only
A25: Impact / Outcome | B25: Indicator Description | G25: Baseline (if applicable) | I25: Year of Target | J25: Intended Target | K25: Report Due Date | L25: Actual Result | M25: Data Source of Results | N25: Comments on results on Impact/Outcome indicators and data sources, and any other comments | Q25: Baseline (if applicable) | S25: Year of Target | T25: Intended Target | U25: Report Due Date | V25: Verification Method | W25: Verified Result | X25: LFA comments on (a) verified result, (b) source of information used by the PR to report results, including the status of completion of surveys and other methods to measure Impact/Outcome, as applicable, | AC25: Validated Result | AD25: Country Team comments on validated results
G26: Value | H26: Year | Q26: Value | R26: Year
A27: Impact | B27: Percentage of men who have sex with men who are living with HIV | G27: 0.13 | H27: 2012 | I27: 2015 | J27: 0.15 | K27: 2016-02-15 | L27: 0.25 | M27: BSS (Behavioral and Surveillance Survey) | Q27: - | R27: - | S27: - | T27: - | U27: - | V27: Select | AC27: =W27 -> 0
A28: Impact | B28: Percentage of people who inject drugs who are living with HIV | G28: 0.03 | H28: 2012 | I28: 2014 | J28: 0.03 | K28: 2015-02-15 | L28: 0.0202 | M28: BSS (Behavioral and Surveillance Survey) | Q28: - | R28: - | S28: - | T28: - | U28: - | V28: Select | AC28: =W28 -> 0
A29: Impact | B29: Percentage of sex workers who are living with HIV | G29: 0.011 | H29: 2012 | I29: 2014 | J29: 0.023 | K29: 2015-02-15 | L29: 0.007 | M29: BSS (Behavioral and Surveillance Survey) | N29: The prevalcne of HIV in Tbilisi was 0.6% and 0.8% in Batumi, total number of study participants tested on HIV was 277 | Q29: - | R29: - | S29: - | T29: - | U29: - | V29: Select | AC29: 0
A30: Impact | B30: AIDS related mortality per 100,000 population | G30: 2.4 | H30: 2012 | I30: 2014 | J30: 2.2 | K30: 2016-02-15 | L30: 1.9 | M30: HMIS | N30: Preliminary data of the last census is 3.7 million population, the adjustment will be made when the census data will be officially validated by the State. | Q30: - | R30: - | S30: - | T30: - | U30: - | V30: Select | AC30: 0
A31: Outcome | B31: Percentage of adults and children with HIV known to be on treatment 12 months after initiation of antiretroviral therapy. | G31: 0.85 | H31: 2013 | I31: HMIS | J31: 0.87 | K31: 2016-02-15 | L31: 0.842 | M31: HMIS | N31: Nominator+507; denominator+602 | Q31: - | R31: - | S31: - | T31: - | U31: - | V31: Select | AC31: 0
A32: Outcome | B32: Percentage of men reporting the use of a condom the last time they had anal sex with a male partner | G32: 0.673 | H32: 2012 | I32: BSS (Behavioral Surveillance Survey) | J32: 0.75 | K32: 2016-02-15 | L32: 0.632 | M32: BSS (Behavioral and Surveillance Survey) | Q32: - | R32: - | S32: - | T32: - | U32: - | V32: Select | AC32: 0
A33: Outcome | B33: Percentage of sex workers reporting the use of a condom with their most recent client | G33: 0.911 | H33: 2012 | I33: BSS (Behavioral Surveillance Survey) | J33: 0.92 | K33: 2015-02-15 | L33: 0.9 | M33: BSS (Behavioral and Surveillance Survey) | N33: The value of the indicator was 94.4% in Tbilisi, but it was only 82.7% in Batumi (total number of respondents was 224 | Q33: - | R33: - | S33: - | T33: - | U33: - | V33: Select | AC33: 0
A34: Outcome | B34: Percentage of people who inject drugs reporting the use of sterile injecting equipment the last time they injected | G34: 0.835 | H34: 2012 | I34: BSS (Behavioral Surveillance Survey) | J34: 0.84 | K34: 2015-02-15 | L34: 0.743 | M34: BSS (Behavioral and Surveillance Survey) | Q34: - | R34: - | S34: - | T34: - | U34: - | V34: Select | AC34: 0
A35: Select | G35: - | H35: - | I35: - | J35: - | K35: - | L35: - | M35: Select | Q35: - | R35: - | S35: - | T35: - | U35: - | V35: Select | AC35: 0
A36: Select | G36: - | H36: - | I36: - | J36: - | K36: - | L36: - | M36: Select | Q36: - | R36: - | S36: - | T36: - | U36: - | V36: Select | AC36: 0
A37: Select | G37: - | H37: - | I37: - | J37: - | K37: - | L37: - | M37: Select | Q37: - | R37: - | S37: - | T37: - | U37: - | V37: Select | AC37: 0
A38: Select | G38: - | H38: - | I38: - | J38: - | K38: - | L38: - | M38: Select | Q38: - | R38: - | S38: - | T38: - | U38: - | V38: Select | AC38: 0
A39: Select | G39: - | H39: - | I39: - | J39: - | K39: - | L39: - | M39: Select | Q39: - | R39: - | S39: - | T39: - | U39: - | V39: Select | AC39: 0
A40: Select | G40: - | H40: - | I40: - | J40: - | K40: - | L40: - | M40: Select | Q40: - | R40: - | S40: - | T40: - | U40: - | V40: Select | AC40: 0
A41: Select | G41: - | H41: - | I41: - | J41: - | K41: - | L41: - | M41: Select | Q41: - | R41: - | S41: - | T41: - | U41: - | V41: Select | AC41: 0
A42: Select | G42: - | H42: - | I42: - | J42: - | K42: - | L42: - | M42: Select | Q42: - | R42: - | S42: - | T42: - | U42: - | V42: Select | AC42: =W42 -> 0
A43: Select | G43: - | H43: - | I43: - | J43: - | K43: - | L43: - | M43: Select | Q43: - | R43: - | S43: - | T43: - | U43: - | V43: Select | AC43: =W43 -> 0
A44: Select | G44: - | H44: - | I44: - | J44: - | K44: - | L44: - | M44: Select | Q44: - | R44: - | S44: - | T44: - | U44: - | V44: Select | AC44: 0
A45: Select | G45: - | H45: - | I45: - | J45: - | K45: - | L45: - | M45: Select | Q45: - | R45: - | S45: - | T45: - | U45: - | V45: Select | AC45: 0
A46: Select | G46: - | H46: - | I46: - | J46: - | K46: - | L46: - | M46: Select | Q46: - | R46: - | S46: - | T46: - | U46: - | V46: Select | AC46: 0
A47: Select | G47: - | H47: - | I47: - | J47: - | K47: - | L47: - | M47: Select | Q47: - | R47: - | S47: - | T47: - | U47: - | V47: Select | AC47: 0
A48: Select | G48: - | H48: - | I48: - | J48: - | K48: - | L48: - | M48: Select | Q48: - | R48: - | S48: - | T48: - | U48: - | V48: Select | AC48: 0
A49: Select | G49: - | H49: - | I49: - | J49: - | K49: - | L49: - | M49: Select | Q49: - | R49: - | S49: - | T49: - | U49: - | V49: Select | AC49: 0
A50: Select | G50: - | H50: - | I50: - | J50: - | K50: - | L50: - | M50: Select | Q50: - | R50: - | S50: - | T50: - | U50: - | V50: Select | AC50: 0
A51: Select | G51: - | H51: - | I51: - | J51: - | K51: - | L51: - | M51: Select | Q51: - | R51: - | S51: - | T51: - | U51: - | V51: Select | AC51: 0
A52: Select | G52: - | H52: - | I52: - | J52: - | K52: - | L52: - | M52: Select | Q52: - | R52: - | S52: - | T52: - | U52: - | V52: Select | AC52: 0
A53: Select | G53: - | H53: - | I53: - | J53: - | K53: - | L53: - | M53: Select | Q53: - | R53: - | S53: - | T53: - | U53: - | V53: Select | AC53: 0
A54: Select | G54: - | H54: - | I54: - | J54: - | K54: - | L54: - | M54: Select | Q54: - | R54: - | S54: - | T54: - | U54: - | V54: Select | AC54: 0
A55: Select | G55: - | H55: - | I55: - | J55: - | K55: - | L55: - | M55: Select | Q55: - | R55: - | S55: - | T55: - | U55: - | V55: Select | AC55: 0
A56: Select | G56: - | H56: - | I56: - | J56: - | K56: - | L56: - | M56: Select | Q56: - | R56: - | S56: - | T56: - | U56: - | V56: Select | AC56: 0
A57: Select | G57: - | H57: - | I57: - | J57: - | K57: - | L57: - | M57: Select | Q57: - | R57: - | S57: - | T57: - | U57: - | V57: Select | AC57: 0
A58: Select | G58: - | H58: - | I58: - | J58: - | K58: - | L58: - | M58: Select | Q58: - | R58: - | S58: - | T58: - | U58: - | V58: Select | AC58: 0
A59: Select | G59: - | H59: - | I59: - | J59: - | K59: - | L59: - | M59: Select | Q59: - | R59: - | S59: - | T59: - | U59: - | V59: Select | AC59: 0
A60: Select | G60: - | H60: - | I60: - | J60: - | K60: - | L60: - | M60: Select | Q60: - | R60: - | S60: - | T60: - | U60: - | V60: Select | AC60: 0
A61: Select | G61: - | H61: - | I61: - | J61: - | K61: - | L61: - | M61: Select | Q61: - | R61: - | S61: - | T61: - | U61: - | V61: Select | AC61: 0

Sheet Coverage Indicators_1B
A1: On-going Progress Update and Disbursement Request
A2: PROGRESS UPDATE PERIOD
A3: Grant number: | D3: =IF('[9]PR_Programmatic Progress_1A'!C7="","",'[9]PR_Programmatic Progress_1A'!C7) -> 
A4: Progress Update - Reporting Period: | D4: Cycle: | E4: =IF('[9]PR_Programmatic Progress_1A'!D12="Select","",'[9]PR_Programmatic Progress_1A'!D12) ->  | F4: Number: | G4: =IF('[9]PR_Programmatic Progress_1A'!F12="Select","",'[9]PR_Programmatic Progress_1A'!F12) -> 0
A5: Progress Update - Period Covered: | D5: Beginning Date: | E5: =IF('[9]PR_Programmatic Progress_1A'!D13="","",'[9]PR_Programmatic Progress_1A'!D13) ->  | F5: End Date: | G5: =IF('[9]PR_Programmatic Progress_1A'!F13="","",'[9]PR_Programmatic Progress_1A'!F13) -> 
A6: Progress Update - Number: | D6: =IF('[9]PR_Programmatic Progress_1A'!C14="Select","",'[9]PR_Programmatic Progress_1A'!C14) -> 0
A8: Section 1: Programmatic Progress
A9: Note: All programmatic indicators contained in the current Performance Framework should be listed, regardless of whether there are targets/results for the period covered by the Progress Update or whether the targets have been met in previous periods.
A10: B. Coverage Indicators | V10: For LFA Use Only | AM10: For the Global Fund Use Only
A11: Objective No. | B11: * Indicator No. | C11: Indicator Description | G11: Tied To | H11: Targets cumulative? | I11: Top 10 indicator? | J11: Baseline | N11: Target | Q11: Result | T11: Reasons for programmatic deviation from intended target and deviations from the related workplan activities | V11: Targets cumulative? | W11: Top 10 indicator? | X11: Baseline | AB11: Target | AE11: Verified Result | AH11: LFA analysis on progress to date and any variance between targets and results, and any other comments (this should not be a “Copy and Paste” of the reasons provided by the PR) | AM11: Validated Result | AP11: Country Team comments on validated results
J12: Year | K12: N# | L12: D# | M12: % | N12: N# | O12: D# | P12: % | Q12: N# | R12: D# | S12: % | X12: Year | Y12: N# | Z12: D# | AA12: % | AB12: N# | AC12: D# | AD12: % | AE12: N# | AF12: D# | AG12: % | AM12: N# | AN12: D# | AO12: %
A13: 2 | B13: 1 | C13: Number of MARPs (IDUs, MSM and FSWs) covered with HIV testing and counselling (including provision of results) | G13: Current grant | H13: N-not cumulative | I13: Yes - Top 10 | J13: 2013 | K13: 9296 | L13: 70000 | M13: =IFERROR(K13/L13,"") -> 0.1328 | N13: 17039 | O13: 73200 | P13: =IFERROR(N13/O13,"") -> 0.232773224 | Q13: =15348+1057+1124 -> 17529 | R13: =O13 -> 73200 | S13: =IFERROR(Q13/R13,"") -> 0.2394672131 | T13: Number of PWIDs reached with VCT services during P5 is 15348; Number of 1124 MSM and number of FSWs 1057 FSW. Total number 17529 (source for the data is electronic dabatase of SRs - GHRN and Tanadgoma). | V13: Select | W13: Select | AA13: =IFERROR(Y13/Z13,"") ->  | AD13: =IFERROR(AB13/AC13,"") ->  | AG13: =IFERROR(AE13/AF13,"") ->  | AM13: =AE13 -> 0 | AN13: =AF13 -> 0 | AO13: =IFERROR(AM13/AN13,"") -> 
A14: 2 | B14: 1.1. | C14: Number of prisoners covered with VCT (HIV testing and counselling, including provision of results) | G14: Current grant | H14: N-not cumulative | I14: Yes - Top 10 | J14: 2013 | K14: 1938 | M14: =IFERROR(K14/L14,"") ->  | N14: 3675 | O14: 10000 | P14: =IFERROR(N14/O14,"") -> 0.3675 | Q14: 3237 | R14: 10000 | S14: =IFERROR(Q14/R14,"") -> 0.3237 | V14: Select | W14: Select | AA14: =IFERROR(Y14/Z14,"") ->  | AD14: =IFERROR(AB14/AC14,"") ->  | AG14: =IFERROR(AE14/AF14,"") ->  | AM14: =AE14 -> 0 | AN14: =AF14 -> 0 | AO14: =IFERROR(AM14/AN14,"") -> 
A15: 2 | B15: 1.2 | C15: Proportion of new individuals who test positive for HIV, enrolled in care (pre-ART or ART) services | G15: Current grant | H15: N-not cumulative | I15: Yes - Top 10 | J15: 2013 | K15: 430 | L15: 490 | M15: =IFERROR(K15/L15,"") -> 0.8775510204 | T15: n/a, the indicator is annual cummulative | V15: Select | W15: Select | AM15: 0 | AN15: 0
A16: 2 | B16: 2.1 | C16: Number and percentage of MSM reached with HIV prevention programmes - defined package of services | G16: Current grant | H16: N-not cumulative | I16: Yes - Top 10 | J16: 2013 | K16: 765 | L16: 17000 | M16: 0.045 | N16: 2975 | O16: 17000 | P16: 0.175 | Q16: 2376 | R16: 17000 | S16: 0.1397647059 | T16: Although, there is underachievement in coverage of MSM, the performance has been considerbly improved during the P5. PR had continious communication with SRs how to further improve the coverage data. PDI methodology proved to be effective among MSM in general. Additional outreach work was organized for FSWs. Procurement of Mobile Ambulatories attributed to increased coverage of PWIDs also. | V16: Select | W16: Select | AM16: 0 | AN16: 0
A17: 2 | B17: 2.2 | C17: Number and percentage of IDUs reached with HIV prevention programmes - defined package of services | G17: Current grant | H17: N-not cumulative | I17: Yes - Top 10 | J17: 2013 | K17: 16208 | L17: 45000 | M17: 0.3601777778 | N17: 19830 | O17: 49700 | P17: 0.3989939638 | Q17: 19389 | R17: 49700 | S17: 0.3901207243 | V17: Select | W17: Select | AM17: 0 | AN17: 0
A18: 2 | B18: 2.3 | C18: Number and percentage of FSWs reached with HIV prevention programmes - defined package of services | G18: Current grant | H18: N-not cumulative | I18: Yes - Top 10 | J18: 2013 | K18: 776 | L18: 8000 | M18: 0.097 | N18: 1828 | O18: 6500 | P18: 0.2812307692 | Q18: 1924 | R18: 6500 | S18: 0.296 | V18: Select | W18: Select | AM18: 0 | AN18: 0
A19: 2 | B19: 2.4 | C19: Percentage of individuals receiving OST who received treatment for at least 6 months | G19: Current grant | H19: N-not cumulative | I19: Yes - Top 10 | J19: 2013 | K19: 400 | L19: 2450 | M19: 0.1632653061 | P19: 0.75 | Q19: 759 | R19: 968 | S19: =Q19/R19 -> 0.7840909091 | T19: 759 people from the pool of 968 recruited or transfered patients during the period of July -December, 2015 were receiving OST through GF funding continuously over the period of 6 months . Opening of a new OST center and imrpoved linkadge and possibility of movement between the GF and the State OST programs has contributed to increased results. The tracking of a patient for 6 month in both programs became possible through the e-health OST module. | V19: Select | W19: Select | AM19: 0 | AN19: 0
A20: 2 | B20: 2.5 | C20: Percentage of key affected population screened for TB | G20: Current grant | H20: N-not cumulative | I20: No | K20: N/A | N20: 10223 | O20: 17039 | P20: 0.5999765244 | Q20: =SUM(9549+900+832) -> 11281 | R20: =O20 -> 17039 | S20: 0.6620693703 | T20: Ineased VCT coverage influence. Source is electronic database of GNRH and Tanadgoma. | V20: Select | W20: Select | AM20: 0 | AN20: 0
A21: 3 | B21: 3 | C21: Number and percentage of eligible adults and children currently receiving antiretroviral therapy | G21: Current grant | H21: N-not cumulative | I21: Yes - Top 10 | J21: 2013 | K21: 2092 | L21: 4060 | M21: 0.515270936 | N21: 3600 | O21: 10451 | P21: 0.3444646445 | Q21: 3373 | R21: 10451 | S21: 0.322744235 | T21: 3373 patients were receiving ART as of July 1, 2016.(Source is electronic database of National AIDS Center). The denominator was updated by the NCDC through Sepctrum in June, 2015, as it was requested in the GF Management letter of May, 2015. New Denominator is 4689 (the previous one was 5080). In July this year AIDS Center has provided new estimates agreed with UNAIDS for number of PLHIV in Georgia which is 10,400 for adults and 51 is for children, as the country has moved to treat all strategy, the denominator was changed accrodingly in the current report. | V21: Select | W21: Select | AM21: 0 | AN21: 0
A22: 3 | B22: 3.1 | C22: Percentage of adults and children that initiated ART, with an undetectable viral load at 12 months (<1000 copies/ml) | G22: Current grant | H22: Y-cumulative annually | I22: No | J22: 2013 | K22: 101 | L22: 121 | M22: 0.8347107438 | T22: n/a, the indicator is annual cummulative | V22: Select | W22: Select | AM22: 0 | AN22: 0
A23: 3 | B23: 3.2 | C23: Number of patients with HIV Hep C co-infection receiving Hep C treatment | G23: Current grant | H23: Y-cumulative annually | I23: No | J23: 2013 | K23: 152 | L23: 150 | M23: 1.013333333 | N23: 70 | O23: 70 | P23: 1 | Q23: 198 | R23: 70 | S23: 2.828571429 | T23: Overachivement has resulted from the initiation of the State Hep C Elimination Program that provides free access to highly effective anti-HCV medicine (sofosbovir). Within the GF program patients have free laboratory monitoring of treatment. | V23: Select | W23: Select | AM23: 0 | AN23: 0
G24: Select | H24: Select | I24: Select | V24: Select | W24: Select | AM24: 0 | AN24: 0
G25: Select | H25: Select | I25: Select | V25: Select | W25: Select | AM25: 0 | AN25: 0
G26: Select | H26: Select | I26: Select | V26: Select | W26: Select | AM26: 0 | AN26: 0
G27: Select | H27: Select | I27: Select | V27: Select | W27: Select | AM27: 0 | AN27: 0
G28: Select | H28: Select | I28: Select | V28: Select | W28: Select | AM28: 0 | AN28: 0
G29: Select | H29: Select | I29: Select | V29: Select | W29: Select | AM29: 0 | AN29: 0
G30: Select | H30: Select | I30: Select | M30: =IFERROR(K30/L30,"") ->  | P30: =IFERROR(N30/O30,"") ->  | S30: =IFERROR(Q30/R30,"") ->  | V30: Select | W30: Select | AA30: =IFERROR(Y30/Z30,"") ->  | AD30: =IFERROR(AB30/AC30,"") ->  | AG30: =IFERROR(AE30/AF30,"") ->  | AM30: =AE30 -> 0 | AN30: =AF30 -> 0 | AO30: =IFERROR(AM30/AN30,"") -> 
G31: Select | H31: Select | I31: Select | V31: Select | W31: Select | AM31: 0 | AN31: 0
G32: Select | H32: Select | I32: Select | V32: Select | W32: Select | AM32: 0 | AN32: 0
G33: Select | H33: Select | I33: Select | V33: Select | W33: Select | AM33: 0 | AN33: 0
G34: Select | H34: Select | I34: Select | V34: Select | W34: Select | AM34: 0 | AN34: 0
G35: Select | H35: Select | I35: Select | V35: Select | W35: Select | AM35: 0 | AN35: 0
G36: Select | H36: Select | I36: Select | V36: Select | W36: Select | AM36: 0 | AN36: 0
G37: Select | H37: Select | I37: Select | V37: Select | W37: Select | AM37: 0 | AN37: 0
G38: Select | H38: Select | I38: Select | V38: Select | W38: Select | AM38: 0 | AN38: 0
G39: Select | H39: Select | I39: Select | V39: Select | W39: Select | AM39: 0 | AN39: 0
G40: Select | H40: Select | I40: Select | V40: Select | W40: Select | AM40: 0 | AN40: 0
G41: Select | H41: Select | I41: Select | M41: =IFERROR(K41/L41,"") ->  | P41: =IFERROR(N41/O41,"") ->  | S41: =IFERROR(Q41/R41,"") ->  | V41: Select | W41: Select | AA41: =IFERROR(Y41/Z41,"") ->  | AD41: =IFERROR(AB41/AC41,"") ->  | AG41: =IFERROR(AE41/AF41,"") ->  | AM41: =AE41 -> 0 | AN41: =AF41 -> 0 | AO41: =IFERROR(AM41/AN41,"") -> 
G42: Select | H42: Select | I42: Select | V42: Select | W42: Select | AM42: 0 | AN42: 0
G43: Select | H43: Select | I43: Select | V43: Select | W43: Select | AM43: 0 | AN43: 0
G44: Select | H44: Select | I44: Select | V44: Select | W44: Select | AM44: 0 | AN44: 0
G45: Select | H45: Select | I45: Select | V45: Select | W45: Select | AM45: 0 | AN45: 0
G46: Select | H46: Select | I46: Select | V46: Select | W46: Select | AM46: 0 | AN46: 0
G47: Select | H47: Select | I47: Select | V47: Select | W47: Select | AM47: 0 | AN47: 0
G48: Select | H48: Select | I48: Select | V48: Select | W48: Select | AM48: 0 | AN48: 0
G49: Select | H49: Select | I49: Select | V49: Select | W49: Select | AM49: 0 | AN49: 0
G50: Select | H50: Select | I50: Select | V50: Select | W50: Select | AM50: 0 | AN50: 0
G51: Select | H51: Select | I51: Select | V51: Select | W51: Select | AM51: 0 | AN51: 0
G52: Select | H52: Select | I52: Select | M52: =IFERROR(K52/L52,"") ->  | P52: =IFERROR(N52/O52,"") ->  | S52: =IFERROR(Q52/R52,"") ->  | V52: Select | W52: Select | AM52: 0 | AN52: 0
G53: Select | H53: Select | I53: Select | V53: Select | W53: Select | AM53: 0 | AN53: 0
G54: Select | H54: Select | I54: Select | V54: Select | W54: Select | AM54: 0 | AN54: 0
G55: Select | H55: Select | I55: Select | V55: Select | W55: Select | AM55: 0 | AN55: 0
G56: Select | H56: Select | I56: Select | V56: Select | W56: Select | AM56: 0 | AN56: 0
G57: Select | H57: Select | I57: Select | V57: Select | W57: Select | AM57: 0 | AN57: 0
G58: Select | H58: Select | I58: Select | V58: Select | W58: Select | AM58: 0 | AN58: 0
G59: Select | H59: Select | I59: Select | V59: Select | W59: Select | AM59: 0 | AN59: 0
G60: Select | H60: Select | I60: Select | V60: Select | W60: Select | AM60: 0 | AN60: 0
G61: Select | H61: Select | I61: Select | V61: Select | W61: Select | AM61: 0 | AN61: 0
G62: Select | H62: Select | I62: Select | V62: Select | W62: Select | AM62: 0 | AN62: 0
G63: Select | H63: Select | I63: Select | K63: - | L63: - | N63: - | O63: - | V63: Select | W63: Select | Y63: - | Z63: - | AB63: - | AC63: - | AN63: 0
G64: Select | H64: Select | I64: Select | K64: - | L64: - | N64: - | O64: - | V64: Select | W64: Select | Y64: - | Z64: - | AB64: - | AC64: - | AN64: 0
G65: Select | H65: Select | I65: Select | K65: - | L65: - | N65: - | O65: - | V65: Select | W65: Select | Y65: - | Z65: - | AB65: - | AC65: - | AN65: 0
G66: Select | H66: Select | I66: Select | K66: - | L66: - | N66: - | O66: - | V66: Select | W66: Select | Y66: - | Z66: - | AB66: - | AC66: - | AN66: 0
G67: Select | H67: Select | I67: Select | K67: - | L67: - | N67: - | O67: - | V67: Select | W67: Select | Y67: - | Z67: - | AB67: - | AC67: - | AN67: 0
G69: Select | H69: Select | I69: Select | K69: - | L69: - | N69: - | O69: - | V69: Select | W69: Select | Y69: - | Z69: - | AB69: - | AC69: -
G70: Select | H70: Select | I70: Select | K70: - | L70: - | N70: - | O70: - | V70: Select | W70: Select | Y70: - | Z70: - | AB70: - | AC70: -
G71: Select | H71: Select | I71: Select | K71: - | L71: - | N71: - | O71: - | V71: Select | W71: Select | Y71: - | Z71: - | AB71: - | AC71: -
G72: Select | H72: Select | I72: Select | K72: - | L72: - | N72: - | O72: - | V72: Select | W72: Select | Y72: - | Z72: - | AB72: - | AC72: -
G73: Select | H73: Select | I73: Select | K73: - | L73: - | N73: - | O73: - | V73: Select | W73: Select | Y73: - | Z73: - | AB73: - | AC73: -

Sheet ImpactOutcomeDisaggData (hidden)
B1: Impact/outcome disaggregation Data
B3: HIV I-1: Percentage of young people aged 15–24 who are living with HIV | C3: HIVI1 | D3: Sex | E3: =CONCATENATE(C3,D3) -> HIVI1Sex | F3: Male | G3: Female | I3: Impact
B4: HIV I-2: HIV incidence among 15-49 age group | C4: HIVI2 | D4: Sex | E4: =CONCATENATE(C4,D4) -> HIVI2Sex | F4: Male | G4: Female | I4: Impact
B5: HIV I-2: HIV incidence among 15-49 age group | C5: HIVI2 | D5: Age | E5: =CONCATENATE(C5,D5) -> HIVI2Age | F5: 15-24
B6: HIV I-4: AIDS related mortality per 100,000 population | C6: HIVI4 | D6: Sex | E6: HIVI4Sex | F6: Male | G6: Female | I6: Impact
B7: HIV I-4: AIDS related mortality per 100,000 population | C7: HIVI4 | D7: Age | E7: HIVI4Age | F7: <15 | G7: 15+ | H7: 15-24 | I7: Impact
B8: HIV I-9a: Percentage of men who have sex with men who are living with HIV | C8: HIVI9a | D8: Age | E8: HIVI9aAge | F8: <25 | G8: 25+ | I8: Impact
B9: HIV I-9b: Percentage of transgender people who are living with HIV | C9: HIVI9b | D9: Age | E9: HIVI9bAge | F9: <25 | G9: 25+ | I9: Impact
B10: Malaria I-1: Reported malaria cases - presumed and confirmed | C10: MalariaI1 | D10: Sex | E10: MalariaI1Sex | F10: Male | G10: Female | I10: Impact
B11: Malaria I-1: Reported malaria cases - presumed and confirmed | C11: MalariaI1 | D11: Age | E11: MalariaI1Age | F11: <5 | G11: 5+ | I11: Impact
B12: Malaria I-2: Confirmed malaria cases (microscopy or RDT) per 1000 persons per year | C12: MalariaI2 | D12: Sex | E12: MalariaI2Sex | F12: Male | G12: Female | I12: Impact
B13: Malaria I-2: Confirmed malaria cases (microscopy or RDT) per 1000 persons per year | C13: MalariaI2 | D13: Age | E13: MalariaI2Age | F13: <5 | G13: 5+ | I13: Impact
B14: Malaria I-2: Confirmed malaria cases (microscopy or RDT) per 1000 persons per year | C14: MalariaI2 | D14: Species | E14: MalariaI2Species | F14: P. Vivax | G14: P. Falciparum | H14: Other - specify | I14: Impact
B15: Malaria I-3: Inpatient malaria deaths per 1000 persons per year | C15: MalariaI3 | D15: Sex | E15: MalariaI3Sex | F15: Male | G15: Female | I15: Impact
B16: Malaria I-3: Inpatient malaria deaths per 1000 persons per year | C16: MalariaI3 | D16: Age | E16: MalariaI3Age | F16: <5 | G16: 5+ | I16: Impact
B17: Malaria I-4: Malaria test positivity rate | C17: MalariaI4 | D17: Species | E17: MalariaI4Species | F17: P. Vivax | G17: P. Falciparum | H17: Other - specify | I17: Impact
B18: Malaria I-4: Malaria test positivity rate | C18: MalariaI4 | D18: Type of testing | E18: =SUBSTITUTE(CONCATENATE(C18,D18)," ","") -> MalariaI4Typeoftesting | F18: Microscopy | G18: RDT | I18: Impact
B19: Malaria I-5: Parasite prevalence: Proportion of children aged 6-59 months with malaria infection | C19: MalariaI5 | D19: Sex | E19: MalariaI5Sex | F19: Male | G19: Female | I19: Impact
B20: Malaria I-5: Parasite prevalence: Proportion of children aged 6-59 months with malaria infection | C20: MalariaI5 | D20: Species | E20: MalariaI5Species | F20: P. Vivax | G20: P. Falciparum | H20: Other - specify
B21: Malaria I-6: All-cause under-5 mortality rate per 1000 live births | C21: MalariaI6 | D21: Sex | E21: MalariaI6Sex | F21: Male | G21: Female | I21: Impact
B22: HIV O-1: Percentage of adults and children with HIV known to be on treatment 12 months after initiation of antiretroviral therapy | C22: HIVO1 | D22: Sex | E22: HIVO1Sex | F22: Male | G22: Female | I22: Outcome
B23: HIV O-1: Percentage of adults and children with HIV known to be on treatment 12 months after initiation of antiretroviral therapy | C23: HIVO1 | D23: Age | E23: HIVO1Age | F23: <15 | G23: 15+ | I23: Outcome
B24: HIV O-1: Percentage of adults and children with HIV known to be on treatment 12 months after initiation of antiretroviral therapy | C24: HIVO1 | D24: Duration of treatment | E24: =SUBSTITUTE(CONCATENATE(C24,D24)," ","") -> HIVO1Durationoftreatment | F24: 24 months | G24: 36 months | I24: Outcome
B25: HIV O-2: Percentage of women and men aged 15-49 who have had sexual intercourse with more than one partner in the past 12 months | C25: HIVO2 | D25: Sex | E25: HIVO2Sex | F25: Male | G25: Female | I25: Outcome
B26: HIV O-2: Percentage of women and men aged 15-49 who have had sexual intercourse with more than one partner in the past 12 months | C26: HIVO2 | D26: Age | E26: HIVO2Age | F26: 15-19 | G26: 20-24 | I26: Outcome
B27: HIV O-3: Percentage of women and men aged 15-49 who had more than one partner in the past 12 months who used a condom during their last sexual intercourse | C27: HIVO3 | D27: Sex | E27: HIVO3Sex | F27: Male | G27: Female | I27: Outcome
B28: HIV O-3: Percentage of women and men aged 15-49 who had more than one partner in the past 12 months who used a condom during their last sexual intercourse | C28: HIVO3 | D28: Age | E28: HIVO3Age | F28: 15-19 | G28: 20-24 | I28: Outcome
B29: HIV O-5: Percentage of sex workers reporting the use of a condom with their most recent client | C29: HIVO5 | D29: Sex | E29: HIVO5Sex | F29: Male | G29: Female | I29: Outcome
B30: HIV O-6: Percentage of people who inject drugs reporting the use of sterile injecting equipment the last time they injected | C30: HIVO6 | D30: Sex | E30: HIVO6Sex | F30: Male | G30: Female | I30: Outcome
B31: HIV O-8: Current school attendance rate among orphans compared to non-orphans | C31: HIVO8 | D31: Sex | E31: HIVO8Sex | F31: Male | G31: Female | I31: Outcome
B32: Malaria O-1a: Proportion of population that slept under an insecticide-treated net* the previous night | C32: MalariaO1a | D32: Sex | E32: MalariaO1aSex | F32: Male | G32: Female | I32: Outcome
B33: Malaria O-3: Proportion of population using an insecticide-treated net* among the population with access to an insecticide-treated net | C33: MalariaO3 | D33: Sex | E33: MalariaO3Sex | F33: Male | G33: Female | I33: Outcome

Sheet Impactoutcome (hidden)
B2: Type1 | C2: Type2 | D2: Type3 | E2: Type4 | F2: Type5 | G2: Type6 | H2: Type7 | I2: Type8 | J2: Type9 | K2: Type10
B3: Malaria I-1: Reported malaria cases - presumed and confirmed | C3: TB I-1: TB prevalence rate (per 100,000 population) | D3: HIV I-1: Percentage of young people aged 15–24 who are living with HIV | E3: HIV I-1: Percentage of young people aged 15–24 who are living with HIV | F3: HSS I-1: Under 5 mortality rate per 1000 live births | G3: Malaria O-1a: Proportion of population that slept under an insecticide-treated net* the previous night | H3: TB O-1a: Case notification rate of all forms of TB per 100,000 population - bacteriologically confirmed plus clinically diagnosed, new and relapse cases | I3: HIV O-1: Percentage of adults and children with HIV known to be on treatment 12 months after initiation of antiretroviral therapy | J3: HIV O-1: Percentage of adults and children with HIV known to be on treatment 12 months after initiation of antiretroviral therapy | K3: HSS O-1: Percentage of women attending antenatal care
B4: Malaria I-2: Confirmed malaria cases (microscopy or RDT) per 1000 persons per year | C4: TB I-2: TB incidence rate (per 100,000 population) | D4: HIV I-2: HIV incidence among 15-49 age group | E4: HIV I-2: HIV incidence among 15-49 age group | F4: HSS I-2: Neonatal mortality rate, per 100,000 population | G4: Malaria O-1b: Proportion of children under five years old who slept under an insecticide-treated net* the previous night | H4: TB O-1b: Case notification rate per 100,000 population- bacteriologically-confirmed TB, new and relapse | I4: HIV O-2: Percentage of women and men aged 15-49 who have had sexual intercourse with more than one partner in the past 12 months | J4: HIV O-2: Percentage of women and men aged 15-49 who have had sexual intercourse with more than one partner in the past 12 months | K4: HSS O-2: Percentage of births attended by skilled health professional
B5: Malaria I-3: Inpatient malaria deaths per 1000 persons per year | C5: TB I-3: TB mortality rate (per 100,000 population) | D5: HIV I-3a: Percentage of antenatal care attendees who were positive for syphilis | E5: HIV I-3a: Percentage of antenatal care attendees who were positive for syphilis | F5: HSS I-3: Maternal mortality ratio, per 100,000 population | G5: Malaria O-1c: Proportion of pregnant women who slept under an insecticide-treated net* the previous night | H5: TB O-2a: Treatment success rate - all forms of TB | I5: HIV O-3: Percentage of women and men aged 15-49 who had more than one partner in the past 12 months who used a condom during their last sexual intercourse | J5: HIV O-3: Percentage of women and men aged 15-49 who had more than one partner in the past 12 months who used a condom during their last sexual intercourse | K5: HSS O-3: Ratio of household out-of-pocket payments for health to total expenditure on health
B6: Malaria I-4: Malaria test positivity rate | C6: TB I-4: MDR-TB prevalence among new TB patients | D6: HIV I-3b: Percentage of men who have sex with men with active syphilis | E6: HIV I-3b: Percentage of men who have sex with men with active syphilis | F6: Custom | G6: Malaria O-2: Proportion of population with access to an ITN within their household | H6: TB O-2b: Treatment success rate - bacteriologically confirmed TB cases | I6: HIV O-4a: Percentage of men reporting the use of a condom the last time they had anal sex with a male partner | J6: HIV O-4a: Percentage of men reporting the use of a condom the last time they had anal sex with a male partner | K6: HSS O-4: General service readiness score for health facilities
B7: Malaria I-5: Parasite prevalence: Proportion of children aged 6-59 months with malaria infection | C7: TB I-5: Modelled lives saved based on latest epidemiological data | D7: HIV I-3c: Percentage of sex workers with active syphilis | E7: HIV I-3c: Percentage of sex workers with active syphilis | G7: Malaria O-3: Proportion of population using an insecticide-treated net* among the population with access to an insecticide-treated net | H7: TB O-3: Notification of RR-TB and/or MDR-TB cases - Percentage of notified cases of bacteriologically confirmed, drug resistant RR-TB and/or MDR-TB? as a proportion of the estimated number of RR-TB and/or MDR-TB cases among notified TB cases | I7: HIV O-4b: Percentage of transgender people who sell sex reporting the use of a condom with their most recent client | J7: HIV O-4b: Percentage of transgender people who sell sex reporting the use of a condom with their most recent client | K7: Custom
B8: Malaria I-6: All-cause under-5 mortality rate per 1000 live births | C8: TB I-6: Modelled infections averted based on latest epidemiological data | D8: HIV I-4: AIDS related mortality per 100,000 population | E8: HIV I-4: AIDS related mortality per 100,000 population | G8: Malaria O-4: Proportion of households with at least one insecticide-treated net for every two people and/or sprayed by IRS within the last 12 months | H8: TB O-4: Treatment success rate of MDR-TB: Percentage of bacteriologically confirmed drug resistant TB cases (RR-TB and/or MDR-TB) successfully treated | I8: HIV O-5: Percentage of sex workers reporting the use of a condom with their most recent client | J8: HIV O-5: Percentage of sex workers reporting the use of a condom with their most recent client
B9: Malaria I-7: Modelled lives saved (based on latest epidemiological data) | C9: TB/HIV I-1: TB/HIV mortality rate, per 100,000 population | D9: HIV I-5: New HIV infections among children | E9: HIV I-5: New HIV infections among children | G9: Malaria O-6: Proportion of households with at least one insecticide-treated net* for every two people | H9: HSS O-1: Percentage of women attending antenatal care | I9: HIV O-6: Percentage of people who inject drugs reporting the use of sterile injecting equipment the last time they injected | J9: HIV O-6: Percentage of people who inject drugs reporting the use of sterile injecting equipment the last time they injected
B10: Malaria I-8: Modelled infections averted (based on latest epidemiological data) | C10: HSS I-1: Under 5 mortality rate per 1000 live births | D10: HIV I-6: Estimated percentage of child HIV infections from HIV-positive women delivering in the past 12 months | E10: HIV I-6: Estimated percentage of child HIV infections from HIV-positive women delivering in the past 12 months | G10: HSS O-1: Percentage of women attending antenatal care | H10: HSS O-2: Percentage of births attended by skilled health professional | I10: HIV O-7: Percentage of other vulnerable populations who report the use of a condom at last sexual intercourse | J10: HIV O-7: Percentage of other vulnerable populations who report the use of a condom at last sexual intercourse
B11: HSS I-1: Under 5 mortality rate per 1000 live births | C11: HSS I-2: Neonatal mortality rate, per 100,000 population | D11: HIV I-7: Modelled lives saved based on latest epidemiological data | E11: HIV I-7: Modelled lives saved based on latest epidemiological data | G11: Malaria O-5: Proportion of households with at least one insecticide-treated net | H11: HSS O-3: Ratio of household out-of-pocket payments for health to total expenditure on health | I11: HIV O-8: Current school attendance rate among orphans compared to non-orphans | J11: HIV O-8: Current school attendance rate among orphans compared to non-orphans
B12: HSS I-2: Neonatal mortality rate, per 100,000 population | C12: HSS I-3: Maternal mortality ratio, per 100,000 population | D12: HIV I-8: Modelled infections averted based on latest epidemiological data | E12: HIV I-8: Modelled infections averted based on latest epidemiological data | G12: HSS O-2: Percentage of births attended by skilled health professional | H12: HSS O-5: Specific services readiness score for health facilities | I12: TB O-1a: Case notification rate of all forms of TB per 100,000 population - bacteriologically confirmed plus clinically diagnosed, new and relapse cases | J12: TB O-1a: Case notification rate of all forms of TB per 100,000 population - bacteriologically confirmed plus clinically diagnosed, new and relapse cases
B13: HSS I-3: Maternal mortality ratio, per 100,000 population | C13: Custom | D13: HIV I-9a: Percentage of men who have sex with men who are living with HIV | E13: HIV I-9a: Percentage of men who have sex with men who are living with HIV | G13: HSS O-3: Ratio of household out-of-pocket payments for health to total expenditure on health | H13: Custom | I13: TB O-1b: Case notification rate per 100,000 population- bacteriologically-confirmed TB, new and relapse | J13: TB O-1b: Case notification rate per 100,000 population- bacteriologically-confirmed TB, new and relapse
B14: Custom | D14: HIV I-9b: Percentage of transgender people who are living with HIV | E14: HIV I-9b: Percentage of transgender people who are living with HIV | G14: HSS O-5: Specific services readiness score for health facilities | I14: TB O-2a: Treatment success rate - all forms of TB | J14: TB O-2a: Treatment success rate - all forms of TB
D15: HIV I-10: Percentage of sex workers who are living with HIV | E15: HIV I-10: Percentage of sex workers who are living with HIV | G15: Custom | I15: TB O-2b: Treatment success rate - bacteriologically confirmed TB cases | J15: TB O-2b: Treatment success rate - bacteriologically confirmed TB cases
D16: HIV I-11: Percentage of people who inject drugs who are living with HIV | E16: HIV I-11: Percentage of people who inject drugs who are living with HIV | I16: TB O-3: Notification of RR-TB and/or MDR-TB cases - Percentage of notified cases of bacteriologically confirmed, drug resistant RR-TB and/or MDR-TB? as a proportion of the estimated number of RR-TB and/or MDR-TB cases among notified TB cases | J16: TB O-3: Notification of RR-TB and/or MDR-TB cases - Percentage of notified cases of bacteriologically confirmed, drug resistant RR-TB and/or MDR-TB? as a proportion of the estimated number of RR-TB and/or MDR-TB cases among notified TB cases
D17: HIV I-12: Percentage of other vulnerable populations (specify) who are living with HIV | E17: HIV I-12: Percentage of other vulnerable populations (specify) who are living with HIV | I17: TB O-4: Treatment success rate of MDR-TB: Percentage of bacteriologically confirmed drug resistant TB cases (RR-TB and/or MDR-TB) successfully treated | J17: TB O-4: Treatment success rate of MDR-TB: Percentage of bacteriologically confirmed drug resistant TB cases (RR-TB and/or MDR-TB) successfully treated
D18: TB I-1: TB prevalence rate (per 100,000 population) | E18: TB/HIV I-1: TB/HIV mortality rate, per 100,000 population | I18: HSS O-1: Percentage of women attending antenatal care | J18: HSS O-1: Percentage of women attending antenatal care
D19: TB I-2: TB incidence rate (per 100,000 population) | E19: HSS I-1: Under 5 mortality rate per 1000 live births | I19: HSS O-2: Percentage of births attended by skilled health professional | J19: HSS O-2: Percentage of births attended by skilled health professional
D20: TB I-3: TB mortality rate (per 100,000 population) | E20: HSS I-2: Neonatal mortality rate, per 100,000 population | I20: HSS O-3: Ratio of household out-of-pocket payments for health to total expenditure on health | J20: HSS O-3: Ratio of household out-of-pocket payments for health to total expenditure on health
D21: TB I-4: MDR-TB prevalence among new TB patients | E21: HSS I-3: Maternal mortality ratio, per 100,000 population | I21: HSS O-5: Specific services readiness score for health facilities | J21: HSS O-5: Specific services readiness score for health facilities
D22: TB I-5: Modelled lives saved based on latest epidemiological data | E22: Custom | I22: Custom | J22: Custom
D23: TB I-6: Modelled infections averted based on latest epidemiological data
D24: TB/HIV I-1: TB/HIV mortality rate, per 100,000 population
D25: HSS I-1: Under 5 mortality rate per 1000 live births
D26: HSS I-2: Neonatal mortality rate, per 100,000 population
D27: HSS I-3: Maternal mortality ratio, per 100,000 population
D28: Custom

Sheet Coverage Indicators (hidden)
P1: HIV/AIDS | Q1: HIV/AIDS | R1: HIV/AIDS | S1: HIV/AIDS | T1: HIV/AIDS | U1: HIV/AIDS | V1: HIV/AIDS | W1: HIV/AIDS
P2: Tuberculosis | Q2: Tuberculosis | R2: Tuberculosis | S2: Tuberculosis | T2: Tuberculosis | U2: Tuberculosis | V2: Tuberculosis | W2: Tuberculosis | X2: Tuberculosis | Y2: Tuberculosis | Z2: HIV/AIDS
O3: HIV/AIDS | P3: Malaria | Q3: Malaria | R3: Malaria | S3: Malaria | T3: Malaria | U3: Malaria | V3: Malaria | W3: Malaria | X3: Malaria | Y3: HIV/AIDS | Z3: Tuberculosis
F4: Tuberculosis | G4: HIV/TB | H4: HIV/TB | I4: HIV/TB | J4: HIV/TB | K4: HIV/TB | L4: HIV/TB | M4: HIV/TB | N4: HIV/TB | O4: Tuberculosis | P4: Health Systems Strengthening | Q4: Health Systems Strengthening | R4: Health Systems Strengthening | S4: Health Systems Strengthening | T4: Health Systems Strengthening | U4: Health Systems Strengthening | V4: Health Systems Strengthening | W4: Health Systems Strengthening | X4: Health Systems Strengthening | Y4: HIV/TB | Z4: Malaria
B5: Malaria | C5: Malaria | D5: Malaria | E5: Tuberculosis | F5: HIV/TB | G5: HIV/AIDS | H5: HIV/AIDS | I5: HIV/AIDS | J5: HIV/AIDS | K5: HIV/AIDS | L5: HIV/AIDS | M5: HIV/AIDS | N5: HIV/AIDS | O5: HIV/TB | P5: HIV/TB | Q5: HIV/TB | R5: HIV/TB | S5: HIV/TB | T5: HIV/TB | U5: HIV/TB | V5: HIV/TB | W5: HIV/TB | X5: HIV/TB | Y5: Malaria | Z5: HIV/TB
B6: Specific prevention interventions (SPI) | C6: Vector control | D6: Case management | E6: TB care and prevention | F6: MDR-TB | G6: Prevention programs for general population | H6: Prevention programs for MSM and TGs | I6: Prevention programs for people who inject drugs (PWID) and their partners | J6: Prevention programs for other vulnerable populations (please specify) | K6: Prevention programs for adolescents and youth, in and out of school | L6: Prevention programs for sex workers and their clients | M6: PMTCT | N6: HIV/AIDS | O6: TB/HIV | P6: Removing legal barriers to access | Q6: HSS - Service delivery | R6: HSS - Health and community workforce | S6: HSS - Health information systems and M&E | T6: Program management | U6: HSS - Procurement supply chain management (PSCM) | V6: HSS - Policy and governance | W6: HSS - Healthcare financing | X6: HSS - Financial management | Y6: Community systems strengthening | Z6: Results based Financing
B7: Module1 | C7: Module2 | D7: Module3 | E7: Module4 | F7: Module5 | G7: Module8 | H7: Module9 | I7: Module10 | J7: Module11 | K7: Module12 | L7: Module13 | M7: Module14 | N7: Module15 | O7: Module24 | P7: Module27 | Q7: Module28 | R7: Module29 | S7: Module30 | T7: Module31 | U7: Module32 | V7: Module33 | W7: Module34 | X7: Module35 | Y7: Module72 | Z7: Module73
B8: SPI-1: Proportion of pregnant women attending antenatal clinics who received three or more doses of intermittent preventive treatment (IPTp) for malaria | C8: VC-1: Number of long-lasting insecticidal nets distributed to at-risk populations through mass campaigns | D8: CM-1a: Proportion of suspected malaria cases that receive a parasitological test at public sector health facilities | E8: DOTS-1a: Number of notified cases of all forms of TB - bacteriologically confirmed plus clinically diagnosed, new and relapses | F8: MDR TB-1: Percentage of previously treated TB patients receiving DST (bacteriologically positive cases only) | G8: GP-1: Number of women and men aged 15+ who received an HIV test and know their results | H8: KP-1a: Percentage of MSM reached with HIV prevention programs - defined package of services | I8: KP-1d: Percentage of PWID reached with HIV prevention programs - defined package of services | J8: KP-1e: Percentage of other vulnerable populations reached with HIV prevention programs - defined package of services | K8: YP-1: Percentage of young people aged 10?24 years reached by life skills?based HIV education in schools | L8: KP-1c: Percentage of sex workers reached with HIV prevention programs - defined package of services | M8: PMTCT-1: Percentage of pregnant women who know their HIV status | N8: TCS-1: Percentage of adults and children currently receiving antiretroviral therapy among all adults and children living with HIV | O8: TB/HIV-1: Percentage of TB patients who had an HIV test result recorded in the TB register | P8: Custom | Q8: SD-1: Number of health facilities per 10,000 population | R8: HW-1: Number of health workers per 10,000 population (report on community health workers as applicable) | S8: M&E-1: Percentage of HMIS or other routine reporting units submitting timely reports according to national guidelines | T8: Custom | U8: PSM-1: Percentage of health facilities reporting no stock-outs of essential drugs | V8: Custom | W8: HF-1: Government expenditure on health as percentage of general government expenditure | X8: Custom | Y8: Custom | Z8: Custom
B9: Custom | C9: VC-2: Proportion of population at risk potentially covered by long lasting insecticidal nets distributed | D9: CM-1b: Proportion of suspected malaria cases that receive a parasitological test in the community | E9: DOTS-1b: Number of notified cases of bacteriologically confirmed TB, new and relapses | F9: MDR TB-2: Number of bacteriologically confirmed, drug resistant TB cases (RR-TB and/or MDR-TB) notified | G9: GP-2: Percentage of individuals from targeted population reached through community outreach with standardized HIV prevention interventions | H9: KP-1b: Percentage of TG reached with HIV prevention programs - defined package of services | I9: KP-2d: Percentage of PWID reached with HIV prevention programs - individual and/or smaller group level interventions | J9: KP-2e: Percentage of other vulnerable populations reached with HIV prevention programs - individual and/or smaller group level interventions | K9: Custom | L9: KP-2c: Percentage of sex workers reached with HIV prevention programs - individual and/or smaller group level interventions | M9: PMTCT-2: Percentage of HIV-positive pregnant women who received antiretrovirals to reduce the risk of mother-to-child transmission | N9: TCS-2: Percentage of people living with HIV that initiated ART with CD4 count of <200 cells/mm³ | O9: TB/HIV-4: Percentage of new HIV-positive patients starting IPT during the reporting period | Q9: SD-2: Number of outpatients visits per 10,000 population | R9: HW-2: Distribution of health workers | S9: M&E-2: Proportion of facility reports received over the reports expected during the reporting period | U9: Custom | W9: Custom
C10: VC-3: Number of long-lasting insecticidal nets distributed to targeted risk groups through continuous distribution | D10: CM-1c: Proportion of suspected malaria cases that receive a parasitological test at private sector sites | E10: DOTS-2a: Percentage of TB cases, all forms, bacteriologically confirmed plus clinically diagnosed, successfully treated (cured plus treatment completed) among all TB cases registered for treatment during a specified period | F10: MDR TB-3: Number of cases with drug resistant TB (RR-TB and/or MDR-TB) that began second-line treatment | G10: GP-3: Proportion of new individuals who test positive for HIV, enrolled in care (pre-ART or ART) services | H10: KP-2a: Percentage of MSM reached with HIV prevention programs - individual and/or smaller group level interventions | I10: KP-3d: Percentage of PWID that have received an HIV test during the reporting period and know their results | J10: KP-3e: Percentage of other vulnerable populations that have received an HIV test during the reporting period and know their results | L10: KP-3c: Percentage of sex workers that have received an HIV test during the reporting period and know their results | M10: PMTCT-3: Percentage of infants born to HIV-positive women receiving a virological test for HIV within 2 months of birth | N10: TCS-3: Percentage of adults and children that initiated ART, with an undetectable viral load at 12 months (<1000 copies/ml) | O10: TB/HIV-3: Percentage of HIV-positive patients who were screened for TB in HIV care or treatment settings | Q10: Custom | R10: HW-3: Number of health workers newly recruited at primary health care facilities in the past 12 months, expressed as a percentage of planned recruitment targets | S10: M&E-3: Percentage of deaths registered (as reported by civil or sample registration systems, hospitals, community-based reporting systems) among the total deaths for the same period and geographical region
C11: VC-4: Proportion of targeted risk groups receiving long-lasting insecticidal-nets | D11: CM-2a: Proportion of confirmed malaria cases that received first-line antimalarial treatment according to national policy at public sector health facilities | E11: DOTS-2b: Percentage of bacteriologically confirmed TB cases successfully treated (cured plus completed treatment) among the bacteriologically confirmed TB cases registered during a specified period | F11: MDR TB-4: Percentage of cases with drug resistant TB (RR-TB and/or MDR-TB) started on treatment for MDR-TB who were lost to follow up at six months | G11: GP-4: Percentage of antenatal care attendees tested for syphilis | H11: KP-2b: Percentage of TG reached with HIV prevention programs - individual and/or smaller group level interventions | I11: KP-4: Number of needles and syringes distributed per person who injects drugs per year by needle and syringe programs | J11: Custom | L11: Custom | M11: Custom | N11: TCS-4: Percentage of health facilities dispensing antiretroviral therapy that experienced a stock-out of at least one required antiretroviral drug in the last 12 month | O11: TB/HIV-2: Percentage of HIV-positive registered TB patients given anti-retroviral therapy during TB treatment | R11: HW-4: Annual rate of retention of service providers at primary health care facilities | S11: Custom
C12: VC-5: Proportion of households in targeted areas that received Indoor Residual Spraying during the reporting period | D12: CM-2b: Proportion of confirmed malaria cases that received first-line antimalarial treatment according to national policy in the community | E12: DOTS-3: Percentage of laboratories showing adequate performance in external quality assurance for smear microscopy among the total number of laboratories that undertake smear microscopy during the reporting period | F12: MDR TB-5: Percentage of DST laboratories showing adequate performance on External Quality Assurance | G12: GP-5: Number of male circumcisions performed according to national standards | H12: KP-3a: Percentage of MSM that have received an HIV test during the reporting period and know their results | I12: KP-5: Percentage of individuals receiving Opioid Substitution Therapy who received treatment for at least 6 months | N12: TCS-5: Proportion of undernourished PLHIV that received therapeutic or supplementary food at any point during the reporting period | O12: Custom | R12: Custom
C13: VC-6: Proportion of population protected by Indoor Residual Spraying within the last 12 months | D13: CM-2c: Proportion of confirmed malaria cases that received first-line antimalarial treatment according to national policy at private sector sites | E13: DOTS-4: Percentage of reporting units reporting no stock-out of first-line anti-TB drugs on the last day of the quarter | F13: Custom | G13: GP-6: Percentage of orphaned and vulnerable children aged 0?17 years whose households received free basic external support in caring for the child according to national guidelines | H13: KP-3b: Percentage of TG that have received an HIV test during the reporting period and know their results | I13: Custom | N13: Custom
C14: Custom | D14: CM-3a: Proportion of estimated malaria cases (presumed and confirmed) that received first line antimalarial treatment at public sector health facilities | E14: DOTS-5: Number of children <5 in contact with TB patients who began IPT | G14: Custom | H14: Custom
D15: CM-3b: Proportion of estimated malaria cases (presumed and confirmed) that received first line anti-malarial treatment in the community | E15: DOTS-6: Number of TB cases (all forms) notified among key affected populations/high risk groups
D16: CM-3c: Proportion of estimated malaria cases (presumed and confirmed) that received first line anti-malarial treatment at private sector sites | E16: DOTS-7a: Percentage of notified TB cases, all forms, contributed by non-NTP providers - private/non-governmental facilities
D17: CM-4: Proportion of health facilities without stock-outs of key commodities during the reporting period | E17: DOTS-7b: Percentage of notified TB cases, all forms, contributed by non-NTP providers - public sector
D18: CM-5: Percentage of confirmed cases fully investigated (malaria elimination phase) | E18: DOTS-7c: Percentage of notified TB cases, all forms, contributed by non-NTP providers - community referrals
D19: CM-6: Percentage of foci fully investigated (malaria elimination phase) | E19: Custom
D20: Custom

Sheet CoverageDisaggregationData (hidden)
B1: Coverage disaggregation Data
B2: Name of Indicator | C2: ShortName | D2: Disaggregation | E2: Concatenatedcode | F2: Module | G2: Categories
B3: GP-1: Number of women and men aged 15+ who received an HIV test and know their results | C3: GP1D | D3: Sex | E3: =SUBSTITUTE(SUBSTITUTE(SUBSTITUTE(CONCATENATE(C3,D3)," ",""),"/",""),"-","") -> GP1DSex | F3: Prevention programs for general population | G3: Male | H3: Female
B4: GP-1: Number of women and men aged 15+ who received an HIV test and know their results | C4: GP1D | D4: HIV status | E4: GP1DHIVstatus | F4: Prevention programs for general population | G4: Positive | H4: Negative
B5: GP-1: Number of women and men aged 15+ who received an HIV test and know their results | C5: GP1D | D5: Age | E5: =SUBSTITUTE(SUBSTITUTE(SUBSTITUTE(CONCATENATE(C5,D5)," ",""),"/",""),"-","") -> GP1DAge | F5: Prevention programs for general population | G5: 15-24
B6: PMTCT-1: Percentage of pregnant women who know their HIV status | C6: PMTCT1 | D6: HIV status-pregnant women | E6: PMTCT1HIVstatuspregnantwomen | F6: PMTCT | G6: Known positive HIV infection at ANC | H6: Newly identified as HIV positive | I6: Testing HIV negative
B7: TCS-1: Percentage of adults and children currently receiving antiretroviral therapy among all adults and children living with HIV | C7: TCS1a | D7: Sex | E7: TCS1aSex | F7: Treatment, care and support | G7: Male | H7: Female
B8: TCS-1: Percentage of adults and children currently receiving antiretroviral therapy among all adults and children living with HIV | C8: TCS1a | D8: Age | E8: TCS1aAge | F8: Treatment, care and support | G8: <15 | H8: 15+ | I8: 15-24
B9: TCS-2: Percentage of people living with HIV that initiated ART with CD4 count of <200 cells/mm³ | C9: TCS2a | D9: Sex | E9: TCS2aSex | F9: Treatment, care and support | G9: Male | H9: Female
B10: TCS-3: Percentage of adults and children that initiated ART, with an undetectable viral load at 12 months (<1000 copies/ml) | C10: TCS3a | D10: Sex | E10: TCS3aSex | F10: Treatment, care and support | G10: Male | H10: Female
B11: TCS-3: Percentage of adults and children that initiated ART, with an undetectable viral load at 12 months (<1000 copies/ml) | C11: TCS3a | D11: Age | E11: TCS3aAge | F11: Treatment, care and support | G11: 15-24
B12: DOTS-1a: Number of notified cases of all forms of TB - bacteriologically confirmed plus clinically diagnosed, new and relapses | C12: DOTS1a | D12: Sex | E12: DOTS1aSex | F12: TB care and prevention | G12: Male | H12: Female
B13: DOTS-1a: Number of notified cases of all forms of TB - bacteriologically confirmed plus clinically diagnosed, new and relapses | C13: DOTS1a | D13: HIV test result | E13: DOTS1aHIVtestresult | F13: TB care and prevention | G13: Positive | H13: Negative | I13: Not documented
B14: DOTS-1a: Number of notified cases of all forms of TB - bacteriologically confirmed plus clinically diagnosed, new and relapses | C14: DOTS1a | D14: Age | E14: DOTS1aAge | F14: TB care and prevention | G14: <15 | H14: 15+
B15: DOTS-2a: Percentage of TB cases, all forms, bacteriologically confirmed plus clinically diagnosed, successfully treated (cured plus treatment completed) among all TB cases registered for treatment during a specified period | C15: DOTS2a | D15: Sex | E15: DOTS2aSex | F15: TB care and prevention | G15: Male | H15: Female
B16: DOTS-2a: Percentage of TB cases, all forms, bacteriologically confirmed plus clinically diagnosed, successfully treated (cured plus treatment completed) among all TB cases registered for treatment during a specified period | C16: DOTS2a | D16: Age | E16: DOTS2aAge | F16: TB care and prevention | G16: <15 | H16: 15+
B17: DOTS-2a: Percentage of TB cases, all forms, bacteriologically confirmed plus clinically diagnosed, successfully treated (cured plus treatment completed) among all TB cases registered for treatment during a specified period | C17: DOTS2a | D17: HIV test result | E17: DOTS2aHIVtestresult | F17: TB care and prevention | G17: Positive | H17: Negative | I17: Not documented
B18: DOTS-6: Number of TB cases (all forms) notified among key affected populations/high risk groups | C18: DOTS6 | D18: KAPs/high risk groups | E18: DOTS6KAPshighriskgroups | F18: TB care and prevention | G18: Prisoners | H18: Migrants/ Refugees/ IDPs | I18: Others - specify
B19: MDR TB-2: Number of bacteriologically confirmed, drug resistant TB cases (RR-TB and/or MDR-TB) notified | C19: MDRTB2 | D19: Sex | E19: MDRTB2Sex | F19: MDR-TB | G19: Male | H19: Female
B20: MDR TB-2: Number of bacteriologically confirmed, drug resistant TB cases (RR-TB and/or MDR-TB) notified | C20: MDRTB2 | D20: Age | E20: MDRTB2Age | F20: MDR-TB | G20: <15 | H20: 15+
B21: MDR TB-3: Number of cases with drug resistant TB (RR-TB and/or MDR-TB) that began second-line treatment | C21: MDRTB3 | D21: Sex | E21: MDRTB3Sex | F21: MDR-TB | G21: Male | H21: Female
B22: MDR TB-3: Number of cases with drug resistant TB (RR-TB and/or MDR-TB) that began second-line treatment | C22: MDRTB3 | D22: Age | E22: MDRTB3Age | F22: MDR-TB | G22: <15 | H22: 15+
B23: VC-3: Number of long-lasting insecticidal nets distributed to targeted risk groups through continuous distribution | C23: VC3a | D23: Targeted risk group | E23: VC3aTargetedriskgroup | F23: Vector control | G23: Pregnant women | H23: Children <5 | I23: Migrant workers/ refugees/ IDPs | J23: Others - specify
B24: VC-4: Proportion of targeted risk groups receiving long-lasting insecticidal-nets | C24: VC4a | D24: Targeted risk group | E24: VC4aTargetedriskgroup | F24: Vector control | G24: Pregnant women | H24: Children <5 | I24: Migrant workers/ refugees/ IDPs | J24: Others - specify
B25: CM-1a: Proportion of suspected malaria cases that receive a parasitological test at public sector health facilities | C25: CM1a | D25: Age | E25: CM1aAge | F25: Case management | G25: <5 | H25: 5+
B26: CM-1a: Proportion of suspected malaria cases that receive a parasitological test at public sector health facilities | C26: CM1a | D26: Type of testing | E26: CM1aTypeoftesting | F26: Case management | G26: Microscopy | H26: RDTs
B27: CM-1b: Proportion of suspected malaria cases that receive a parasitological test in the community | C27: CM1b | D27: Age | E27: CM1bAge | F27: Case management | G27: <5 | H27: 5+
B28: CM-1b: Proportion of suspected malaria cases that receive a parasitological test in the community | C28: CM1b | D28: Type of testing | E28: CM1bTypeoftesting | F28: Case management | G28: Microscopy | H28: RDTs
B29: CM-1c: Proportion of suspected malaria cases that receive a parasitological test at private sector sites | C29: CM1c | D29: Age | E29: CM1cAge | F29: Case management | G29: <5 | H29: 5+
B30: CM-1c: Proportion of suspected malaria cases that receive a parasitological test at private sector sites | C30: CM1c | D30: Type of testing | E30: CM1cTypeoftesting | F30: Case management | G30: Microscopy | H30: RDTs
B31: CM-2a: Proportion of confirmed malaria cases that received first-line antimalarial treatment according to national policy at public sector health facilities | C31: CM2a | D31: Age | E31: CM2aAge | F31: Case management | G31: <5 | H31: 5+
B32: CM-2b: Proportion of confirmed malaria cases that received first-line antimalarial treatment according to national policy in the community | C32: CM2b | D32: Age | E32: CM2bAge | F32: Case management | G32: <5 | H32: 5+
B33: CM-2c: Proportion of confirmed malaria cases that received first-line antimalarial treatment according to national policy at private sector sites | C33: CM2c | D33: Age | E33: CM2cAge | F33: Case management | G33: <5 | H33: 5+
B34: CM-3a: Proportion of estimated malaria cases (presumed and confirmed) that received first line antimalarial treatment at public sector health facilities | C34: CM3a | D34: Age | E34: CM3aAge | F34: Case management | G34: <5 | H34: 5+
B35: CM-3b: Proportion of estimated malaria cases (presumed and confirmed) that received first line anti-malarial treatment in the community | C35: CM3b | D35: Age | E35: CM3bAge | F35: Case management | G35: <5 | H35: 5+
B36: CM-3c: Proportion of estimated malaria cases (presumed and confirmed) that received first line anti-malarial treatment at private sector sites | C36: CM3c | D36: Age | E36: CM3cAge | F36: Case management | G36: <5 | H36: 5+
B37: HW-1: Number of health workers per 10,000 population (report on community health workers as applicable) | C37: HW1a | D37: Specialization | E37: HW1aSpecialization | F37: HSS - Health and community workforce | G37: Doctors | H37: Nurses | I37: Lab technicians | J37: Other - specify

Sheet WPTM_1C
A1: Ongoing Progress Update and Disbursement Request
A2: Grant number: | C2: =IF(#REF!=""," ",#REF!) -> 
A3: Component | C3: =IF(#REF!=""," ",#REF!) -> 
A4: PROGRESS UPDATE
A5: Progress Update - Reporting Period: | C5: Cycle: | D5: =IF(#REF!=""," ",#REF!) ->  | E5: Number: | F5: =IF(#REF!=""," ",#REF!) ->  | M5: Number: | N5: =IF(#REF!=""," ",#REF!) -> 
A6: Progress Update - Period Covered: | C6: Beginning Date: | D6: =IF(#REF!=""," ",#REF!) ->  | E6: End Date: | F6: =IF(#REF!=""," ",#REF!) ->  | M6: End Date: | N6: =IF(#REF!=""," ",#REF!) -> 
A7: Progress Update - Number:
A8: DISBURSEMENT REQUEST
A9: Disbursement Request - Disbursement Period: | C9: Cycle: | D9: =IF(#REF!=""," ",#REF!) ->  | E9: Number: | F9: =IF(#REF!=""," ",#REF!) ->  | M9: Number: | N9: =IF(#REF!=""," ",#REF!) -> 
A10: Disbursement Request - Period Covered: | C10: Beginning Date: | D10: =IF(#REF!=""," ",#REF!) ->  | E10: End Date: | F10: =IF(#REF!=""," ",#REF!) ->  | M10: End Date: | N10: =IF(#REF!=""," ",#REF!) -> 
A11: Disbursement Request - Number:
A12: =#REF! -> 
D13: Section 1: Programmatic Progress
D14: Note: Enter only the Workplan Tracking Measures that are due for the reporting period
A15: C- Workplan Tracking Measures | M15: LFA Use Only | U15: For the Global Fund Use Only
A16: Module | C16: Intervention | D16: Activity | E16: Activity details- milestones/ targets | F16: Criterion for completion | G16: Milestones/Target for the Current Period | H16: Country (relevant for multi-country grants) | I16: Target | J16: Progress Status | K16: Score | L16: Reasons for deviation from workplan activities and milestones | M16: Activity details- milestones/ targets | N16: Criterion for completion | O16: Milestones/Target for the Current Period | P16: Country (relevant for multi-country grants) | Q16: Progress Status | R16: Verified Score | S16: LFA analysis of progress and any variance between targets and results, and any other comments (this should not be a “Copy and Paste” of the reasons provided by the PR) | T16: Progress Status | U16: Validated Score | V16: Country Team Comments on Validated Score
B17: =SUBSTITUTE(SUBSTITUTE(SUBSTITUTE(SUBSTITUTE(SUBSTITUTE(SUBSTITUTE(SUBSTITUTE(A17," ",""),"-",""),"&",""),",",""),"/",""),")",""),"(","") ->  | K17: =IFERROR(VLOOKUP(J17,$AA$19:$AB$22,2,FALSE),"") ->  | R17: =IFERROR(VLOOKUP(Q17,$AA$19:$AB$22,2,FALSE),"") ->  | U17: =IFERROR(VLOOKUP(T17,$AA$19:$AB$22,2,FALSE),"") -> 
B18: =SUBSTITUTE(SUBSTITUTE(SUBSTITUTE(SUBSTITUTE(SUBSTITUTE(SUBSTITUTE(SUBSTITUTE(A18," ",""),"-",""),"&",""),",",""),"/",""),")",""),"(","") ->  | I18: - | K18: =IFERROR(VLOOKUP(J18,$AA$19:$AB$22,2,FALSE),"") ->  | R18: =IFERROR(VLOOKUP(Q18,$AA$19:$AB$22,2,FALSE),"") ->  | U18: =IFERROR(VLOOKUP(T18,$AA$19:$AB$22,2,FALSE),"") -> 
I19: - | AA19: Not Started | AB19: 0
I20: - | AA20: Started | AB20: 1
I21: - | AA21: Advancing | AB21: 2
I22: - | AA22: Completed | AB22: 3
I23: -
I24: -
I25: -
I26: -
I27: -
I28: -
I29: -
B30: =SUBSTITUTE(SUBSTITUTE(SUBSTITUTE(SUBSTITUTE(SUBSTITUTE(SUBSTITUTE(SUBSTITUTE(A30," ",""),"-",""),"&",""),",",""),"/",""),")",""),"(","") ->  | I30: - | K30: =IFERROR(VLOOKUP(J30,$AA$19:$AB$22,2,FALSE),"") ->  | R30: =IFERROR(VLOOKUP(Q30,$AA$19:$AB$22,2,FALSE),"") ->  | U30: =IFERROR(VLOOKUP(T30,$AA$19:$AB$22,2,FALSE),"") -> 
I31: -
I32: -
I33: -
I34: -
I35: -
I36: -
I37: -
I38: -
I39: -
I40: -
I41: -
I42: -
I43: -
I44: -
I45: -
I46: -
I47: -
I48: -
I49: -
I50: -
I51: -
I52: -
I53: -

Sheet Intervention By Modules old (hidden)
B6: Specific prevention interventions (SPI) | C6: Vector control | D6: Case management | E6: TBcareandprevention | F6: MDR-TB | G6: TB care and prevention | H6: MDR-TB | I6: Prevention programs for general population | J6: Prevention programs for MSM and TGs | K6: Prevention programs for people who inject drugs (PWID) and their partners | L6: Prevention programs for other vulnerable populations (please specify) | M6: Prevention programs for adolescents and youth, in and out of school | N6: Prevention programs for sex workers and their clients | O6: PMTCT | P6: Treatment, care and support | Q6: Prevention programs for general population | R6: Prevention programs for MSM and TGs | S6: Prevention programs for people who inject drugs (PWID) and their partners | T6: Prevention programs for other vulnerable populations (please specify) | U6: Prevention programs for adolescents and youth, in and out of school | V6: Prevention programs for sex workers and their clients | W6: PMTCT | X6: Treatment, care and support | Y6: TB/HIV | Z6: TB/HIV | AA6: TB/HIV | AB6: Removing legal barriers to access | AC6: HSS - Service delivery | AD6: HSS - Health and community workforce | AE6: HSS - Health information systems and M&E | AF6: Program management | AG6: HSS - Procurement supply chain management (PSCM) | AH6: HSS - Policy and governance | AI6: HSS - Healthcare financing | AJ6: HSS - Financial management | AK6: Removing legal barriers to access | AL6: HSS - Service delivery | AM6: HSS - Health and community workforce | AN6: HSS - Health information systems and M&E | AO6: Program management | AP6: HSS - Procurement supply chain management (PSCM) | AQ6: HSS - Policy and governance | AR6: HSS - Healthcare financing | AS6: HSS - Financial management | AT6: Removing legal barriers to access | AU6: HSS - Service delivery | AV6: HSS - Health and community workforce | AW6: HSS - Health information systems and M&E | AX6: Program management | AY6: HSS - Procurement supply chain management (PSCM) | AZ6: HSS - Policy and governance | BA6: HSS - Healthcare financing | BB6: HSS - Financial management | BC6: Removing legal barriers to access | BD6: HSS - Service delivery | BE6: HSS - Health and community workforce | BF6: HSS - Health information systems and M&E | BG6: Program management | BH6: HSS - Procurement supply chain management (PSCM) | BI6: HSS - Policy and governance | BJ6: HSS - Healthcare financing | BK6: HSS - Financial management | BL6: Removing legal barriers to access | BM6: HSS - Service delivery | BN6: HSS - Health and community workforce | BO6: HSS - Health information systems and M&E | BP6: Program management | BQ6: HSS - Procurement supply chain management (PSCM) | BR6: HSS - Policy and governance | BS6: HSS - Healthcare financing | BT6: HSS - Financial management | BU6: Community systems strengthening | BV6: Results-based Financing | BW6: Community systems strengthening | BX6: Results-based Financing | BY6: Community systems strengthening | BZ6: Results-based Financing | CA6: Community systems strengthening | CB6: Results-based Financing
B7: MalariaModule1 | C7: MalariaModule2 | D7: MalariaModule3 | E7: TuberculosisModule4 | F7: TuberculosisModule5 | G7: HIV/TBModule6 | H7: HIV/TBModule7 | I7: HIV/TBModule8 | J7: HIV/TBModule9 | K7: HIV/TBModule10 | L7: HIV/TBModule11 | M7: HIV/TBModule12 | N7: HIV/TBModule13 | O7: HIV/TBModule14 | P7: HIV/TBModule15 | Q7: HIV/AIDSModule16 | R7: HIV/AIDSModule17 | S7: HIV/AIDSModule18 | T7: HIV/AIDSModule19 | U7: HIV/AIDSModule20 | V7: HIV/AIDSModule21 | W7: HIV/AIDSModule22 | X7: HIV/AIDSModule23 | Y7: HIV/AIDSModule24 | Z7: TuberculosisModule25 | AA7: HIV/TBModule26 | AB7: HIV/AIDSModule27 | AC7: HIV/AIDSModule28 | AD7: HIV/AIDSModule29 | AE7: HIV/AIDSModule30 | AF7: HIV/AIDSModule31 | AG7: HIV/AIDSModule32 | AH7: HIV/AIDSModule33 | AI7: HIV/AIDSModule34 | AJ7: HIV/AIDSModule35 | AK7: TuberculosisModule36 | AL7: TuberculosisModule37 | AM7: TuberculosisModule38 | AN7: TuberculosisModule39 | AO7: TuberculosisModule40 | AP7: TuberculosisModule41 | AQ7: TuberculosisModule42 | AR7: TuberculosisModule43 | AS7: TuberculosisModule44 | AT7: Module45 | AU7: MalariaModule46 | AV7: MalariaModule47 | AW7: MalariaModule48 | AX7: MalariaModule49 | AY7: MalariaModule50 | AZ7: MalariaModule51 | BA7: MalariaModule52 | BB7: MalariaModule53 | BC7: Health Systems StrengtheningModule54 | BD7: Health Systems StrengtheningModule55 | BE7: Health Systems StrengtheningModule56 | BF7: Health Systems StrengtheningModule57 | BG7: Health Systems StrengtheningModule58 | BH7: Health Systems StrengtheningModule59 | BI7: Health Systems StrengtheningModule60 | BJ7: Health Systems StrengtheningModule61 | BK7: Health Systems StrengtheningModule62 | BL7: HIV/TBModule63 | BM7: HIV/TBModule64 | BN7: HIV/TBModule65 | BO7: HIV/TBModule66 | BP7: HIV/TBModule67 | BQ7: HIV/TBModule68 | BR7: HIV/TBModule69 | BS7: HIV/TBModule70 | BT7: HIV/TBModule71 | BU7: HIV/AIDSModule72 | BV7: HIV/AIDSModule73 | BW7: TuberculosisModule74 | BX7: TuberculosisModule75 | BY7: MalariaModule76 | BZ7: MalariaModule77 | CA7: HIV/TBModule78 | CB7: HIV/TBModule79
B8: Intermittent preventive treatment (IPT) - In pregnancy | C8: Long-lasting insecticidal nets (LLIN) - Mass campaign | D8: Facility-based treatment | E8: Case detection and diagnosis | F8: Case detection and diagnosis: MDR-TB | G8: Case detection and diagnosis | H8: Case detection and diagnosis: MDR-TB | I8: RMNCH linkages and gender-based violence (GBV) | J8: Behavioral change as part of programs for MSM and TGs | K8: Needle and Syringe programs as part of programs for PWID and their partners | L8: Condoms as part of programs for other vulnerable populations | M8: Behavioral change as part of programs for adolescent and youth | N8: Behavioral change as part of programs for sex workers and their clients | O8: Prong 1: Primary prevention of HIV infection among women of childbearing age | P8: Pre-ART care | Q8: RMNCH linkages and gender-based violence (GBV) | R8: Behavioral change as part of programs for MSM and TGs | S8: Needle and Syringe programs as part of programs for PWID and their partners | T8: Condoms as part of programs for other vulnerable populations | U8: Behavioral change as part of programs for adolescent and youth | V8: Behavioral change as part of programs for sex workers and their clients | W8: Prong 1: Primary prevention of HIV infection among women of childbearing age | X8: Pre-ART care | Y8: TB/HIV collaborative interventions | Z8: TB/HIV collaborative interventions | AA8: TB/HIV collaborative interventions | AB8: Legal and policy environment assessment and law reform | AC8: Service organization and facility management | AD8: Health and community workers capacity building | AE8: Administrative and finance data sources | AF8: Policy, planning, coordination and management | AG8: Operationalization of procurement and supply chain management system | AH8: Development and implementation of health legislation, strategies and policies | AI8: Financial sustainability | AJ8: Performance,transparency&accountability of financial management system in health | AK8: Legal and policy environment assessment and law reform | AL8: Service organization and facility management | AM8: Health and community workers capacity building | AN8: Administrative and finance data sources | AO8: Policy, planning, coordination and management | AP8: Operationalization of procurement and supply chain management system | AQ8: Development and implementation of health legislation, strategies and policies | AR8: Financial sustainability | AS8: Performance,transparency&accountability of financial management system in health | AT8: Legal and policy environment assessment and law reform | AU8: Service organization and facility management | AV8: Health and community workers capacity building | AW8: Administrative and finance data sources | AX8: Policy, planning, coordination and management | AY8: Operationalization of procurement and supply chain management system | AZ8: Development and implementation of health legislation, strategies and policies | BA8: Financial sustainability | BB8: Performance,transparency&accountability of financial management system in health | BC8: Legal and policy environment assessment and law reform | BD8: Service organization and facility management | BE8: Health and community workers capacity building | BF8: Administrative and finance data sources | BG8: Policy, planning, coordination and management | BH8: Operationalization of procurement and supply chain management system | BI8: Development and implementation of health legislation, strategies and policies | BJ8: Financial sustainability | BK8: Performance,transparency&accountability of financial management system in health | BL8: Legal and policy environment assessment and law reform | BM8: Service organization and facility management | BN8: Health and community workers capacity building | BO8: Administrative and finance data sources | BP8: Policy, planning, coordination and management | BQ8: Operationalization of procurement and supply chain management system | BR8: Development and implementation of health legislation, strategies and policies | BS8: Financial sustainability | BT8: Performance,transparency&accountability of financial management system in health | BU8: Community-based monitoring for accountability | BV8: Results-based financing | BW8: Community-based monitoring for accountability | BX8: Results-based financing | BY8: Community-based monitoring for accountability | BZ8: Results-based financing | CA8: Community-based monitoring for accountability | CB8: Results-based financing
B9: Intermittent preventive treatment (IPT) - In infancy | C9: Long-lasting insecticidal nets (LLIN) - Continuous distribution | D9: Epidemic preparedness and response | E9: Treatment | F9: Treatment: MDR-TB | G9: Treatment | H9: Treatment: MDR-TB | I9: Other interventions for general population - Please specify | J9: Condoms as part of programs for MSM and TGs | K9: OST and other drug dependence treatment (PWIDs and their partners) | L9: Behavioral change as part of programs for other vulnerable populations | M9: Condoms part of programs for adolescent and youth | N9: Condoms as part of programs for sex workers and their clients | O9: Prong 2: Preventing unintended pregnancies among women living with HIV | P9: Antiretroviral Therapy (ART) | Q9: Other interventions for general population - Please specify | R9: Condoms as part of programs for MSM and TGs | S9: OST and other drug dependence treatment (PWIDs and their partners) | T9: Behavioral change as part of programs for other vulnerable populations | U9: Condoms part of programs for adolescent and youth | V9: Condoms as part of programs for sex workers and their clients | W9: Prong 2: Preventing unintended pregnancies among women living with HIV | X9: Antiretroviral Therapy (ART) | Y9: Engaging all care providers | Z9: Engaging all care providers | AA9: Engaging all care providers | AB9: Legal aid services and legal literacy | AC9: Improving laboratory systems | AD9: Scaling up health and community workers | AE9: Vital registration system | AF9: Grant management | AG9: PSM infrastructure and development of tools | AH9: Monitoring and reporting implementation of laws and policies | AI9: Equity of healthcare financing | AK9: Legal aid services and legal literacy | AL9: Improving laboratory systems | AM9: Scaling up health and community workers | AN9: Vital registration system | AO9: Grant management | AP9: PSM infrastructure and development of tools | AQ9: Monitoring and reporting implementation of laws and policies | AR9: Equity of healthcare financing | AT9: Legal aid services and legal literacy | AU9: Improving laboratory systems | AV9: Scaling up health and community workers | AW9: Vital registration system | AX9: Grant management | AY9: PSM infrastructure and development of tools | AZ9: Monitoring and reporting implementation of laws and policies | BA9: Equity of healthcare financing | BC9: Legal aid services and legal literacy | BD9: Improving laboratory systems | BE9: Scaling up health and community workers | BF9: Vital registration system | BG9: Grant management | BH9: PSM infrastructure and development of tools | BI9: Monitoring and reporting implementation of laws and policies | BJ9: Equity of healthcare financing | BL9: Legal aid services and legal literacy | BM9: Improving laboratory systems | BN9: Scaling up health and community workers | BO9: Vital registration system | BP9: Grant management | BQ9: PSM infrastructure and development of tools | BR9: Monitoring and reporting implementation of laws and policies | BS9: Equity of healthcare financing | BU9: Advocacy for social accountability | BW9: Advocacy for social accountability | BY9: Advocacy for social accountability | CA9: Advocacy for social accountability
B10: Seasonal malaria chemoprevention | C10: Indoor residual spraying (IRS) | D10: Integrated community case management (ICCM) | E10: Prevention | F10: Prevention for MDR-TB | G10: Prevention | H10: Prevention for MDR-TB | I10: Behavioral change as part of programs for general population | J10: HIV testing and counseling as part of programs for MSM and TGs | K10: Diagnosis and treatment of viral hepatitis (PWIDs and their partners) | L10: Diagnosis and treatment of STIs (other vulnerable populations) | M10: HIV testing and counseling as part of programs for adolescent and youth | N10: HIV testing and counseling as part of programs for sex workers and their clients | O10: Prong 3: Preventing vertical HIV transmission | P10: Treatment monitoring | Q10: Behavioral change as part of programs for general population | R10: HIV testing and counseling as part of programs for MSM and TGs | S10: Diagnosis and treatment of viral hepatitis (PWIDs and their partners) | T10: Diagnosis and treatment of STIs (other vulnerable populations) | U10: HIV testing and counseling as part of programs for adolescent and youth | V10: HIV testing and counseling as part of programs for sex workers and their clients | W10: Prong 3: Preventing vertical HIV transmission | X10: Treatment monitoring | Y10: Community TB care delivery | Z10: Community TB care delivery | AA10: Community TB care delivery | AB10: Community-based monitoring of legal rights | AC10: Improving service delivery infrastructure | AD10: Retention and distribution of health and community workers | AE10: Routine reporting | AF10: Supporting procurement and supply management | AK10: Community-based monitoring of legal rights | AL10: Improving service delivery infrastructure | AM10: Retention and distribution of health and community workers | AN10: Routine reporting | AO10: Supporting procurement and supply management | AT10: Community-based monitoring of legal rights | AU10: Improving service delivery infrastructure | AV10: Retention and distribution of health and community workers | AW10: Routine reporting | AX10: Supporting procurement and supply management | BC10: Community-based monitoring of legal rights | BD10: Improving service delivery infrastructure | BE10: Retention and distribution of health and community workers | BF10: Routine reporting | BG10: Supporting procurement and supply management | BL10: Community-based monitoring of legal rights | BM10: Improving service delivery infrastructure | BN10: Retention and distribution of health and community workers | BO10: Routine reporting | BP10: Supporting procurement and supply management | BU10: Social mobilization, building community linkages, collaboration and coordination | BW10: Social mobilization, building community linkages, collaboration and coordination | BY10: Social mobilization, building community linkages, collaboration and coordination | CA10: Social mobilization, building community linkages, collaboration and coordination
B11: IEC/BCC | C11: Other vector control measures | D11: Active case detection and investigation (elimination phase) | E11: Other | F11: Other | G11: Other | H11: Other | I11: Condoms as part of programs for general population | J11: Diagnosis and treatment of STIs as part of programs for MSM and TGs | K11: Other interventions for IDUs and their partners - Please specify | L11: Other interventions for other vulnerable populations - Please specify | M11: RMNCH linkages and GBV as part of programs for adolescent youth | N11: Diagnosis and treatment of STIs (sex workers and their clients) | O11: Prong 4: Treatment, care & support to mothers living with HIV, their children & | P11: Treatment adherence | Q11: Condoms as part of programs for general population | R11: Diagnosis and treatment of STIs as part of programs for MSM and TGs | S11: Other interventions for IDUs and their partners - Please specify | T11: Other interventions for other vulnerable populations - Please specify | U11: RMNCH linkages and GBV as part of programs for adolescent youth | V11: Diagnosis and treatment of STIs (sex workers and their clients) | W11: Prong 4: Treatment, care & support to mothers living with HIV, their children & | X11: Treatment adherence | Y11: Key Affected Populations | Z11: Key Affected Populations | AA11: Key Affected Populations | AB11: Policy advocacy on legal rights | AC11: Other | AE11: Analysis, review and transparency | AK11: Policy advocacy on legal rights | AL11: Other | AN11: Analysis, review and transparency | AT11: Policy advocacy on legal rights | AU11: Other | AW11: Analysis, review and transparency | BC11: Policy advocacy on legal rights | BD11: Other | BF11: Analysis, review and transparency | BL11: Policy advocacy on legal rights | BM11: Other | BO11: Analysis, review and transparency | BU11: Institutional capacity building, planning and leadership development | BW11: Institutional capacity building, planning and leadership development | BY11: Institutional capacity building, planning and leadership development | CA11: Institutional capacity building, planning and leadership development
B12: Other | C12: Entomological monitoring | D12: Therapeutic efficacy surveillance | I12: Male circumcision | J12: Diagnosis and treatment of viral hepatitis as part of programs for MSM and TGs | K12: Behavioural change as part of programs for PWID and their partners | L12: HIV testing and counseling as part of programs for other vulnerable populations | M12: Young Key Population interventions as part of programs for adolescent and youth | N12: Harm reduction as part of programs for sex workers and their clients | O12: Other interventions for PMTCT- Please specify | P12: Prevention, diagnosis and treatment of opportunistic infections | Q12: Male circumcision | R12: Diagnosis and treatment of viral hepatitis as part of programs for MSM and TGs | S12: Behavioural change as part of programs for PWID and their partners | T12: HIV testing and counseling as part of programs for other vulnerable populations | U12: Young Key Population interventions as part of programs for adolescent and youth | V12: Harm reduction as part of programs for sex workers and their clients | W12: Other interventions for PMTCT- Please specify | X12: Prevention, diagnosis and treatment of opportunistic infections | Y12: Collaborative activities with other programs and sectors | Z12: Collaborative activities with other programs and sectors | AA12: Collaborative activities with other programs and sectors | AB12: Training on rights for officials, health workers and police | AE12: Surveys | AK12: Training on rights for officials, health workers and police | AN12: Surveys | AT12: Training on rights for officials, health workers and police | AW12: Surveys | BC12: Training on rights for officials, health workers and police | BF12: Surveys | BL12: Training on rights for officials, health workers and police | BO12: Surveys
C13: Other | D13: Severe malaria | I13: HIV testing and counseling as part of programs for general population | J13: Other interventions for MSM and TGs - Please specify | K13: Condoms as part of programs for PWID and their partners | L13: Condoms as part of programs for other vulnerable populations | M13: Other interventions for adolescent and youth | N13: Other interventions for sex workers and their clients - Please specify | P13: Counseling and psycho-social support | Q13: HIV testing and counseling as part of programs for general population | R13: Other interventions for MSM and TGs - Please specify | S13: Condoms as part of programs for PWID and their partners | T13: Condoms as part of programs for other vulnerable populations | U13: Other interventions for adolescent and youth | V13: Other interventions for sex workers and their clients - Please specify | X13: Counseling and psycho-social support
D14: Private sector co-payment mechanism | I14: Diagnosis and treatment of STIs as part of programs for general population | K14: Diagnosis and treatment of STIs as part of programs for PWID and their partners | L14: Behavioral change as part of programs for other vulnerable populations | P14: Out-patient care | Q14: Diagnosis and treatment of STIs as part of programs for general population | S14: Diagnosis and treatment of STIs as part of programs for PWID and their partners | T14: Behavioral change as part of programs for other vulnerable populations | X14: Out-patient care
D15: Private sector case management (other) | I15: Blood safety | K15: Needle and Syringe programs as part of programs for PWID and their partners | L15: Diagnosis and treatment of STIs (other vulnerable populations) | P15: In-patient care | Q15: Blood safety | S15: Needle and Syringe programs as part of programs for PWID and their partners | T15: Diagnosis and treatment of STIs (other vulnerable populations) | X15: In-patient care
K16: OST and other drug dependence treatment (PWIDs and their partners) | L16: Other interventions for other vulnerable populations - Please specify | P16: Other interventions for treatment - Please specify | S16: OST and other drug dependence treatment (PWIDs and their partners) | T16: Other interventions for other vulnerable populations - Please specify | X16: Other interventions for treatment - Please specify
K17: Diagnosis and treatment of viral hepatitis (PWIDs and their partners) | L17: HIV testing and counseling as part of programs for other vulnerable populations | S17: Diagnosis and treatment of viral hepatitis (PWIDs and their partners) | T17: HIV testing and counseling as part of programs for other vulnerable populations
K18: Behavioural change as part of programs for PWID and their partners | S18: Behavioural change as part of programs for PWID and their partners
K19: Condoms as part of programs for PWID and their partners | S19: Condoms as part of programs for PWID and their partners
K20: Diagnosis and treatment of STIs as part of programs for PWID and their partners | S20: Diagnosis and treatment of STIs as part of programs for PWID and their partners

Sheet Intervention By Modules (hidden)
B3: SpecificpreventioninterventionsSPI | C3: Vectorcontrol | D3: Casemanagement | E3: TBcareandprevention | F3: MDR-TB | G3: Preventionprogramsforgeneralpopulation | H3: PreventionprogramsforMSMandTGs | I3: PreventionprogramsforpeoplewhoinjectdrugsPWIDandtheirpartners | J3: Preventionprogramsforothervulnerablepopulationspleasespecify | K3: Preventionprogramsforadolescentsandyouthinandoutofschool | L3: Preventionprogramsforsexworkersandtheirclients | M3: PMTCT | N3: Treatmentcareandsupport | O3: TBHIV | P3: Removinglegalbarrierstoaccess | Q3: HSSServicedelivery | R3: HSSHealthandcommunityworkforce | S3: HSSHealthinformationsystemsandME | T3: Programmanagement | U3: HSSProcurementsupplychainmanagementPSCM | V3: HSSPolicyandgovernance | W3: HSS-Healthcarefinancing | X3: HSSFinancialmanagement | Y3: Communitysystemsstrengthening | Z3: Results basedFinancing
B4: Intermittent preventive treatment (IPT) - In pregnancy | C4: Long-lasting insecticidal nets (LLIN) - Mass campaign | D4: Facility-based treatment | E4: Case detection and diagnosis | F4: Case detection and diagnosis: MDR-TB | G4: RMNCH linkages and gender-based violence (GBV) | H4: Behavioral change as part of programs for MSM and TGs | I4: Needle and Syringe programs as part of programs for PWID and their partners | J4: Condoms as part of programs for other vulnerable populations | K4: Behavioral change as part of programs for adolescent and youth | L4: Behavioral change as part of programs for sex workers and their clients | M4: Prong 1: Primary prevention of HIV infection among women of childbearing age | N4: Pre-ART care | O4: TB/HIV collaborative interventions | P4: Legal and policy environment assessment and law reform | Q4: Service organization and facility management | R4: Health and community workers capacity building | S4: Administrative and finance data sources | T4: Policy, planning, coordination and management | U4: Operationalization of procurement and supply chain management system | V4: Development and implementation of health legislation, strategies and policies | W4: Financial sustainability | X4: Performance,transparency&accountability of financial management system in health | Y4: Community-based monitoring for accountability | Z4: Results-based financing
B5: Intermittent preventive treatment (IPT) - In infancy | C5: Long-lasting insecticidal nets (LLIN) - Continuous distribution | D5: Epidemic preparedness and response | E5: Treatment | F5: Treatment: MDR-TB | G5: Other interventions for general population - Please specify | H5: Condoms as part of programs for MSM and TGs | I5: OST and other drug dependence treatment (PWIDs and their partners) | J5: Behavioral change as part of programs for other vulnerable populations | K5: Condoms part of programs for adolescent and youth | L5: Condoms as part of programs for sex workers and their clients | M5: Prong 2: Preventing unintended pregnancies among women living with HIV | N5: Antiretroviral Therapy (ART) | O5: Engaging all care providers | P5: Legal aid services and legal literacy | Q5: Improving laboratory systems | R5: Scaling up health and community workers | S5: Vital registration system | T5: Grant management | U5: PSM infrastructure and development of tools | V5: Monitoring and reporting implementation of laws and policies | W5: Equity of healthcare financing | Y5: Advocacy for social accountability
B6: Seasonal malaria chemoprevention | C6: Indoor residual spraying (IRS) | D6: Integrated community case management (ICCM) | E6: Prevention | F6: Prevention for MDR-TB | G6: Behavioral change as part of programs for general population | H6: HIV testing and counseling as part of programs for MSM and TGs | I6: Diagnosis and treatment of viral hepatitis (PWIDs and their partners) | J6: Diagnosis and treatment of STIs (other vulnerable populations) | K6: HIV testing and counseling as part of programs for adolescent and youth | L6: HIV testing and counseling as part of programs for sex workers and their clients | M6: Prong 3: Preventing vertical HIV transmission | N6: Treatment monitoring | O6: Community TB care delivery | P6: Community-based monitoring of legal rights | Q6: Improving service delivery infrastructure | R6: Retention and distribution of health and community workers | S6: Routine reporting | T6: Supporting procurement and supply management | Y6: Social mobilization, building community linkages, collaboration and coordination
B7: IEC/BCC | C7: Other vector control measures | D7: Active case detection and investigation (elimination phase) | E7: Other | F7: Other | G7: Condoms as part of programs for general population | H7: Diagnosis and treatment of STIs as part of programs for MSM and TGs | I7: Other interventions for IDUs and their partners - Please specify | J7: Other interventions for other vulnerable populations - Please specify | K7: RMNCH linkages and GBV as part of programs for adolescent youth | L7: Diagnosis and treatment of STIs (sex workers and their clients) | M7: Prong 4: Treatment, care & support to mothers living with HIV, their children & | N7: Treatment adherence | O7: Key Affected Populations | P7: Policy advocacy on legal rights | Q7: Other | S7: Analysis, review and transparency | Y7: Institutional capacity building, planning and leadership development
B8: Other | C8: Entomological monitoring | D8: Therapeutic efficacy surveillance | G8: Male circumcision | H8: Diagnosis and treatment of viral hepatitis as part of programs for MSM and TGs | I8: Behavioural change as part of programs for PWID and their partners | J8: HIV testing and counseling as part of programs for other vulnerable populations | K8: Young Key Population interventions as part of programs for adolescent and youth | L8: Harm reduction as part of programs for sex workers and their clients | M8: Other interventions for PMTCT- Please specify | N8: Prevention, diagnosis and treatment of opportunistic infections | O8: Collaborative activities with other programs and sectors | P8: Training on rights for officials, health workers and police | S8: Surveys
C9: Other | D9: Severe malaria | G9: HIV testing and counseling as part of programs for general population | H9: Other interventions for MSM and TGs - Please specify | I9: Condoms as part of programs for PWID and their partners | J9: Condoms as part of programs for other vulnerable populations | K9: Other interventions for adolescent and youth | L9: Other interventions for sex workers and their clients - Please specify | N9: Counseling and psycho-social support
D10: Private sector co-payment mechanism | G10: Diagnosis and treatment of STIs as part of programs for general population | I10: Diagnosis and treatment of STIs as part of programs for PWID and their partners | J10: Behavioral change as part of programs for other vulnerable populations | N10: Out-patient care
D11: Private sector case management (other) | G11: Blood safety | I11: Needle and Syringe programs as part of programs for PWID and their partners | J11: Diagnosis and treatment of STIs (other vulnerable populations) | N11: In-patient care
I12: OST and other drug dependence treatment (PWIDs and their partners) | J12: Other interventions for other vulnerable populations - Please specify | N12: Other interventions for treatment - Please specify
I13: Diagnosis and treatment of viral hepatitis (PWIDs and their partners) | J13: HIV testing and counseling as part of programs for other vulnerable populations
I14: Other interventions for IDUs and their partners - Please specify
I15: Behavioural change as part of programs for PWID and their partners
I16: Condoms as part of programs for PWID and their partners
I17: Diagnosis and treatment of STIs as part of programs for PWID and their partners

Sheet PR Cash Reconciliation_2A,B,C
A4: Ongoing Progress Update and Disbursement Request
B6: Grant Name: | C6: =+#REF! -> 
B7: (Disease) Component | C7: =+#REF! -> 
B8: GA Number | C8: =#REF! -> 
B10: PROGRESS UPDATE
B11: Progress Update - Reporting Period: | G11: Cycle: | H11: =+#REF! ->  | I11: Number: | J11: =+#REF! -> 
B12: Progress Update - Period Covered: | G12: Beginning Date: | H12: =+#REF! ->  | I12: End Date: | J12: =+#REF! -> 
B13: Progress Update - Number:
B15: DISBURSEMENT REQUEST
B16: Disbursement Request - Disbursement Period: | G16: Cycle: | H16: =+#REF! ->  | I16: Number: | J16: =+#REF! -> 
B17: Disbursement Request - Period Covered: | G17: Beginning Date: | H17: =+#REF! ->  | I17: End Date: | J17: =+#REF! -> 
B18: Disbursement Request - Number:
A20: Section 2: Financial Information
B25: A. Principal Recipient Cash Reconciliation Statement in Grant Currency
C26: Principal Recipient | F26: For LFA Use Only | J26: For the Global Fund Use Only
A27: Item No. | B27: Description | C27: Cumulative for Previous Periods | D27: Current Reporting Period | E27: Comments | F27: Cumulative for Previous Periods as validated by Global Fund | G27: LFA Adjustments on Current Reporting Period | H27: As verified by LFA | I27: Comments | J27: CT Adjustments (incl. External Audit adjustments) | K27: The Global Fund Validated Figures | L27: Comments
A28: 1.1 | B28: Cash Balance: Beginning of the Period | C28: 0 | D28: 2351877.639 | G28: 0 | H28: =D28+G28 -> 2351877.639 | J28: 0 | K28: =H28+J28 -> 2351877.639
B29: 2. Grant Income
B30: Add:
A31: 2.1 | B31: Disbursement made to the Principal Recipient | C31: =4418100+438789+3576040.99+550879+1768890.77 -> 10752699.76 | D31: 0 | F31: 0 | G31: 0 | H31: =D31+G31 -> 0 | J31: 0 | K31: =H31+J31 -> 0
A32: 2.2 | B32: Disbursement to third parties by the Global Fund on behalf of the Principal Recipient | C32: =193752.19+1021728.79-200-193752.19 -> 1021528.79 | D32: 0 | F32: 0 | G32: 0 | H32: =D32+G32 -> 0 | J32: 0 | K32: =H32+J32 -> 0
A33: 2.3 | B33: Interest received on bank accounts | C33: 0 | D33: 0 | F33: 0 | G33: 0 | H33: =D33+G33 -> 0 | J33: 0 | K33: 0
A34: 2.4 | B34: Revenue from income-generating activities (if applicable) | C34: 0 | D34: 0 | F34: 0 | G34: 0 | H34: =D34+G34 -> 0 | J34: 0 | K34: 0
A35: 2.5 | B35: Other income, if applicable (e.g. VAT/Other Tax returns, income from disposal of assets etc.) | C35: =15970.48+34589.41+64813/2.6872 -> 74679.04749 | D35: =25968.19+(58200.42+42201.28)/2.7206+30084.34/2.533+32345.24/2.3934 -> 88263.74698 | E35: VAT refund | F35: 0 | G35: 0 | H35: =D35+G35 -> 88263.74698 | J35: 0 | K35: 88263.74698
A36: 2.6 | B36: Total Grant Income | C36: =SUM(C31:C35) -> 11848907.6 | D36: =SUM(D31:D35) -> 88263.74698 | F36: =SUM(F31:F35) -> 0 | G36: =SUM(G31:G35) -> 0 | H36: =SUM(H31:H35) -> 88263.74698 | J36: =SUM(J31:J35) -> 0 | K36: =SUM(K31:K35) -> 88263.74698
B37: 3. Grant Cash Outflows
B38: Less:
A39: 3.1 | B39: Principal Recipient Expenditure (including payments and other advance payments) | C39: 3164903.235 | D39: 603247.176 | F39: 0 | G39: 0 | H39: =D39+G39 -> 603247.176 | J39: 0 | K39: =H39+J39 -> 603247.176
A40: 3.2 | B40: Disbursement to third parties by the Global Fund on behalf of the Principal Recipient | C40: =C32 -> 1021528.79 | D40: =D32 -> 0 | F40: =F32 -> 0 | G40: 0 | H40: =D40+G40 -> 0 | J40: =J32 -> 0 | K40: =H40+J40 -> 0
A41: 3.3 | B41: Principal Recipient disbursement to sub-recipients | C41: 5290064.774 | D41: 1701767.087 | F41: 0 | G41: 0 | H41: =D41+G41 -> 1701767.087 | J41: 0 | K41: =H41+J41 -> 1701767.087
A42: 3.4 | B42: Bank charges on disbursements and payments | C42: 300 | D42: 0 | F42: 0 | G42: 0 | H42: =D42+G42 -> 0 | J42: 0 | K42: 0
A43: 3.5 | B43: Total Grant Cash Outflows | C43: =SUM(C39:C42) -> 9476796.798 | D43: =SUM(D39:D42) -> 2305014.263 | F43: =SUM(F39:F42) -> 0 | G43: =SUM(G39:G42) -> 0 | H43: =SUM(H39:H42) -> 2305014.263 | J43: =SUM(J39:J42) -> 0 | K43: =SUM(K39:K42) -> 2305014.263
B44: 4. Reconciling Adjustments
A45: 4.1 | B45: Other reconciliation adjustments (including for prior periods) | C45: 0 | D45: 0 | F45: 0 | G45: 0 | H45: =D45+G45 -> 0 | J45: 0 | K45: =H45+J45 -> 0
A46: 4.2 | B46: Net exchange gains/losses on translation of balances | C46: -20233.16 | D46: 87736.68 | F46: 0 | G46: 0 | H46: =D46+G46 -> 87736.68 | J46: 0 | K46: =H46+J46 -> 87736.68
A47: 4.3 | B47: Ineligible transactions from previous periods for which justification was approved by the Global Fund | C47: 0 | D47: 0 | F47: 0 | G47: 0 | H47: =D47+G47 -> 0 | J47: 0 | K47: 0
A48: 4.4 | B48: Reimbursement of ineligible transaction from previous periods | C48: 0 | D48: 0 | F48: 0 | G48: 0 | H48: =D48+G48 -> 0 | J48: 0 | K48: 0
B49: 5. Total Cash Balances: End of the reporting period
A50: 5.1 | B50: Principal Recipient Cash Balance | C50: 0 | D50: =(D28+D36-D43)+D45+D46+D48 -> 222863.8029 | G50: =(G36-G43)+G46+G45 -> 0 | H50: =(H28+H36-H43)+H45+H46-H47 -> 222863.8029 | J50: =J28+J36-J43+J46+J45 -> 0 | K50: =K28+K36-K43+K46+K45-K47 -> 222863.8029
A51: 5.2 | B51: Sub-Recipient Cash Balance | C51: 0 | D51: ='SR_Cash Reconciliation_2D'!H74 -> 0 | G51: ='SR_Cash Reconciliation_2D'!K74 -> 0 | H51: ='SR_Cash Reconciliation_2D'!L74 -> 0 | J51: 0 | K51: =+H51+J51 -> 0
A52: 5.3 | B52: Total Cash Balance | C52: =C50+C51 -> 0 | D52: =D50+D51 -> 222863.8029 | F52: =F50+F51 -> 0 | G52: =G50+G51 -> 0 | H52: =H50+H51 -> 222863.8029 | J52: =J50+J51 -> 0 | K52: =K50+K51 -> 222863.8029
B53: 6. Commitments & Other Obligations
A54: 6.1 | B54: Unpaid invoices, accrued expenditure for severance pay, leave and other liabilities | C54: 0 | D54: 0 | F54: 0 | G54: 0 | H54: =D54+G54 -> 0 | J54: 0 | K54: =H54+J54 -> 0
A55: 6.2 | B55: Open legal obligations (including signed contracts not yet invoiced) | C55: 0 | D55: 0 | F55: 0 | G55: 0 | H55: =D55+G55 -> 0 | J55: 0 | K55: =H55+J55 -> 0
A56: 6.3 | B56: Tenders and/or procurement contracts initiated but not yet signed as contracts | C56: 0 | D56: 0 | F56: 0 | G56: 0 | H56: =D56+G56 -> 0 | J56: 0 | K56: =H56+J56 -> 0
A57: 6.4 | B57: Total Commitments & Other Obligations | C57: =SUM(C54:C56) -> 0 | D57: =SUM(D54:D56) -> 0 | F57: =SUM(F54:F56) -> 0 | G57: =SUM(G54:G56) -> 0 | H57: =SUM(H54:H56) -> 0 | J57: =SUM(J54:J56) -> 0 | K57: =SUM(K54:K56) -> 0
B59: B. Principal Recipient Bank Statement Balance & Cash In Transit in Grant Currency
C60: Principal Recipient | F60: For LFA Use Only | J60: For the Global Fund Use Only
D61: As At End of Current Reporting Period | E61: Comments | G61: LFA Adjustments on Current Reporting Period | H61: As verified by LFA | I61: Comments | J61: CT Adjustments | K61: The Global Fund Validated Figures | L61: Comments
A62: 7.1 | B62: Principal Recipient Cash Balance as per bank statements (For Information Only): | D62: =581295.64/2.6083 -> 222863.7963 | E62: The amount corresponds to GEL 581,295.64 | G62: 0 | H62: =D62+G62 -> 222863.7963 | J62: 0 | K62: =H62+J62 -> 222863.7963
A63: 7.2 | B63: Cash in Transit for the reporting period | D63: 0 | G63: 0 | H63: =D63+G63 -> 0 | J63: 0 | K63: =H63+J63 -> 0
A64: 7.3 | B64: Cash in Transit after the current reporting period | D64: 0 | G64: 0 | H64: =D64+G64 -> 0 | J64: 0 | K64: 0
B66: C. Principal Recipient Ineligible Transactions in Grant Currency
C67: Principal Recipient | F67: For LFA Use Only | J67: For the Global Fund Use Only
C68: Cumulative for Previous Periods | D68: Current Reporting Period | E68: Comments | F68: Cumulative for Previous Periods as validated by Global Fund | G68: LFA Adjustments on Current Reporting Period | H68: As verified by LFA | I68: Comments | J68: CT Adjustments | K68: The Global Fund Validated Figures | L68: Comments
A69: 8.1 | B69: Ineligible transactions validated for the reporting period | C69: 0 | D69: 0 | F69: 0 | G69: =G52 -> 0 | H69: =D69+G69 -> 0 | J69: 0 | K69: =H69+J69 -> 0
A70: 8.2 | B70: Ineligible transactions from previous periods for which justification was approved by the Global Fund | C70: =C47 -> 0 | D70: =D47 -> 0 | F70: =F47 -> 0 | G70: =G47 -> 0 | H70: =D70+G70 -> 0 | J70: =J47 -> 0 | K70: =H70+J70 -> 0
A71: 8.3 | B71: Reimbursement of ineligible transactions from previous periods | C71: =C48 -> 0 | D71: =D48 -> 0 | F71: =F48 -> 0 | G71: =G48 -> 0 | H71: =D71+G71 -> 0 | J71: =J48 -> 0 | K71: 0
A72: 8.4 | B72: Cumulative ineligible transactions for the implementation period | C72: 0 | D72: =D69+C72 -> 0 | F72: 0 | G72: =H69 -> 0 | H72: =F72+G72 -> 0 | J72: 0 | K72: =H72+J72 -> 0
A73: 8.5 | B73: Open ineligible transactions to be justified and/or reimbursed | C73: =C72-C70-C71 -> 0 | D73: =C73+D69-D70-D71 -> 0 | F73: 0 | H73: =H72-F70-F71-H70-H71 -> 0 | J73: 0 | K73: =K72-J70-J71-K70-K71 -> 0

Sheet SR_Cash Reconciliation_2D (hidden)
A1: Ongoing Progress Update and Disbursement Request
A3: Grant Name: | B3: =+#REF! -> 
A4: (Disease) Component | B4: =#REF! -> 
A6: PROGRESS UPDATE
A7: Progress Update - Reporting Period: | D7: Cycle: | E7: =+#REF! ->  | F7: Number: | G7: =+#REF! -> 
A8: Progress Update - Period Covered: | D8: Beginning Date: | E8: =+#REF! ->  | F8: End Date: | G8: =+#REF! -> 
A9: Progress Update - Number:
A11: DISBURSEMENT REQUEST
A12: Disbursement Request - Disbursement Period: | D12: Cycle: | E12: =+#REF! ->  | F12: Number: | G12: =+#REF! -> 
A13: Disbursement Request - Period Covered: | D13: Beginning Date: | E13: =+#REF! ->  | F13: End Date: | G13: =+#REF! -> 
A14: Disbursement Request - Number:
A17: Section 2: Financial Information
A20: D. Principal Recipient Reconciliation of funds provided to Sub-Recipients for the Current Implementation Period
A22: Principal Recipient | K22: For Local Fund Agent Use Only | N22: For the Global Fund Use Only
A23: (1) Sub-Recipient Name | B23: (2) Cumulative Sub-Recipient expenses for prior periods at Principal Recipient level | C23: (3) Sub-Recipient Open Advances at Principal Recipient Level | D23: (4) Disbursements made by Principal Recipient during the Reporting Period | E23: (5) Other Income* during the Reporting Period | F23: (6) Expenditure validated by Principal Recipient during the Reporting Period | G23: (7) Sub-Recipient Closing Balance at Principal Recipient Level | H23: (8) Actual Sub-Recipient Cash Balance (if applicable) | I23: (9) Variances on Sub-Recipient Balances | J23: Comments | K23: LFA Adjustments | L23: As verified by LFA | M23: Comments | N23: Country Team Adjustments (incl. External Audit adjustments) | O23: The Global Fund Validated Figures | P23: Comments
B24: 0 | C24: 0 | D24: 0 | E24: 0 | F24: 0 | G24: =+C24+D24+E24-F24 -> 0 | H24: 0 | I24: =+H24-G24 -> 0 | L24: =H24+K24 -> 0 | O24: =L24+N24 -> 0
B25: 0 | C25: 0 | D25: 0 | E25: 0 | F25: 0 | G25: =+C25+D25+E25-F25 -> 0 | H25: 0 | I25: 0 | L25: =H25+K25 -> 0 | O25: 0
B26: 0 | C26: 0 | D26: 0 | E26: 0 | F26: 0 | G26: 0 | H26: 0 | I26: 0 | L26: 0 | O26: 0
B27: 0 | C27: 0 | D27: 0 | E27: 0 | F27: 0 | G27: 0 | H27: 0 | I27: 0 | L27: 0 | O27: 0
B28: 0 | C28: 0 | D28: 0 | E28: 0 | F28: 0 | G28: 0 | H28: 0 | I28: 0 | L28: 0 | O28: 0
B29: 0 | C29: 0 | D29: 0 | E29: 0 | F29: 0 | G29: 0 | H29: 0 | I29: 0 | L29: 0 | O29: 0
B30: 0 | C30: 0 | D30: 0 | E30: 0 | F30: 0 | G30: 0 | H30: 0 | I30: 0 | L30: 0 | O30: 0
B31: 0 | C31: 0 | D31: 0 | E31: 0 | F31: 0 | G31: 0 | H31: 0 | I31: 0 | L31: 0 | O31: 0
B32: 0 | C32: 0 | D32: 0 | E32: 0 | F32: 0 | G32: 0 | H32: 0 | I32: 0 | L32: 0 | O32: 0
B33: 0 | C33: 0 | D33: 0 | E33: 0 | F33: 0 | G33: 0 | H33: 0 | I33: 0 | L33: 0 | O33: 0
B34: 0 | C34: 0 | D34: 0 | E34: 0 | F34: 0 | G34: 0 | H34: 0 | I34: 0 | L34: 0 | O34: 0
B35: 0 | C35: 0 | D35: 0 | E35: 0 | F35: 0 | G35: 0 | H35: 0 | I35: 0 | L35: 0 | O35: 0
B36: 0 | C36: 0 | D36: 0 | E36: 0 | F36: 0 | G36: 0 | H36: 0 | I36: 0 | L36: 0 | O36: 0
B37: 0 | C37: 0 | D37: 0 | E37: 0 | F37: 0 | G37: 0 | H37: 0 | I37: 0 | L37: 0 | O37: 0
B38: 0 | C38: 0 | D38: 0 | E38: 0 | F38: 0 | G38: 0 | H38: 0 | I38: =+H38-G38 -> 0 | L38: =H38+K38 -> 0 | O38: =L38+N38 -> 0
B39: 0 | C39: 0 | D39: 0 | E39: 0 | F39: 0 | G39: 0 | H39: 0 | I39: 0 | L39: 0 | O39: 0
B40: 0 | C40: 0 | D40: 0 | E40: 0 | F40: 0 | G40: 0 | H40: 0 | I40: 0 | L40: 0 | O40: 0
B41: 0 | C41: 0 | D41: 0 | E41: 0 | F41: 0 | G41: 0 | H41: 0 | I41: 0 | L41: 0 | O41: 0
B42: 0 | C42: 0 | D42: 0 | E42: 0 | F42: 0 | G42: 0 | H42: 0 | I42: 0 | L42: 0 | O42: 0
B43: 0 | C43: 0 | D43: 0 | E43: 0 | F43: 0 | G43: 0 | H43: 0 | I43: 0 | L43: 0 | O43: 0
B44: 0 | C44: 0 | D44: 0 | E44: 0 | F44: 0 | G44: 0 | H44: 0 | I44: 0 | L44: 0 | O44: 0
B45: 0 | C45: 0 | D45: 0 | E45: 0 | F45: 0 | G45: =+C45+D45+E45-F45 -> 0 | H45: 0 | I45: 0 | L45: 0 | O45: 0
B46: 0 | C46: 0 | D46: 0 | E46: 0 | F46: 0 | G46: 0 | H46: 0 | I46: 0 | L46: 0 | O46: 0
B47: 0 | C47: 0 | D47: 0 | E47: 0 | F47: 0 | G47: 0 | H47: 0 | I47: 0 | L47: 0 | O47: 0
B48: 0 | C48: 0 | D48: 0 | E48: 0 | F48: 0 | G48: 0 | H48: 0 | I48: 0 | L48: 0 | O48: 0
B49: 0 | C49: 0 | D49: 0 | E49: 0 | F49: 0 | G49: 0 | H49: 0 | I49: 0 | L49: 0 | O49: 0
B50: 0 | C50: 0 | D50: 0 | E50: 0 | F50: 0 | G50: 0 | H50: 0 | I50: 0 | L50: 0 | O50: 0
B51: 0 | C51: 0 | D51: 0 | E51: 0 | F51: 0 | G51: 0 | H51: 0 | I51: 0 | L51: 0 | O51: 0
B52: 0 | C52: 0 | D52: 0 | E52: 0 | F52: 0 | G52: 0 | H52: 0 | I52: 0 | L52: 0 | O52: 0
B53: 0 | C53: 0 | D53: 0 | E53: 0 | F53: 0 | G53: 0 | H53: 0 | I53: 0 | L53: 0 | O53: 0
B54: 0 | C54: 0 | D54: 0 | E54: 0 | F54: 0 | G54: 0 | H54: 0 | I54: 0 | L54: 0 | O54: 0
B55: 0 | C55: 0 | D55: 0 | E55: 0 | F55: 0 | G55: 0 | H55: 0 | I55: 0 | L55: 0 | O55: 0
B56: 0 | C56: 0 | D56: 0 | E56: 0 | F56: 0 | G56: 0 | H56: 0 | I56: 0 | L56: 0 | O56: 0
B57: 0 | C57: 0 | D57: 0 | E57: 0 | F57: 0 | G57: 0 | H57: 0 | I57: 0 | L57: 0 | O57: 0
B58: 0 | C58: 0 | D58: 0 | E58: 0 | F58: 0 | G58: 0 | H58: 0 | I58: =+H58-G58 -> 0 | L58: =H58+K58 -> 0 | O58: =L58+N58 -> 0
B59: 0 | C59: 0 | D59: 0 | E59: 0 | F59: 0 | G59: 0 | H59: 0 | I59: 0 | L59: 0 | O59: 0
B60: 0 | C60: 0 | D60: 0 | E60: 0 | F60: 0 | G60: 0 | H60: 0 | I60: 0 | L60: 0 | O60: 0
B61: 0 | C61: 0 | D61: 0 | E61: 0 | F61: 0 | G61: 0 | H61: 0 | I61: 0 | L61: 0 | O61: 0
B62: 0 | C62: 0 | D62: 0 | E62: 0 | F62: 0 | G62: 0 | H62: 0 | I62: 0 | L62: 0 | O62: 0
B63: 0 | C63: 0 | D63: 0 | E63: 0 | F63: 0 | G63: 0 | H63: 0 | I63: 0 | L63: 0 | O63: 0
B64: 0 | C64: 0 | D64: 0 | E64: 0 | F64: 0 | G64: 0 | H64: 0 | I64: 0 | L64: 0 | O64: 0
B65: 0 | C65: 0 | D65: 0 | E65: 0 | F65: 0 | G65: 0 | H65: 0 | I65: 0 | L65: 0 | O65: 0
B66: 0 | C66: 0 | D66: 0 | E66: 0 | F66: 0 | G66: 0 | H66: 0 | I66: 0 | L66: 0 | O66: 0
B67: 0 | C67: 0 | D67: 0 | E67: 0 | F67: 0 | G67: 0 | H67: 0 | I67: 0 | L67: 0 | O67: 0
B68: 0 | C68: 0 | D68: 0 | E68: 0 | F68: 0 | G68: 0 | H68: 0 | I68: 0 | L68: 0 | O68: 0
B69: 0 | C69: 0 | D69: 0 | E69: 0 | F69: 0 | G69: 0 | H69: 0 | I69: 0 | L69: 0 | O69: 0
B70: 0 | C70: 0 | D70: 0 | E70: 0 | F70: 0 | G70: 0 | H70: 0 | I70: 0 | L70: 0 | O70: 0
B71: 0 | C71: 0 | D71: 0 | E71: 0 | F71: 0 | G71: 0 | H71: 0 | I71: =+H71-G71 -> 0 | L71: =H71+K71 -> 0 | O71: =L71+N71 -> 0
B72: 0 | C72: 0 | D72: 0 | E72: 0 | F72: 0 | G72: 0 | H72: 0 | I72: 0 | L72: 0 | O72: 0
B73: 0 | C73: 0 | D73: 0 | E73: 0 | F73: 0 | G73: 0 | H73: 0 | I73: 0 | L73: 0 | O73: 0
A74: Total for the Reporting Period | B74: =SUM(B24:B73) -> 0 | C74: 0 | D74: 0 | E74: 0 | F74: 0 | G74: 0 | H74: 0 | I74: 0 | L74: 0 | O74: 0
A76: * Includes interest income, income generating activites etc.

Sheet Budget Variance_2E
A1: Ongoing Progress Update and Disbursement Request
B3: Grant Name: | C3: =+#REF! -> 
B4: (Disease) Component | C4: =#REF! -> 
B6: PROGRESS UPDATE
B7: Progress Update - Reporting Period: | F7: Cycle: | G7: =+#REF! ->  | H7: Number: | I7: =+#REF! -> 
B8: Progress Update - Period Covered: | F8: Beginning Date: | G8: =+#REF! ->  | H8: End Date: | I8: =+#REF! -> 
B9: Progress Update - Number:
B11: DISBURSEMENT REQUEST
B12: Disbursement Request - Disbursement Period: | F12: Cycle: | G12: =+#REF! ->  | H12: Number: | I12: =+#REF! -> 
B13: Disbursement Request - Period Covered: | F13: Beginning Date: | G13: =+#REF! ->  | H13: End Date: | I13: =+#REF! -> 
A15: Section 2: Financial Information
A17: E. Total Principal Recipient Budget Variance and Funding Absorption Analysis
D19: Principal Recipient
D20: Budget for Reporting Period | E20: Actual Grant Cash Out-Flow - Cash Basis for Reporting Period | F20: Budget Vs Actual Variances | G20: Absorption Capacity | H20: Reasons for Variance | J20: Cumulative Budget through period of Progress Update | K20: Cumulative Actual Grant Cash-Outflow - Cash Basis through period of Progress Update | L20: Cumulative Budget Vs Actuals Variances | M20: Absorption Capacity | N20: Reasons for Variance
B21: 1. Total Principal Recipient cash outflow vs. budget | D21: =SUM(D22:D23) -> 2852884.045 | E21: =SUM(E22:E23) -> 2305014.263 | F21: =IF(D21="",IF(E21="","",D21-E21),D21-E21) -> 547869.7813 | G21: =E21/D21 -> 0.8079593237 | J21: =SUM(J22:J23) -> 17581514.51 | K21: =SUM(K22:K23) -> 11781811.06 | L21: =IF(J21="",IF(K21="","",J21-K21),J21-K21) -> 5799703.444 | M21: =K21/J21 -> 0.6701249234
B22: 1a. Principal Recipient's total expenditures (including any direct-disbursements to third-parties) | D22: 1380699.786 | E22: ='PR Cash Reconciliation_2A,B,C'!D39+'PR Cash Reconciliation_2A,B,C'!D40+'PR Cash Reconciliation_2A,B,C'!D42 -> 603247.176 | F22: =IF(D22="",IF(E22="",0,D22-E22),D22-E22) -> 777452.6099 | G22: =E22/D22 -> 0.4369140795 | H22: Net variance of EUR 777,453 consists of Positive variance of EUR 1,026,137 and negative variance of EUR 248,684 Positive variance EUR 1,026,137 consists of the following Savings: EUR 12,887 - Actual cost and Quantity (to match the county’s quota for the drug) for Methadone was less than budgeted. EUR 798,345 – Commitment for PFSCM order for ARVs placed in 2014 and new order placed in 2015 is transferred to NFM budget. EUR 106,688 – Part of IDA commitment was reimbursed by the GF by the end of 2015 and remaining amount was moved to NFM budget. EUR 91,604 – Actual cost for HPHE was less than budgeted, also procurement of Saliva Tests was cancelled due to failure of supplier to deliver the tests. EUR 338- Actual printing cost was less than budgeted. EUR 16,275 – Actual cost for fuel provided to SRs was less than budgeted Negative Variance EUR 248,684 consists of the following: EUR 415– Actual Cost of MPP provided to TG was slightly greater than budgeted. EUR 247,740– Actual cost of HPHE was greater than budgeted due to: some activities budgeted in the previous reporting period and increased Quantities of ART monitoring tests and supplies based on the SR’s renewed request. EUR 529 – Project management cost (Consultant fee and PR fuel cost) - committed in the Dec 2015 and payment carried out in January 2016. | J22: 10813852.06 | K22: ='PR Cash Reconciliation_2A,B,C'!D39+'PR Cash Reconciliation_2A,B,C'!D40+'PR Cash Reconciliation_2A,B,C'!D42+'PR Cash Reconciliation_2A,B,C'!C39+'PR Cash Reconciliation_2A,B,C'!C40+'PR Cash Reconciliation_2A,B,C'!C42 -> 4789979.201 | L22: =IF(J22="",IF(K22="",0,J22-K22),J22-K22) -> 6023872.856 | M22: =K22/J22 -> 0.4429484679 | N22: Net cumulative variance of EUR 6,023,873 consists of Positive variance of EUR 6,404,580 and negative variance of EUR 380,707 Total Saving EUR 6,404,580 include: EUR 74,081 – Actual cost and quantities for SRs fuel was less than budgeted EUR 4,635,799– Savings from MPP &PSM (ARVs, interferon, methadone, STI medicines, quality control of ARVs) is derived from cancelled activities, actual consumption rates, lower unit prices, including lower unit prices of ARVs offered by PPM and also regimens were simplified. Considerably lower price procurement of interferon through the local tender. Also Procurement of pegylated interferon and ribavirin budgeted at 340,200 EUR was canceled as within the State Hep C Elimination program the MoH has procured these medications for Hep C patients and patients with HIV/HCV co-infection were given the priority for inclusion in the State Hep C Treatment Program. Procurement of methadone was conducted at much lower price than budgeted also (4 EUR vs. 9 EUR). Commitment for PFSCM order for ARVs placed in 2014 and new order placed in 2015 is transferred to NFM budget. EUR 1,243,769 – Saving from HPHE procurement (lab supplies, disinfectants, tests systems, Flow cytometer; syringes, condoms) is derived from low unit prices as a result of tenders; revision of the q-ties based on the consumption data and some cancelled activities. In addition instead of one flow cytometer with high technical characteristic, in agreement with GF and AIDS Center, four field equipment – BD Presto, were procured for CD4 count measurement, which has resulted in substantial saving. EUR 128,036 - Procurement of office equipment/furniture and printing of materials through tenders resulted in saving. Database development cost budgeted in GHRN is moved to NFM period, the amount is included in the savings. EUR 77,978 - Procurement of Vehicles for SRs was cancelled in agreement with GF. EUR 244,917 - Saving in Project management costs including International PSM consultant's fee, in HR (HIV M&E specialist , finance specialist, logistics specialist ) ; saving related to renovation of office; procuring furniture (It was handed over from previous PR) ; fuel; tender announcement costs, Technical assistance; late start of media campaign, Audit fee. The FX rate had also impact on savings. Negative Variance EUR 380,707 include: EUR 370,128 – Overspending in procurement of HPHE including cost of additional 4 mobile ambulatories approved by GF and tests-lab supplies provided to Aids Center EUR 1,396 – Actual cost of office equipment/furniture was slightly greater than budgeted. EUR 7,580 – Actual need of STI medicines was increased based on the current consumption. EUR 1,603– Actual Cost of Printing info materials for TG was greater than budgeted.
B23: 1b. Disbursements to sub-recipients | D23: 1472184.259 | E23: ='PR Cash Reconciliation_2A,B,C'!D41 -> 1701767.087 | F23: =IF(D23="",IF(E23="",0,D23-E23),D23-E23) -> -229582.8286 | G23: 1.155947075 | H23: The reporting period relates to activities performed by the SRs for January 2016-June 2016. Within the current period SRs received payment for December 2015 –June 2016, thus all the activities performed by the SRs within the extension period and commitment for December 2015 were reimbursed. All Advance payments were subtracted as their contract service period was until June 30, 2016. Total reimbursement for services equals to EUR 1,701,767 (TG- EUR 250,292; HAPS –EUR 58,257; MHDAC –EUR 345,020; Aids Center EUR 357,134; CIF –EUR 11,526; GHRN- EUR 630,347; Objective 1 - EUR 49,191) As mentioned above the negative variance is derived from differences between the budget period (January 2016-June 2016) and period for which SRs were reimbursed. | J23: 6767662.45 | K23: ='PR Cash Reconciliation_2A,B,C'!D41+'PR Cash Reconciliation_2A,B,C'!C41 -> 6991831.861 | L23: =IF(J23="",IF(K23="",0,J23-K23),J23-K23) -> -224169.4114 | M23: 1.03312361 | N23: The cumulative period relates to activities performed by the SRs for April 2014-June 2016 period. In order to allow spending of the large amounts saved during the initial program implementation periods TGF secretariat made a decision to extend the program implementation at no additional cost (within the approved program budget) through June, 2016. Savings from PR and SRs was distributed to SRs thus leading to negative Variance compared to originally approved budget. Main savings in SRs implementation was derived from the following: (a) savings in program implementation (less amounts were spent per activities by SRs for trainings, meetings, M&E visits, for technical service of cars and equipment; less amounts were spent for PDI incentives and for case management and other activities; AIDS Center also procured the international laboratory QC service at a low price). b) differences in the budgeted amounts and the contractual amounts resulted from the service procurement through the tenders; c) late opening of a new OST Center as well as procurement of mobile ambulatories and savings in related expenditures by the GHRN and Narcology Center for HR, T, ME, PA and OVE categories; National AIDS Center had postponed hiring of a new personnel for its administrative and PSM staff; d) canceled activities - Opening of a new ART Treatment Center was canceled; Drug Addiction Prevention Day Conference was canceled due to technical reasons, participation in international conferences were included into ME category, while it was initially budgeted in the OVE in approved GF budget; HAPS had canceled AIDS Victims Day Commemoration Event. ). Within this period SRs received payment for April 2014-June 2016, thus all the activities performed by the Srs within the current grant were reimbursed. Advance payments were subtracted as their contract service period was until June 30, 2016. Total reimbursement for services equal EUR 6,991,832 ( TG- EUR 1,009,907 ; HAPS –EUR 269,246; MHDAC –EUR 1,301,852; Aids Center EUR 1,360,804; CIF –EUR 335,956 , GHRN- EUR 2,530,242; Objective 1 - EUR 175, 727; BCG Research– EUR 8096 - Stigma Survey among healthcare workers was budgeted under SR HAPS, but through tender another organization was identified as winner).
B25: Procurement data for analytical purposes | D25: Budget for Reporting Period | E25: Actual Grant Cash Out-Flow - Cash Basis for Reporting Period | F25: Budget Vs Actual Variances | G25: Absorption Capacity | H25: Reasons for Variance | J25: Cumulative Budget through period of Progress Update | K25: Cumulative Actual Grant Cash-Outflow - Cash Basis through period of Progress Update | L25: Cumulative Budget Vs Actuals Variances | M25: Absorption Capacity | N25: Reasons for Variance
B26: 2. Total pharmaceutical & non-pharmaceutical incl. equipment expenditures vs. budget | D26: =D27+D28 -> 1264517.765 | E26: =E27+E28 -> 574770.651 | F26: =IF(D26="",IF(E26="","",D26-E26),D26-E26) -> 689747.1137 | G26: =E26/D26 -> 0.4545374269 | J26: =J27+J28 -> 8705408.064 | K26: =K27+K28 -> 4163229.74 | L26: =IF(J26="",IF(K26="","",J26-K26),J26-K26) -> 4542178.324 | M26: =K26/J26 -> 0.4782348753
B27: 2a. Health Products- Pharmaceutical Products | D27: 776937.4315 | E27: 35010.12332 | F27: =IF(D27="",IF(E27="",0,D27-E27),D27-E27) -> 741927.3082 | G27: =E27/D27 -> 0.0450617024 | H27: The Budget relates to the Medicines and Pharmaceuticals procured locally and through international PSM Agencies to be paid directly by The Global Fund. The variance EUR 741,927 consists of Positive Variance EUR 742,876 and Negative Variance EUR 949 Total Saving EUR 742,876 – EUR 12,887- Actual cost and Quantity for Methadone was less than budgeted (limited by the county’s quota for drug) ; Commitment for PFSCM order for ARVs placed in 2014 and new order placed in 2015 was transferred to NFM budget. Overspending EUR 415 - Actual Cost of MPP provided to TG was slightly greater than budgeted. EUR 534 – Procurement of essential drugs performed by Aids Center for palliative care- actual cost is greater than budgeted | J27: =5140297.1056706 -> 5140297.106 | K27: 1438630.78 | L27: =IF(J27="",IF(K27="",0,J27-K27),J27-K27) -> 3701666.326 | M27: =K27/J27 -> 0.2798730793 | N27: The Budget relates to the Medicines and Pharmaceuticals procured locally and through international PSM Agencies to be paid directly by The Global Fund. The variance EUR 3,701,666 consists of Positive Variance EUR 3,710,429 and Negative variance EUR 8,763. Driver of saving is available stock at SR: Cheaper unit prices were gained both from the local procurement and through PPM (ARVs). Saving was made due to simplification of ART regimens based on WHO recommendations. Saving EUR 3,710,429- EUR 181,448 – Volume of Methadone was reduced according to the quota approved for the country and more precise need estimation conducted jointly by Narcology Center and MoH. The actual cost of methadone was less also (4 EUR vs. 9 EUR). EUR 15,529 – Actual unit price for vaccines was lower than budgeted. EUR 3,139,117– Saving in ARVs resulted from actual PQ signed with PPM and simplification of regimens. Commitment for PFSCM order for ARVs placed in 2014 and new order placed in 2015 is transferred to NFM budget. EUR 371,996 - Considerably lower price procurement of interferon through the local tender. Also Procurement of the last portion of the pegylated interferon and ribavirin budgeted at 342,200 EUR was canceled as within the State Hep C Elimination program the MoH has procured these medications for Hep C patients and patients with HIV/HCV co-infection were given the priority for inclusion in the State Hep C Treatment Program. Overspending EUR 2,339 – Actual Cost of some STI medicines provided to TG was slightly less than budgeted. Overspending EUR 8,764 – EUR 7,580 – procurement of STI essential drugs – actual cost is greater than budgeted due to updated quantification of the needs by the SR EUR 1,184 – procurement of essential drugs for palliative care performed by Aids Center- actual cost is greater than budgeted
B28: 2b. Health Products - Non-Pharmaceuticals & Equipment | D28: 487580.3331 | E28: 539760.5277 | F28: =IF(D28="",IF(E28="",0,D28-E28),D28-E28) -> -52180.19453 | G28: 1.107018661 | H28: The Budget relates to the Health product/equipment procured locally and directly by the Global fund. The Negative variance EUR 52,180 consists of Positive Variance EUR 198,293 and Negative Variance EUR 250,474 Total Saving EUR 198,293 – EUR 106,688 - Part of IDA commitment was reimbursed by the GF by the end of 2015 and remaining amount was moved to NFM budget. EUR 12,121 – Actual cost of procurement syringes and needles (other than 1 ml) were less than budgeted. EUR 43,283 – Actual cost of procurement lab supplies for Aids Center was less than budgeted. EUR 15,787 – Actual cost of procurement Condoms and lubricants was less than budgeted EUR 9,256 – Actual cost of procurement disinfectants and lab supplies were less than budgeted. EUR 5,613 – Actual cost of procurement tests (rapid tests, tests for STI) were less than budgeted. EUR 5,545 – Procurement of Saliva Tests was cancelled (supplier couldn’t deliver the product). The Negative variance EUR 250,474 is related to the following: EIR 125,468- Commitment (procurement of Mobile ambulatories) from the previous reporting period and payment carried out in current period EUR 3665 – Actual cost or Quantity for 1 ml syringes was greater than budgeted EUR 13,480- Actual cost for condoms procured locally was greater than budgeted EUR 3,115- Actual cost for some lab supplies and tests was greater than budgeted EUR 2,733 - Procurement of tests by CIF committed in Dec 2015 and reimbursed in Jan 2016. EUR 102,013 – Actual cost of Procurement of tests for Aids Center was greater than budgeted. | J28: =3565110.958505 -> 3565110.959 | K28: 2724598.96 | L28: =IF(J28="",IF(K28="",0,J28-K28),J28-K28) -> 840511.998 | M28: 0.7642395965 | N28: The Budget relates to the Health product/equipment procured locally and directly by the Global fund. The variance EUR 840,512 consists of Positive Variance EUR 1,214,909 and Negative variance EUR 374,397 Less amounts spent on the procurement (lab supplies, disinfectants, tests systems, Flow cytometer; syringes, condoms) is a result of the low unit prices offered during the tenders; revision of the q-ties based on the consumption data and some cancelled activities. Saving EUR 1,214,909 - EUR 63,846 –Instead of one flow cytometer with high technical characteristic, in agreement with GF and AIDS Center, four field equipment – BD Presto, were procured for CD4 count measurement, which has resulted in substantial saving. EUR 311,304 – Procurement of syringes through IDA and local tenders for syringes, needles and vain sets resulted in low unit costs. Also quantities were recalculated based on consumption data and stocks at SR level. EUR 50,195 – Procurement through IDA and local tenders resulted in lower than budgeted cost for condoms, also quantities were recalculated based on consumption data and stocks at SR level. EUR 166,718– Actual costs for procurement of disinfectant and lab supplies/equipment through tenders were less than budgeted also. EUR 16,897 – Based on stocks of Naloxon available at SR level, the less q-ties were procured and cost was lower also. EUR 84,545– Actual cost of Procurement of tests (rapid and express tests, tests for STI) was lower than budgeted EUR 521,403 – Actual cost for tests and lab supplies for AIDS Center were less than budgeted through local tenders Overspending EUR 374,397 - EUR 218,163 – Procurement of tests and lab supplies (HCV real time PCR, Four and two color Flow cytometer) for Aids Center was greater than budgeted. EUR 17,935 – Actual cost some of rapid tests was greater than budgeted, including EUR 5,411 – Additional request from TG on procurement of micropipettes approved by GF; EUR 9,444 – Actual Q of condoms procured for GHRN was greater than budgeted. EUR 3,670 – Actual cost of disinfectants and minor lab supplies was slightly greater than budgeted; EUR 120,917 – Cost of procurement of additional 4 mobile ambulatories approved by GF. EUR 4,270 -Actual cost of tests under objective 4 was greater than budgeted. (Originally cost was budgeted under PR and was transferred to CIF)
A31: For LFA Use Only
A32: E. Total Principal Recipient Budget Variance and Absorption Analysis
D34: Local Fund Agent (LFA)
D35: Budget for Reporting Period | E35: Actual Grant Expenditure - Cash Basis for Reporting Period | F35: Budget Vs Actual Variances | G35: Absorption Capacity | H35: LFA comments on thePrincipal Recipient's explanation of variances | J35: Cumulative Budget through period of Progress Update | K35: Cumulative Actual Grant Expenditure - Cash Basis through period of Progress Update | L35: Cumulative Budget Vs Actuals Variances | M35: Absorption Capacity | N35: LFA comments on the Principal Recipient's explanation of variances
B36: 1. Total Principal Recipient cash outflow vs. budget | D36: =SUM(D37:D38) -> 0 | E36: =SUM(E37:E38) -> 2305014.263 | F36: =IF(D36="",IF(E36="","",D36-E36),D36-E36) -> -2305014.263 | G36: =E36/D36 ->  | J36: =SUM(J37:J38) -> 0 | K36: 2305014.263 | L36: =IF(J36="",IF(K36="","",J36-K36),J36-K36) -> -2305014.263 | M36: =K36/J36 -> 
B37: 1a. Principal Recipient's total expenditures (including any direct-disbursements to third-parties) | D37: 0 | E37: ='PR Cash Reconciliation_2A,B,C'!H39+'PR Cash Reconciliation_2A,B,C'!H40+'PR Cash Reconciliation_2A,B,C'!H42 -> 603247.176 | F37: =IF(D37="",IF(E37="",0,D37-E37),D37-E37) -> -603247.176 | J37: 0 | K37: ='PR Cash Reconciliation_2A,B,C'!F39+'PR Cash Reconciliation_2A,B,C'!F40+'PR Cash Reconciliation_2A,B,C'!F42+E37 -> 603247.176 | L37: =IF(J37="",IF(K37="",0,J37-K37),J37-K37) -> -603247.176 | M37: =K37/J37 -> 
B38: 1b. Disbursements to sub-recipients | D38: 0 | E38: ='PR Cash Reconciliation_2A,B,C'!H41 -> 1701767.087 | F38: =IF(D38="",IF(E38="",0,D38-E38),D38-E38) -> -1701767.087 | J38: 0 | K38: ='PR Cash Reconciliation_2A,B,C'!F41+E38 -> 1701767.087 | L38: =IF(J38="",IF(K38="",0,J38-K38),J38-K38) -> -1701767.087
B40: Procurement data for analytical purposes | D40: Budget for Reporting Period | E40: Actual Grant Expenditure - Cash Basis for Reporting Period | F40: Budget Vs Actual Variances | G40: Absorption Capacity | H40: LFA comments on the Principal Recipient's explanation of variances | J40: Cumulative Budget through period of Progress Update | K40: Cumulative Actual Grant Expenditure - Cash Basis through period of Progress Update | L40: Cumulative Budget Vs Actuals Variances | M40: Absorption Capacity | N40: LFA comments on the Principal Recipient's explanation of variances
B41: 2. Total pharmaceutical & non-pharmaceutical incl. equipment expenditures vs. budget | D41: =D42+D43 -> 0 | E41: =E42+E43 -> 0 | F41: =IF(D41="",IF(E41="","",D41-E41),D41-E41) -> 0 | G41: =E41/D41 ->  | J41: =J42+J43 -> 0 | K41: =K42+K43 -> 0 | L41: =IF(J41="",IF(K41="","",J41-K41),J41-K41) -> 0 | M41: =K41/J41 -> 
B42: 2a. Health Products- Pharmaceutical Products | D42: 0 | E42: 0 | F42: =IF(D42="",IF(E42="",0,D42-E42),D42-E42) -> 0 | J42: 0 | K42: 0 | L42: =IF(J42="",IF(K42="",0,J42-K42),J42-K42) -> 0 | M42: =K42/J42 -> 
B43: 2b. Health Products - Non-Pharmaceuticals & Equipment | D43: 0 | E43: 0 | F43: =IF(D43="",IF(E43="",0,D43-E43),D43-E43) -> 0 | J43: 0 | K43: 0 | L43: =IF(J43="",IF(K43="",0,J43-K43),J43-K43) -> 0

Sheet Procurement_3
M1: Ongoing Progress Review and Disbursement Request
M2: PROGRESS UPDATE PERIOD
M3: Grant Name: | O3: =IF(#REF!="","",#REF!) -> 
M4: Progress Update - Reporting Period: | O4: Cycle: | P4: =+#REF! ->  | R4: Number: | U4: =+#REF! -> 
M5: Progress Update - Period Covered: | O5: Beginning Date: | P5: =+#REF! ->  | R5: End Date: | U5: =IF(#REF!="","",#REF!) -> 
M6: Progress Update - Number:
M9: Section 3A: PR - Procurement and Supply Management
S12: Comments
M13: 1. Have you updated the Price Quality Reporting (PQR) with the required information on the pharmaceuticals and health products received during the period covered by this PU/DR’ (if applicable)? If health products procurement information has not been entered into the PQR, please explain why. ! For further guidance on PQR data entry, please refer to the guidelines. | R13: Select | S13: Prices and other required details for following items procured in the covered period was uploaded to the PQR system: 1.HIV RDT & EIA a) InTec Products Incd( Xiamen, PR China) - Advanced Quality HIV Rapid Test Intec [ITP02121-TC40] 1unit/ Test; - PO #GF-H-T/ET/G-282 2.HIV virological testing equipment: a) Roche Molecular Systems, Inc. USA - COBAS Taq Man HIV-1 Test.v2[05923468190]; PO- # GF-H/ET/G-311 3.HIV virological testing consumables/test kits: a)Nucli SENS EasyMag Magnetic Silica 384 extractions [280133]; b)Nucli SENS EasyQ HIiv-1v2.0( Automated) 48s/4L [280130] - PO# GF-H/ET/G-290 4.HIV CD4 testing consumables /test kits: a)BD FACSPresto Cartridge Kit, 100s [655495] 1 unit / test-PO#GF-H/ET/G-297 b) BD FACS, Multi Test CD3/CD8/CD45/CD4 with trucount tubes 50 tests [342447]; BD Callibrite 3 Beads 25 test[340486];BDCalibrite APC Beads for 25tests [340487]- PO# GF-H/ET/G-295 4.Male latex condoms procured both through local procurement: a)R&S Consumber Goods ( Germany) PO # GF -H/ET/G-300 5. ARVs procured and imported through PPM mechanism in q1 -q2 2016 covered by PQ-16914 and PE-2093 are not uploaded yet by PFSCM team.
M15: 2. Based on the most up-to-date stock situation, are there any risks of stock-outs or expiries for the key pharmaceuticals & health products, listed below, at the central level in the next period of implementation? If yes, please comment.
M16: Key Pharmaceuticals & Health Products | O16: Risk of Stock-Out | P16: Risk of Expiry | Q16: Comment (if yes, please provide information on the specific items that are at risk of stock-out or expiry and the mitigation measures in place or to be implemented)
M17: 1. Anti-malaria medicines | O17: Select | P17: Select
M18: 2. Bed nets | O18: Select | P18: Select
M19: 3. In-Vitro Diagnostic Products | O19: Select | P19: Select
M20: 4. Condoms | O20: Select | P20: Select
M21: 5. Anti-retrovirals | O21: Select | P21: Yes | Q21: The file for expired ARVs with justification and comments is included in the PUDR package. The ARVs procured during the NCDC PR-ship is included only
M22: 6. Anti-TB medicines | O22: Select | P22: Select
M23: 7. Lab supplies (e.g. CD4, Viral Load, Cartridges…) | O23: Select | P23: Yes | Q23: The lab tests information is provided in separate file included in the PUDR package.
M24: 8. Other (Please specify in the "Comment" column) | O24: Select | P24: Select
M26: 3. Comment on additional issues related to the procurement and supply management of pharmaceuticals and health products.
M27: With the PR's request National AIDS Center has destoried the expired medicines and reagents procured during the previous PR and some that were expired during the NCDC management of the GF HIV grant.
M29: For LFA Use Only
M32: Section 3B: LFA-Verified Procurement and Supply Management Information
O35: PR's response | P35: LFA's response | Q35: LFA Comments/Analysis
M36: 1a. Has the PR updated the Price Quality Reporting (PQR) with the required information on the pharmaceuticals and health products received during the period covered by this PU/DR’ (if applicable)? (If health products procurement information has not been entered into the PQR, please explain why in comments box) | O36: =R13 -> Select | P36: Select
M38: 1b. Value of Pharmaceuticals and Health Products in the PQR
M39: (!) This table is included in the PU/DR form with the aim to improve completeness of information in the PQR system and not for comparing PQR amounts vis-à-vis expenditure per se. NB: PQR and expenditure amounts on health products may not be equal due to a timelag between payments and delivery of pharmaceuticals/health products. (!) For further guidance on PQR data entry, please refer to the guidelines.
M40: Reporting Currency
M41: PQR Product Categories | O41: Value of products received during reporting period | P41: Value of products entered by the PR and verified as correct by the LFA in the PQR during reporting period | Q41: Variance | R41: Reason for Variance | T41: Cumulative value of products received since the start of the grant | U41: Cumulative value of products verified as correct by the LFA in the PQR since the start of the grant | V41: Variance | W41: Reason for Variance
M42: 1. Anti-malaria medicines | Q42: =IF(O42="",IF(P42="","",O42-P42),O42-P42) ->  | V42: =IF(T42="",IF(U42="","",T42-U42),T42-U42) -> 
M43: 2. Bed nets
M44: 3. In-Vitro Diagnostic Products
M45: 4. Condoms
M46: 5. Anti-retrovirals
M47: 6. Anti-TB medicines
M48: 7. Indoor Residual Spraying (IRS)
M49: Total | O49: =SUM(O42:O48) -> 0 | P49: =SUM(P42:P48) -> 0 | Q49: =SUM(Q42:Q48) -> 0 | T49: =SUM(T42:T48) -> 0 | U49: =SUM(U42:U48) -> 0 | V49: =SUM(V42:V48) -> 0
M51: 2. Based on best information available to the LFA, are there any risks of drug stock-out or expiries at the central level in the next period of implementation? (If yes, please explain in comments box) ! This section should be completed by the LFA based on best information on stock at the central level available to the LFA and should not require dedicated visits for on-site checks of stocks.
M52: Key Pharmaceuticals & Health Products | O52: Risk of Stock-Out | P52: Risk of Expiry | Q52: Comment (if yes, please provide information on the specific items that are at risk of stock-out or expiry and the mitigation measures in place or to be implemented)
M53: 1. Anti-malaria medicines | O53: Select | P53: Select
M54: 2. Bed nets | O54: Select | P54: Select
M55: 3. In-Vitro Diagnostic Products | O55: Select | P55: Select
M56: 4. Condoms | O56: Select | P56: Select
M57: 5. Anti-retrovirals | O57: Select | P57: Select
M58: 6. Anti-TB medicines | O58: Select | P58: Select
M59: 7. Lab supplies (e.g. CD4, Viral Load, Cartridges…) | O59: Select | P59: Select
M60: 8. Other (Please specify in the "Comment" column) | O60: Select | P60: Select
M63: 3. LFA analysis of issues related to the procurement and supply management of pharmaceuticals and health products

Sheet Grant Management_4
B1: On-going Progress Update and Disbursement Request
B2: PROGRESS UPDATE PERIOD
B3: Grant Name: | E3: =IF(#REF!="","",#REF!) -> 
B4: Progress Update - Reporting Period: | E4: Cycle: | F4: =+#REF! ->  | G4: Number: | H4: =+#REF! -> 
B5: Progress Update - Period Covered: | E5: Beginning Date: | F5: =IF(#REF!="","",#REF!) ->  | G5: End Date: | H5: =IF(#REF!="","",#REF!) -> 
B6: Progress Update - Number:
B8: Section 4: Grant Management
B10: A. PR and LFA Comments on the Fulfilment of Conditions Precedent and/or Special Conditions Under the Grant Agreement
B12: ! Please include in this table the Condition Precedent number as per Grant Agreement and full text of Conditions Precedent and/or other special conditions due for fulfilment during this period or outstanding from previous periods. ! Some Special Conditions may apply to more than one period of grant implementation. Their fulfilment during one period does not automatically imply fulfilment in subsequent periods. The LFA should verify that the status of such conditions is reported by the PR during each period concerned. | N12: For LFA Use Only | X12: For the Global Fund Use Only
B13: Conditions Precedent and/or other special conditions | G13: Status | H13: PR Comments on Progress of Implementation | N13: Status | O13: LFA Analysis (this should not be a "Copy and Paste" of the comments provided by the PR) | X13: Validate Status | Y13: Country Team Comments
B14: No later than 30 June 2014, the CCM shall, or the Principal Recipient shall cause the CCM to, submit a Budgeted Sustainability Plan for the gradual governmental take-over of financing, starting in 2015, for activities supported by this Grant. GF agreed to postpone the terminal date of the condition to 31 December, 2015 | E14: Select | G14: Unmet - In Progress | H14: As agreed with the GF the sustainability and transition plan development for HIV and TB grants will be covered from the current TB grant - GEO-T-NCDC. ToR for the plan development is elaborated is shared with the CCM and the GF. The electronic tender was completed during the Q2 and CIF has been selected for this task. Policy and Adviasory Counsil that was selected by the CCM is a technical team of experts that is in charge of supervision and oversight of the STP development process along with the PR. The first phase of the contract has been completed and the STP working plan and main directions is agreed with the CCM. The second phase is ongling which will be ended in September this year when the CIF will present the initial draft STP without costing; The detailed plan with relevant budget will be developed during the third phase of the service contract (by December 2016). All national stakeholders are activly engaged in the STP development process. | N14: Select | X14: =N14 -> Select
G15: Select | N15: Select | X15: =N15 -> Select
G16: Met | N16: Select | X16: Select
G17: Met | N17: Select | X17: Select
G18: Met | N18: Select | X18: Select
G19: Met | N19: Select | X19: Select
G20: Met | N20: Select | X20: Select
G21: Met | N21: Select | X21: Select
G22: Met | N22: Select | X22: Select
G23: Met | N23: Select | X23: Select
G24: Met | N24: Select | X24: Select
G25: Met | N25: Select | X25: Select
G26: Met | N26: Select | X26: Select
G27: Select | N27: Select | X27: Select
G28: Select | N28: Select | X28: =N28 -> Select
G29: Select | N29: Select | X29: Select
G30: Select | N30: Select | X30: Select
G31: Select | N31: Select | X31: Select
G32: Select | N32: Select | X32: Select
G33: Select | N33: Select | X33: Select
G34: Select | N34: Select | X34: Select
G35: Select | N35: Select | X35: Select
G36: Select | N36: Select | X36: Select
G37: Select | N37: Select | X37: Select
G38: Select | N38: Select | X38: Select
G39: Select | N39: Select | X39: Select
G40: Select | N40: Select | X40: Select
E41: Select | G41: Select | N41: Select | X41: Select
E42: Select | G42: Select | N42: Select | X42: Select
E43: Select | G43: Select | N43: Select | X43: Select
G44: Select | N44: Select | X44: Select
G45: Select
G46: Select
G47: Select
G48: Select
G49: Select
G51: Select
G52: Select
G53: Select
B55: B. PR & LFA Review of Progress on Implementation of Outstanding Management Actions from Previous Disbursements
B56: ! Please list all issues raised in the last Performance Letter from the Global Fund or outstanding from previous Performance Letters, and comment on the progress. Please include the date of the Performance Letter and the item number.
N57: For LFA Use Only | X57: For the Global Fund Use Only
B58: Global Fund Management Actions | G58: Status | H58: PR Comments on Progress of Implementation | N58: Status | O58: LFA Review of PR Progress on Global Fund Management Actions | X58: Validate Status | Y58: Country Team Comments of PR Progress on Global Fund Management Actions
B59: During the review of the Progress Update as well as of the Audit for the fiscal year 2014, it was noted that the PR is using different accounrding methods to report on the financial positions, namely: the Progress Updates submitted to the Secretariat semi-annually, are prepared on cash basis, while the statements of financial positions submitted to the MOLHSA quarterly, are prepared according to the local regulations using modified cash basis. Although the PR has sought approval for using modified cash basis for prepareation of the financial statements for fiscal year 2014 during the Audit review process, this was not disclosed to the Secretariat in advance. Due to delay in informing the Secretariat and as a result, delayed approval, the PR was required to prepare the financial statements during the audit review. Required Actions: During the preparation for the Audit reivew of the financial statements for fiscal year 2015 we recommend the PR: a) to bring to the secretarit attendion any specific regulations applied to the PR reorting and preparation of the financial statements, well in advance, The PR is required to disclose these requirements already at the stage of review and approval of the TORs for the Audit of Financial Statements for fiscal year 2015. b) tofurther develop and refine the process of preparing the financial statements; c) to ensure that the procedures and related deadlines for all staff involved in preparation of the financial statements are developed in advance and formally documented. Timeline: the PR should submit to the Secretariat the TORs for Audit reeview of the financial statements for fiscal year 2015 addressing the actions outlined by no Later than 31 July 2015. | G59: Met | H59: The required actions were taken/recommendations are considered and followed precisely. ToR was submitted to the TGF for review per indicated deadline. The actual service is provucred and the Audit process for the current reporting period is underway by BDO. | N59: Select | X59: =N59 -> Select
B60: a) During the review it was noted that the PR's and SR's bookkeeping systems (mostly ORIS) do not contain specific fileds of expenditure categories or individual budget lines, Consequently, the risk or error in classification process exists. b) Additionally, the PR expenses the Pharmaceuticals, Health Products and Health Equipment as soon as it is transferred to SRs and monitor the use of such assets off balance sheet and perform the record in MS Excel Spreadsheets. There is no other special tool set in place for monitoring the usage neither at PR nor at SR level. Required Actions: a) The PR is expected to follow up on the integration of the new financial software in existing accounting systems. While this activity should have been implemented during the last reporting period and was postpond, the PR is requested to ensure that the transition is completed before the end of fiscal year 2015. Additionally, the Secretariat requests the PR and SRs to produce semi-annual and monthly reports while reconciling between the financial reports and other accounting data, using MS excel. b) The PR is requested to ensure that further automation process is taking place, to better facilitate the process of gathering information for preparation of the grant program financail statements. Additionally, the PR should explore options to incorporate the accounting of PP and HPHE in the new financial software during its integration with the existing accounting systems by the end of fiscal year 2015. Timeline: the PR is requested to report on the progress made concerning the management actions outlined above by no later than 30 June 2015 | G60: Unmet - In Progress | H60: PR and SR’s have integrated budget categories and lines in their existing accounting software and reports are reconciled with the accounting data on regular basis. Process of ERP system development is ongoing. Under GEO-T-NCDC grant PR has procured ERP Licenses - Microsoft Dynamics AX- and is in the process of procuring System development Service. The latter tender is announced and 2 candidates were participating. At this stage PR is evaluating participants and after identifiing the winner contract will be signed with developer company. The development process will take up to 7 months. The system will be piloted in the beginning of 2017 and the necessary adjustments will be made during the first semester of 2017. | N60: Select | X60: =N60 -> Select
B61: During the review of the Enhanced Financial Report (EFR) submitted with the Progress Update 2, inconsistances in reporting were noted: a) The PR has reporting the period from 1 July 2014 to 31 December 2014 for the current period of the EFR, instead of reporting for the annual period 01 April 2014- 31 December 2014; b) It was noted that the PR has reported in the EFR Table E-Disburcement Breakdown by Implementing Entity the expenditures of the SRs (six HIV SRs) and not PR's disburcements to the SRs. c) The PR has inserted the expenditure figure of SR HAPS (line #5) of SR CIF (Line #6) in Table E. Required Action and Timelines: The PR is requested to reserve the EFR and to resubmit the document based on the findings outlined above and to submit the revised version to the Secretariat by no later than 31 May 2015. | G61: Met | H61: The revised EFR document was submitted by the PR by the requested deadline. | N61: Select | X61: Select
B62: M&E, Issue 1: During the review of the progress update, it was noted that the SRs are requested to submit monthly reports, however, the cumulative reports with results covering the 6-months period are not always available. Additionally, it was noted that the disaggregated values for some of the indicators are not produced by the SRs as part of the formally submitted reports. Consequently, the PR is verifying the results for the 6-months periods and performs the final calculation of the results against the targets. Required Action: While the PR's role is critical in ensuring that the correct data is reported with the Progress Update, it would be beneficial for the SRs to be further involved in reporting and commenting on the progress achieved during the 6-months period. The PR is invited to request for the submission of the semi-annual reports by the SRs with data for all indicators, in addition to the monthly reports submitted. Timeline: The PR is reqeusted to report on the progress made concerning the management action outlines above with the submission of the progress updated, by no later than 14 August 2015. | G62: Met | H62: All SRs were requested to provide cummulative reports for 6 months (July-December, 2015) and the reports were provided by SRs. PR M&E personnel has validated the reported indicators which are presented in PUDR form. | N62: Select | X62: Select
B63: M&E, Issue #2: While the Secretariat acknowledged the efforts made by the PR and SR to increase the "number and percentage of IDUs reached with HIV prevention programs", the PR is expected to provide more details on the results achieved. Furthermore, considering the latest overachivement, the PR should revise and set more ambitious targets for the indicator. Required Action: The PR is rquested to submit request for revision of the targets for the indicator 2.2 (for implementation period 1 July 2015 - 31 December 2015). Timeline: The PR is requested to send revised Performance Framework to the Secretariat for review by no later than 31 May 2015. | G63: Met | H63: The issue was resolved with the GHRN . Since April of 2015 we agreed with the SR to not include these secondary clients in the database, as there is no evidence that the 7 digit codes provided by the direct clients for their friend PWIDs is accurate. The coverage data doesn't include also PDI clients and people who used only hepatitis C testing service. The same time, the coverage of IDUs during the next implementation period with operations of newly procured mobile ambulatories has been increased and the geographic coverage was improved also. | N63: Select | X63: Select
B64: M&E, Issue #3: During the varification of the indicator 3.1: "Number and percentage of eligible adults and children currently receiving ART", it was noted that the results of SPECTRUM analysis were provided by the National AIDS Center to the PR, however the denominator for this indicator wasnot updated to reflect the data. Required Action: The PR should ensure that the latest verified results of SPECTRUM analysis are used for reporting. Consequently, the demoninator of the idnicator 3.1 shuld be updated to reflect the latest data available. The PR should submit request to the secretariat to for revision of the denimonator for the indiactor 3.1 (implementation periods 1 January 2015 through 31 December 2015). Timeline: The PR is requested to send revised PF to the Secretariat for review by no later than 31 May, 2015 | G64: Met | H64: The NCDC has finalized the Spectrum results for the denominator of this indicator and the newly generated figure for the eligible adults and children for 2015 was 4,689. The new estimated figure is 10451 which was applied for P5. | N64: Select | X64: Select
B65: M&E, Issue #4: During the review, it was noted that the number of beneficiares served at the SSR Telavi Health Cabinet (program run by the SR Tanadgoma) remains very low with only 17 beneficiries (FSWs and MSM) served during the last reqporting period. Required action: While the PR has already initiated discussions on ways to improve the performance in Telavi, the PR should ensure that the coverage of the health cabinet is increased. Timeline: The PR should demonstrate meassures taken with the next progress update, by no later than 14August, 2015. | G65: Met | H65: To address the issue, the PDI methodology was succesfully piloted in Telavi and suraunding raions and new FSWs were enrolled in the program. The new clients were given the refferals to healthy cabinet on a regular basis, the same time the number of the outreach rides were increased. All the above has resulted in the increase of the number of FSWs served. A little improvements were observed in using the healthy cabinet services by the FSWs reffered by Tanadgoma to the healthy cabinet. PR, SR and SSR met again to discuss the issue at the begining of Q1. The new strategy that was agreed to be tested was to give the rides to FSWs to the Healthy Cabinets for STI diagnostics and treatment visits by social workers of Tanadgoma's with its car. During the last 6 months 44 clients recieved the STI diagnosit and treatment service (during the previous 6 month the number was 27). Thus, the P5 data are little bit increased, but not as much, and PR together with the SR Tanadgoma has developed a vaucher system that is piloted in Telavi for STI treatment. Clients are given a free treatment vaucher during the outreach work and are referred to the Health Cabinet. Healthy Cabinet staff reinburcement will partially depend on the number of vaucher holder clients they serve. If the system will be implemented succesfuly PR will consider estalishment of the similer systems in other regions of the country where the coverage with STI treatment is not high. | N65: Select | X65: Select
B66: M&E, issue #5: In the absense of the unified module for the OST program integrated in the health management information system, risk or error and inaccurate calculation of the results achieved under the OST program is high. Required Action: The PR should ensure that the unified OST module is introduced by the ned of the next implementatuin period and is fully functional by the end of the year 2015. Timelien: The PR is expected to report on the results with submission of the next progress update, by no later than 14 August 2015. | G66: Met | H66: The OST Module has been incorporated in the e-health system since March, 2015 and the GF OST sites were given the individual accesses to the system. Since April, 2015 they started entering the data on OST patients in the system. PR is closely monitoring the data entrance and chacks them against the paper reports during this piloting phase. The Module is available as a final tool for OST patients reporting for the current reporting period. | N66: Select | X66: Select
B67: M&E, Issue #6: While we acknowledge the efforts made by the PR to catch up on the implementation of the program, the PR is expected to continue to follow up on the progress and implementation of the activities under Objective 1. Required Action and Timeline: The PR is requested to report on the progress made with respect to implementation of the activities planned under Objective 1 by no later than 30 June 2015. | G67: Met | H67: The contracts for implementation of Objective 1 were signed during March and Appril of 2015 and SRs are working on the implementation of the following components since April and May. - Strengthening LGBT Community - SR Tanadgoma, SSRs - NGO Identoba and NGO LGBT Georgia - Strengthening HIV COmmunity - SR: NGO Real People, Real Vision, - Advocacy component - SR: NGO Real People, Real Vision - Training of Health Care Workers for HIV related Stigma Reduction in clinical settings - SR: HIV/AIDS Patients Support Foundation In July 2015 two additional contracts were signed for implementation of the following interventions: - Media Campaign for Stigma Reduction - SR: McCann Erickson company - Survey of health care workers on HIV related stigma and discrimination - SR: BCG Research All activities outlined in the contracts for the Objaective 1 were completed by the end of 2015. The contracts were completed successfully. in December 2015 new contract was signed with Tanadgoma for implementation of the LGBT strenghtening component of the Objective 1. SSRs are Identoba and LGBT Georgia. There were some intrnal organizational issues in Identoba due to changes in the leadership and auditing processes, but this didn't have negative impact on the program implementation. | N67: Select | X67: Select
B68: Other Management Issues: Issue #1 During the review of the peer education trainings conducted in October 2014 at the SR Tanadgoma for FSWs and at SSR Kamara for PWIDs, weaknesses in training content and manegement were identified. Required Actions: Following the approval of the training plan for HIV grant for year 2015, the PR should ensure that following recoemndations are addressed while conducting trainings: a) Establishment of trainings database per SR, which will cintain detailed information on the trainings conducted, including agenda, list of participants at the training and key populations group they are representing, which will allow to count unique participants benefiting from these trainings rather than cumulative number of people trained. b) Training materials should be revised and aligned amongst SRs, per key population group. Clear objectives, content, as well as suitable duration of the training per each key population group should be established. c c) Pre and post training knwoledge questionnaires should be developed and shared with participants, in order to enhance the learning experience from the trainings, the outcomes from the training shuld be recorded in the electronic database developed by the PR/SR; d) The SRs should report to the PR on the trainings conducted on a quarterly basis. Timeline: The PR is expected to report on the progress with submission of the next progress update, by no later than 14 August 2015. | G68: Met | H68: The training plan was approved by GF and of April, 2015. The plan was disseminated among SRs and SSRs as a guidance for planning of respective trainings. The training database tamplate was developed by PR and was provided to SRs in May,2015. They were requsted to start filling out the database from June 1, 2015. All of them have pre and post tests developed and used on regular basis. PR has provided the trianing evaluation form as well that trainees have to fill out for each training. The SRs were providing the monthly reports using the format provided by the PR. the last 6 moonth summary database was provided by the SRs during January, 2016 which included the total budgeted and total actual costs per training. The same kind report is provided for the first 6 months of 2016 by the SRs. | N68: Select | X68: Select
B69: OSDV Issue #1: Results for indicator "Number and percentage of IDUs reached with HIV prevention programmes - defined package of services” - SR GHRN clients who are not in direct contact with project staff (secondary reach), but receive service package are considered reached. Required Actions: While the secondary distribution of commodities ( secondary coverage) might be beneficial for those PWIDs, SSRs should not register beneficiaries with unique identification codes in the database and the SR GHRN should not include these cases within the reported results for this indicator, unless those beneficiaries were already registered in the database and services were provided at least once. Given that there is no mechanism to verify if the clients really received certain number of syringes/needles from their peers, only those who have direct contact with project staff should be counted, and reported. Timeline: Immediately | G69: Met | H69: See the section H63. | N69: Select | X69: Select
G70: Select | N70: Select | X70: Select
G71: Select | N71: Select | X71: Select
G72: Select | N72: Select | X72: Select
G73: Select | N73: Select | X73: =N73 -> Select
G74: Select | N74: Select | X74: Select
G75: Select | N75: Select | X75: Select
G76: Select | N76: Select | X76: Select
G77: Select | N77: Select | X77: Select
G78: Select | N78: Select | X78: Select
G79: Select | N79: Select | X79: Select
G80: Select | N80: Select | X80: Select
G81: Select | N81: Select | X81: Select
G82: Select | N82: Select | X82: Select
G83: Select | N83: Select | X83: Select
G84: Select | N84: Select | X84: Select
G85: Select | N85: Select | X85: Select
G86: Select | N86: Select | X86: Select
G87: Select | N87: Select | X87: Select
G88: Select | N88: Select | X88: Select
G89: Select | N89: Select | X89: Select
B99: C. Comments on Annual Grant Reporting Requirements
B101: ! Please indicate a date for the report due for submission. If a report is overdue, indicate the original due date and explain the reason for delay. | N101: For LFA Use Only | X101: For the Global Fund Use Only
B102: Required Documentation | F102: Due date (dd-mmm-yy) | G102: Status | H102: Comments | N102: Due date (dd-mmm-yy) | P102: Status | T102: Comments | X102: Due date (dd-mmm-yy) | Y102: Validate Status | AC102: Country Team Comments
B103: PR Audit Report | G103: Preparation on track | H103: The report will be sibmitted by the end of September, 2016
B104: Annual Financial Report (AFR) / Enhanced Financial Report (EFR) | G104: Submitted to GF

Sheet PR-LFA Evaluation_5
A1: Ongoing Progress Update and Disbursement Request
A2: PROGRESS UPDATE PERIOD
A3: Grant Name: | C3: =#REF! -> 
A4: Progress Update - Reporting Period: | C4: Cycle: | D4: =IF(#REF!="Select","",#REF!) ->  | E4: Number: | F4: =IF(#REF!="Select","",#REF!) -> 
A5: Progress Update - Period Covered: | C5: Beginning Date: | D5: =IF(#REF!="","",#REF!) ->  | E5: End Date: | F5: =IF(#REF!="","",#REF!) -> 
A6: Progress Update - Number: | C6: =IF(#REF!="Select","",#REF!) -> 
A8: Section 5: PR and LFA Evaluation of Overall Performance
A10: A. PR's Overall Self-Evaluation of Grant Performance (including a summary of how financial performance is linked to programmatic achievements)
A11: ! The self-evaluation should be undertaken by taking into account programmatic achievements, financial performance and program issues in various functional areas (M&E, Finance, Procurement, and Program Management, including management of Sub-Recipients). See Guidelines for more detailed guidance.
A12: PR has successfully procured services for all main components of the HIV Extension Grant in December, 2015 and has ensured smooth implementation of the planned activities. Program Indicators: For most of the indicators the PR’s and SRs’ performance within the GEO-H-NCDC program extension period was satisfactory during the P5. In some areas the performance was even exceeding the expectations. For instance, the OST program’s achievement regarding the number of OST patients who utilized the service for 6 month period (78.4% Vs. 75%) Very sound achievement is regarding HCV treatment indicator –283% as the motivation of PLHIV for treatment was increased due to access to the Harvon within the National Hep C Elimination Program. Over the target achievements are reported for VCT of PWIDs and TB screening also which can be attributed to start-up of mobile ambulatory services with increased geographic coverage and increased interest of PWIDs for dual (HIV and Hep C) within the National Hep C Elimination Program. The Initiation of LGBT supporting activities by the SR Tanadgoma contributed to promotion of the HIV prevention service utilization by MSM population. Coverage of MSM with HIV prevention services has been improved but still are slightly behind the targets. PR and SR anticipate further improvement within the LGBT component in the future through continuous support of LGBT resource centers and initiation of hep C testing among this group. The same time, first time for last few years the coverage of FSWs is overachieved (29.6% Vs. 28.1%). During P5 the PR and SR Tanadgoma has tested new strategies to improve the FSWs’s coverage data. PDI strategy worked well with FSWs in the regions to attract new clients to the Tanadgoma sites. Despite the efforts made, the low STI treatment coverage remained at Telavi and Zugdidi healthy cabinet. PR and SR agreed to use the Tanadgoma’s office car and provide transportation to FSWs referred for the treatment from other districts and villages, thus ensuring they are getting the required services at the healthy cabinet. In order to improve the cost-efficiency of the STI treatment service for FSWs and MSM we started piloting of voucher system from the NFM period in Telavi. Clients are given the vouchers for free of charge diagnostics and treatment that they are presenting at the STI treatment site, the STI clinics will be reimbursed based on the number of the clients served according to the vouchers. High 66% achievement was detected for screening on TB of key affected populations also (the target was 60%) and facilitated the strengthening of the linkages between the HIV and TB programs. Procurement and stock management: During the reporting period most of the ARV medicines procured within the GF and the State programs were delivered to the country by the PFSCM. Delivery of remained four medicines will be completed by October, 2016. To ensure that adequate funding is included in the 2016 State Budget, the PR has successful communication with the Ministry of Health which resulted in inclusion of 2,630,000 GEL in the State Budget for procurement of the first line ARVs in 2016 also. The amount was recalculated based on the latest prices and current projected need of the AIDS Center and the estimated amount that is needed is around 1,5 million GEL for FL ARVs. Methadone procurement also was completed on-time with no risk for the program implementation. PSM of the program has been improved also, PR and SRs were monitoring of supply consumption data to make reasonable quantifications for the remaining period of the grant + buffer stock. The PSM team had ensured that there was no stock out for any MPP or HP during the reporting period. Just we had to borrow some stock of methadone from the state program before the GF program procured medicine would be delivered in the country. The LMIS of NCDC is still under development, PR has two times provided the NCDC consultants with the stock file of GF programs to be entered in the LMIS module, which didn't happen due to the technical issues, PR has decided to include this in the ERP technical documentation and run independent LMIS for the GF grant programs and same time continue efforts for integration with the NCDC LMIS when completed. No stock outs were reported during the extension period. During the reporting period PR has requested the SR –National AIDS Center to conduct disposal of expired stocks of medicines and reagents, which was completed in accordance to the state regulations. PR has initiated transfer of assets procured by the previous PR within the phase I of the GEO-H-NCDC grant to the current implementing organizations. Data Management: Despite the fact that SRs are still using the excel based databases, the PR has achieved improved data reporting from SRs based on the continuous oversight and on-site instructions/validations regarding the ways of counting the indicators and the data-base improvement. In parallel, the PR is working on procurement of the service for unified HIV prevention database elaboration. OST module was included in the e-health system of the MoLHSA. PR is regularly validates the paper forms’ data with the e-health OST module data. PR has decided to procure the TA for the sound technical documentation for the HIV prevention database and ensure that the documentation is ready for NFM’s first year (2016). Sustainability Planning: PR has successfully completed the grantmaking process for GAC2 and in May 2016 has received confirmation letter for NFM grant award of 18.268,885 USD. All relevant supporting documents (PF, detailed budget, LoHPHE and Implementation Plan) were provided to the CT on timely manner. Within the ongoing TB grant program CIF is a tender based selected service provider is working on elaboration of the Sustainability and Transition Plan for both, TB and HIV grants. CCM has selected a Policy and Advocacy Council that closely monitors and provides technical oversight to this process. It is anticipated that the Plans will be submitted to the CCM by the end of 2016. PR has ensured that budget takeover plan for HIV grant is considered during the preparation of MTEF for 2017-2020 of the Ministry of Labour, Health and Social Affairs. In addition, PR has sent a detailed reminder letter to the Department of Health of the Ministry indicating the activities and time-frames with relevant budget estimates for the coming years. Financial management The two critical components of this work are a) external to Georgia – reporting to the donor (TGF), and b) internal – communication and reporting with the Ministries of Health and Finance, with NCDC, state statistics department, tax authorities, state revenue service, suppliers, service providers, etc. Both operations were conducted in a smooth and efficient manner with the stable and robust operations. During the Q1 and Q2 of 2016 PR has timely submitted the regular PUDR report. Also, met all of the donor’s additional ad-hock requests on the provision of financial and/or operational data. This includes PR/SR end-of month balances/receivables/parables etc. As current HIV Grant has ended, all outstanding commitments, including SR activities were reimbursed, the final cash balance was submitted to TGF. Besides the list of assets procured under GPIC for transferring title to existing SRs was agreed with CCM and TGF and relevant permits were obtained. Also, all remained assets procured within the closing grant will be trasnfered to the NFM grant as agreed with TGF. The PR has successfully procured audit service for the year 2015 through the tender and relevant contract was signed with BDO that includes the audit of the first semester of 2016. The Audit of Consolidated financial statements is ongoing and the report will be submitted by the end of September as agreed with TGF. To improve financial management system PR Under TB Grant has procured ERP Licenses - Microsoft Dynamics AX and is in the process of procuring System development Service. The latter tender is ongoing and contract with developers will be signed in September 2016. Total payments made to the vendors/providers during the current reporting period is EUR 2,305K. PR managed the VAT operations smoothly. Total VAT refund for the reporting period comprised 88K. The surplus of refundable VAT on the State Revenue Service system amounts of EUR 17K as of 30/06/2016 and will be refunded in Q32016. In general, the PR has succesfully completed all interventions within the closing grant and major savings were included into the NFM grant. Remained unspent amount will be reimbursed to TGF.
A18: B. Planned Changes in the Program, if any
A19: a) Country is adopting Treat All strategy of WHO which means that PLHIV are offered ART despite the DC4 cell count, thus more HIV positive people are eligible to ART; The Government has procured first line ARV medicines from PFSCM for 2016, the State budget already has the relevant amount budgted for the same kind procurement for 2017; b) Hepatitis C treatment for PLHIV is fully covered by the State Hep C Program, GF program covers costs of hep C diagnostics; from July 2016 all costs of PLHIV hep C treatment will be covered by the State. c) piloting of vaucher system for treatment of STIs among FSWs and MSM in Telavi; d) Dialogue is initiated with the Ministry regarding the take over of the GF OST program from July 2017.
A25: C. External factors beyond the control of the Principal Recipient that have impacted or may impact the Program
A26: a) Implementation of hepatitis C Elimination Program that started in 2015 in the country had positive impact on HIV program implementation. Especially beneficial the new program was for HIV/HCV co-infected patients who got access to highly effective Direct Antiviral (DAAs) Medicines. In addition, HCV servicies are getting integrated with the HIV services (harm reduction basically) and the HIV and HCV tandem testing was offered to interested people countrywide. b) Criminalization of drug use creates barriers for implementation of NSP in Georgia. Community mobilization for decriminlization of drug use is getting stronger. The issue gets more attention due to the increasing understanding of the need for engegement of the PWID community in Hep C elimination program.
A32: For LFA Use Only
A34: A. LFA Overall Evaluation and Rating of Grant Performance (including a summary of how financial performance is linked to programmatic achievements)
A35: ! The evaluation should be undertaken by taking into account programmatic achievements, financial performance and program issues in various functional areas (M&E, Finance, Procurement, and Program Management, including management of sub-recipients). See Guidelines for more detailed guidance on the completion of this section.
A37: Indicator rating | B37: Select | D37: Any major management issues resulting in downgrade? | E37: Select | G37: Overall Grant Rating | H37: Select
A46: B. LFA comments on PR planned changes in the program, if any
A55: C. LFA Comments on External Factors Beyond Control of the Principal Recipients that have impacted or may impact program

Sheet LFA_Findings&Recommendations_6
A1: Ongoing Progress Review and Disbursement Request
A2: DISBURSEMENT REQUEST
A3: Grant Name: | C3: =IF(#REF!="","",#REF!) -> 
A4: Progress Update - Reporting Period: | C4: Cycle: | D4: =IF(#REF!="Select","",#REF!) ->  | E4: Number: | F4: =IF(#REF!="Select","",#REF!) -> 
A5: Progress Update - Period Covered: | C5: Beginning Date: | D5: =IF(#REF!="","",#REF!) ->  | E5: End Date: | F5: =IF(#REF!="","",#REF!) -> 
A6: Progress Update - Number: | C6: =IF(#REF!="Select","",#REF!) -> 
A8: For LFA Use Only
A9: Section 6: LFA Findings & Recommendations
A11: ! Based on the information provided in the previous sections and your understanding of the grant, please summarise any important management issues, proposing a recommendation for each. NB: an issue is considered as 'important' if it impacts or is likely to impact program implementation and results. ! Instead of repeating detailed descriptions of issues covered in other sections, it is acceptable to state the issue and reference the section containing the details.
A13: Functional Areas | C13: Description of Identified Issues (in order of importance) | F13: LFA Recommendations (in order of importance) | J13: Country Team Comments
A14: Select
A15: Select
A16: Select
A17: Select
A18: Select
A19: Select
A20: Select
A21: Select
A22: Select
A23: Select
A24: Select
A25: Select
A26: Select
A27: Select
A30: Select
A31: Yes
A32: No
A34: Select
A35: Program management (including SR management)
A36: Financial management and systems
A37: Monitoring and evaluation
A38: Pharmaceutical & health product management
A39: Other management issues, including: PR capacity to develop quality programmatic and financial reports

Sheet PR EFR_7A
A1: Ongoing Progress Update and Disbursement Request
A2: Section 7A: PR - Enhanced Financial Reporting
A4: Country | C4: =CoverSheet!D5 -> Georgia | F4: PLEASE REFER TO THE "GUIDANCE FOR COMPLETION OF THE ENHANCED FINANCIAL REPORTING TEMPLATE" DOCUMENT TO ASSIST YOU IN COMPLETING THE TEMPLATE
A5: Grant No. | C5: =CoverSheet!D7 -> GEO-H-NCDC
A6: PR | C6: =CoverSheet!D8 -> National Center for Disease Control and Public Health | F6: TO BE COMPLETED ONLY ONCE A YEAR
A7: Currency | C7: =CoverSheet!D11 -> EUR
A8: Disease(Component) | C8: =CoverSheet!D6 -> HIV/AIDS | G8: dd-mm-yyyy | K8: dd-mm-yyyy
E9: Current Reporting Period | F9: Start Date: | G9: 2016-01-01 | I9: Cumulative Reporting Period | J9: Start Date: | K9: 2014-04-01
F10: End Date: | G10: 2016-06-30 | J10: End Date: | K10: 2016-06-30
H11: The end date for the current reporting period and cumulative reporting period must be the same
C12: =CONCATENATE("EFR",SUBSTITUTE(SUBSTITUTE(C8,"/","")," ","")) -> EFRHIVAIDS
C13: =CONCATENATE("SDA",SUBSTITUTE(SUBSTITUTE(C8,"/","")," ","")) -> SDAHIVAIDS | E13: The "TOTAL" rows in Table A, B and C will have a RED background if the amounts in each table do not agree. If the Totals for each Table agrees, these rows will have a YELLOW background.
A16: A- BREAKDOWN* BY EXPENDITURE CATEGORY | E16: Current Reporting Period | I16: Cumulative Reporting Period
A17: # | B17: Category | E17: Budget | F17: Expenditures | G17: Variance | H17: Reason for Variance | I17: Cumulative Budget | J17: Cumulative Expenditure | K17: Variance | L17: Reason for Variance
A18: 1 | B18: Human Resources | E18: 1151898.683 | F18: 1336803.982 | G18: =E18-F18 -> -184905.2995 | I18: 5154744.553 | J18: 5625304.275 | K18: =I18-J18 -> -470559.7221
A19: 2 | B19: Technical Assistance | E19: 40745.84223 | F19: 50545.1491 | G19: =E19-F19 -> -9799.306864 | I19: 367107.7251 | J19: 274126.7684 | K19: =I19-J19 -> 92980.95671
A20: 3 | B20: Training | E20: 20327.13631 | F20: 26934.76791 | G20: -6607.631595 | I20: 390722.7859 | J20: 243163.7495 | K20: 147559.0364
A21: 4 | B21: Health Products and Health Equipment | E21: 487580.3331 | F21: 539760.5277 | G21: -52180.19453 | H21: The Budget relates to the Health product/equipment procured locally and directly by the Global fund. The Negative variance EUR 52,180 consists of Positive Variance EUR 198,293 and Negative Variance EUR 250,474 Total Saving EUR 198,293 – EUR 106,688 - Part of IDA commitment was reimbursed by the GF by the end of 2015 and remaining amount was moved to NFM budget. EUR 12,121 – Actual cost of procurement syringes and needles (other than 1 ml) were less than budgeted. EUR 43,283 – Actual cost of procurement lab supplies for Aids Center was less than budgeted. EUR 15,787 – Actual cost of procurement Condoms and lubricants was less than budgeted EUR 9,256 – Actual cost of procurement disinfectants and lab supplies were less than budgeted. EUR 5,613 – Actual cost of procurement tests (rapid tests, tests for STI) were less than budgeted. EUR 5,545 – Procurement of Saliva Tests was cancelled (supplier couldn’t deliver the product). The Negative variance EUR 250,474 is related to the following: EIR 125,468- Commitment (procurement of Mobile ambulatories) from the previous reporting period and payment carried out in current period EUR 3665 – Actual cost or Quantity for 1 ml syringes was greater than budgeted EUR 13,480- Actual cost for condoms procured locally was greater than budgeted EUR 3,115- Actual cost for some lab supplies and tests was greater than budgeted EUR 2,733 - Procurement of tests by CIF committed in Dec 2015 and reimbursed in Jan 2016. EUR 102,013 – Actual cost of Procurement of tests for Aids Center was greater than budgeted. | I21: 3565110.959 | J21: 2724599.372 | K21: 840511.5863 | L21: The Budget relates to the Health product/equipment procured locally and directly by the Global fund. The variance EUR 840,512 consists of Positive Variance EUR 1,214,909 and Negative variance EUR 374,397 Less amounts spent on the procurement (lab supplies, disinfectants, tests systems, Flow cytometer; syringes, condoms) is a result of the low unit prices offered during the tenders; revision of the q-ties based on the consumption data and some cancelled activities. Saving EUR 1,214,909 - EUR 63,846 –Instead of one flow cytometer with high technical characteristic, in agreement with GF and AIDS Center, four field equipment – BD Presto, were procured for CD4 count measurement, which has resulted in substantial saving. EUR 311,304 – Procurement of syringes through IDA and local tenders for syringes, needles and vain sets resulted in low unit costs. Also quantities were recalculated based on consumption data and stocks at SR level. EUR 50,195 – Procurement through IDA and local tenders resulted in lower than budgeted cost for condoms, also quantities were recalculated based on consumption data and stocks at SR level. EUR 166,718– Actual costs for procurement of disinfectant and lab supplies/equipment through tenders were less than budgeted also. EUR 16,897 – Based on stocks of Naloxon available at SR level, the less q-ties were procured and cost was lower also. EUR 84,545– Actual cost of Procurement of tests (rapid and express tests, tests for STI) was lower than budgeted EUR 521,403 – Actual cost for tests and lab supplies for AIDS Center were less than budgeted through local tenders Overspending EUR 374,397 - EUR 218,163 – Procurement of tests and lab supplies (HCV real time PCR, Four and two color Flow cytometer) for Aids Center was greater than budgeted. EUR 17,935 – Actual cost some of rapid tests was greater than budgeted, including EUR 5,411 – Additional request from TG on procurement of micropipettes approved by GF; EUR 9,444 – Actual Q of condoms procured for GHRN was greater than budgeted. EUR 3,670 – Actual cost of disinfectants and minor lab supplies was slightly greater than budgeted; EUR 120,917 – Cost of procurement of additional 4 mobile ambulatories approved by GF. EUR 4,270 -Actual cost of tests under objective 4 was greater than budgeted. (Originally cost was budgeted under PR and was transferred to CIF)
A22: 5 | B22: Medicines and Pharmaceutical Products | E22: 776937.4315 | F22: 35010.12332 | G22: 741927.3082 | H22: The Budget relates to the Medicines and Pharmaceuticals procured locally and through international PSM Agencies to be paid directly by The Global Fund. The variance EUR 741,927 consists of Positive Variance EUR 742,876 and Negative Variance EUR 949 Total Saving EUR 742,876 – EUR 12,887- Actual cost and Quantity for Methadone was less than budgeted (limited by the county’s quota for drug) ; Commitment for PFSCM order for ARVs placed in 2014 and new order placed in 2015 was transferred to NFM budget. Overspending EUR 415 - Actual Cost of MPP provided to TG was slightly greater than budgeted. EUR 534 – Procurement of essential drugs performed by Aids Center for palliative care- actual cost is greater than budgeted | I22: 5140297.106 | J22: 1438631.081 | K22: 3701666.025 | L22: The Budget relates to the Medicines and Pharmaceuticals procured locally and through international PSM Agencies to be paid directly by The Global Fund. The variance EUR 3,701,666 consists of Positive Variance EUR 3,710,429 and Negative variance EUR 8,763. Driver of saving is available stock at SR: Cheaper unit prices were gained both from the local procurement and through PPM (ARVs). Saving was made due to simplification of ART regimens based on WHO recommendations. Saving EUR 3,710,429- EUR 181,448 – Volume of Methadone was reduced according to the quota approved for the country and more precise need estimation conducted jointly by Narcology Center and MoH. The actual cost of methadone was less also (4 EUR vs. 9 EUR). EUR 15,529 – Actual unit price for vaccines was lower than budgeted. EUR 3,139,117– Saving in ARVs resulted from actual PQ signed with PPM and simplification of regimens. Commitment for PFSCM order for ARVs placed in 2014 and new order placed in 2015 is transferred to NFM budget. EUR 371,996 - Considerably lower price procurement of interferon through the local tender. Also Procurement of the last portion of the pegylated interferon and ribavirin budgeted at 342,200 EUR was canceled as within the State Hep C Elimination program the MoH has procured these medications for Hep C patients and patients with HIV/HCV co-infection were given the priority for inclusion in the State Hep C Treatment Program. Overspending EUR 2,339 – Actual Cost of some STI medicines provided to TG was slightly less than budgeted. Overspending EUR 8,764 – EUR 7,580 – procurement of STI essential drugs – actual cost is greater than budgeted due to updated quantification of the needs by the SR EUR 1,184 – procurement of essential drugs for palliative care performed by Aids Center- actual cost is greater than budgeted
A23: 6 | B23: Procurement and Supply Management Costs | E23: 72160.07291 | F23: 4277.317155 | G23: 67882.75575 | I23: 1005976.651 | J23: 88868.63524 | K23: 917108.0154
A24: 7 | B24: Infrastructure and Other Equipment | E24: 12161.93685 | F24: 13844.27246 | G24: -1682.335611 | I24: 312463.6191 | J24: 106118.1992 | K24: 206345.42
A25: 8 | B25: Communication Materials | E25: 2695.41779 | F25: 2358.055659 | G25: 337.3621308 | I25: 113889.4568 | J25: 49458.73459 | K25: 64430.72226
A26: 9 | B26: Monitoring & Evaluation | E26: 28313.95302 | F26: 35112.7074 | G26: -6798.754372 | I26: 316614.6181 | J26: 233500.1905 | K26: 83114.42765
A27: 10 | B27: Living Support to Clients/Target Populations | E27: 32961.13516 | F27: 27955.56924 | G27: 5005.565916 | I27: 198639.7261 | J27: 142642.0641 | K27: 55997.662
A28: 11 | B28: Planning and Administration | E28: 11192.90874 | F28: 11917.69119 | G28: -724.7824452 | I28: 102543.7811 | J28: 66954.00505 | K28: 35589.7761
A29: 12 | B29: Overheads | E29: 209190.6727 | F29: 213048.5503 | G29: -3857.877558 | I29: 913403.5256 | J29: 774807.9179 | K29: 138595.6077
A30: 13 | B30: Other | E30: 6718.521371 | F30: 7445.538611 | G30: -727.0172403 | I30: 0 | J30: 13636.04625 | K30: -13636.04625 | L30: VAT amount paid for the service provided by TG under objective 1. The amount is refundable to PR by The State
D31: TOTAL | E31: =E18+E19+E20+E21+E22+E23+E24+E25+E27+E26+E28+E29+E30 -> 2852884.045 | F31: =F18+F19+F21+F20+F22+F23+F24+F25+F26+F27+F28+F29+F30 -> 2305014.252 | G31: =SUM(G18:G30) -> 547869.7923 | I31: =SUM(I18:I30) -> 17581514.51 | J31: =SUM(J18:J30) -> 11781811.04 | K31: =SUM(K18:K30) -> 5799703.467
A34: B- BREAKDOWN* BY PROGRAM ACTIVITY | E34: Current Reporting Period | I34: Cumulative Reporting Period
A35: # | B35: Macro-category | C35: Objectives | D35: Service Delivery Area | E35: Budget | F35: Expenditures | G35: Variance | H35: Reason for Variance | I35: Cumulative Budget | J35: Cumulative Expenditure | K35: Variance | L35: Reason for Variance
A36: 1 | B36: Supportive Environment | C36: To establish supportive environment for HIV/AIDS prevention, treatment, care and support | D36: Supportive environment: Stigma reduction in all settings | E36: 44134.38583 | F36: 49317.41203 | G36: =E36-F36 -> -5183.026201 | I36: 253777.9247 | J36: 176541.5616 | K36: =I36-J36 -> 77236.36307
A37: 2 | B37: Prevention | C37: To increase coverage and quality of preventive interventions targeted at MARPs | D37: Prevention: Behavioral Change Communication - community outreach | E37: 1407879.81 | F37: 1531596.23 | G37: =E37-F37 -> -123716.42 | I37: 6483074.821 | J37: 6027884.447 | K37: =I37-J37 -> 455190.3746
A38: 3 | B38: Treatment | C38: To sustain treatment, care and support for PLHIV including Abkhazia frozen conflict area | D38: Treatment, Care and Support | E38: 1382537.157 | F38: 690968.3158 | G38: =E38-F38 -> 691568.8415 | I38: 9580900.932 | J38: 4698166.338 | K38: =I38-J38 -> 4882734.594
A39: 4 | B39: Health System Strengthening (HSS) | C39: To generate evidences and document HIV program effectiveness | D39: HSS: Information system & Operational research | E39: 18332.69157 | F39: 32603.06885 | G39: -14270.37728 | I39: 585224.0527 | J39: 445598.4386 | K39: 139625.6141
A40: 5 | B40: Supportive Environment | C40: PR Management and Administration | D40: Supportive environment: Program management and administration | E40: 0 | F40: 529.236704 | G40: =E40-F40 -> -529.236704 | H40: Project management cost was not budgeted under extension period, only ERP Consultant fee and PR fuel cost was reimbursed in January 2016, that committed in the Dec 2015 | I40: 678536.8157 | J40: 433620.2643 | K40: =I40-J40 -> 244916.5514 | L40: Saving in Project management costs including International PSM consultant's fee, in HR (HIV M&E specialist , finance specialist, logistics specialist ) ; saving related to renovation of office; procuring furniture (It was handed over from previous PR) ; fuel; tender announcement costs, Technical assistance; late start of media campaign, Audit fee. The FX rate had also impact on savings.
B41: Please Select… | D41: please select… | E41: 0 | F41: 0 | G41: =E41-F41 -> 0 | I41: 0 | J41: 0 | K41: =I41-J41 -> 0
B42: Please Select… | D42: please select… | E42: 0 | F42: 0 | G42: =E42-F42 -> 0 | I42: 0 | J42: 0 | K42: =I42-J42 -> 0
B43: Please Select… | D43: please select… | E43: 0 | F43: 0 | G43: 0 | I43: 0 | J43: 0 | K43: 0
B44: Please Select… | D44: please select… | E44: 0 | F44: 0 | G44: 0 | I44: 0 | J44: 0 | K44: 0
B45: Please Select… | D45: please select… | E45: 0 | F45: 0 | G45: =E45-F45 -> 0 | I45: 0 | J45: 0 | K45: =I45-J45 -> 0
B46: Please Select… | D46: please select… | E46: 0 | F46: 0 | G46: =E46-F46 -> 0 | I46: 0 | J46: 0 | K46: =I46-J46 -> 0
B47: Please Select… | D47: please select… | E47: 0 | F47: 0 | G47: =E47-F47 -> 0 | I47: 0 | J47: 0 | K47: =I47-J47 -> 0
B48: Please Select… | D48: please select… | E48: 0 | F48: 0 | G48: 0 | I48: 0 | J48: 0 | K48: 0
B49: Please Select… | D49: please select… | E49: 0 | F49: 0 | G49: 0 | I49: 0 | J49: 0 | K49: 0
B50: Please Select… | D50: please select… | E50: 0 | F50: 0 | G50: 0 | I50: 0 | J50: 0 | K50: 0
B51: Please Select… | D51: please select… | E51: 0 | F51: 0 | G51: 0 | I51: 0 | J51: 0 | K51: 0
B52: Please Select… | D52: please select… | E52: 0 | F52: 0 | G52: =E52-F52 -> 0 | I52: 0 | J52: 0 | K52: =I52-J52 -> 0
B53: Please Select… | D53: please select… | E53: 0 | F53: 0 | G53: =E53-F53 -> 0 | I53: 0 | J53: 0 | K53: =I53-J53 -> 0
B54: Please Select… | D54: please select… | E54: 0 | F54: 0 | G54: =E54-F54 -> 0 | I54: 0 | J54: 0 | K54: =I54-J54 -> 0
B55: Please Select… | D55: please select… | E55: 0 | F55: 0 | G55: 0 | I55: 0 | J55: 0 | K55: 0
B56: Please Select… | D56: please select… | E56: 0 | F56: 0 | G56: 0 | I56: 0 | J56: 0 | K56: 0
B57: Please Select… | D57: please select… | E57: 0 | F57: 0 | G57: 0 | I57: 0 | J57: 0 | K57: 0
B58: Please Select… | D58: please select… | E58: 0 | F58: 0 | G58: 0 | I58: 0 | J58: 0 | K58: 0
B59: Please Select… | D59: please select… | E59: 0 | F59: 0 | G59: =E59-F59 -> 0 | I59: 0 | J59: 0 | K59: =I59-J59 -> 0
B60: Please Select… | D60: please select… | E60: 0 | F60: 0 | G60: 0 | I60: 0 | J60: 0 | K60: 0
B61: Please Select… | D61: please select… | E61: 0 | F61: 0 | G61: 0 | I61: 0 | J61: 0 | K61: 0
B62: Please Select… | D62: please select… | E62: 0 | F62: 0 | G62: =E62-F62 -> 0 | I62: 0 | J62: 0 | K62: =I62-J62 -> 0
B63: Please Select… | D63: please select… | E63: 0 | F63: 0 | G63: =E63-F63 -> 0 | I63: 0 | J63: 0 | K63: =I63-J63 -> 0
B64: Please Select… | D64: please select… | E64: 0 | F64: 0 | G64: =E64-F64 -> 0 | I64: 0 | J64: 0 | K64: =I64-J64 -> 0
B65: Please Select… | D65: please select… | E65: 0 | F65: 0 | G65: 0 | I65: 0 | J65: 0 | K65: 0
B66: Please Select… | D66: please select… | E66: 0 | F66: 0 | G66: 0 | I66: 0 | J66: 0 | K66: 0
B67: Please Select… | D67: please select… | E67: 0 | F67: 0 | G67: =E67-F67 -> 0 | I67: 0 | J67: 0 | K67: =I67-J67 -> 0
B68: Please Select… | D68: please select… | E68: 0 | F68: 0 | G68: =E68-F68 -> 0 | I68: 0 | J68: 0 | K68: =I68-J68 -> 0
B69: Please Select… | D69: please select… | E69: 0 | F69: 0 | G69: =E69-F69 -> 0 | I69: 0 | J69: 0 | K69: =I69-J69 -> 0
B70: Please Select… | D70: please select… | E70: 0 | F70: 0 | G70: 0 | I70: 0 | J70: 0 | K70: 0
B71: Please Select… | D71: please select… | E71: 0 | F71: 0 | G71: 0 | I71: 0 | J71: 0 | K71: 0
B72: Please Select… | D72: please select… | E72: 0 | F72: 0 | G72: 0 | I72: 0 | J72: 0 | K72: 0
B73: Please Select… | D73: please select… | E73: 0 | F73: 0 | G73: 0 | I73: 0 | J73: 0 | K73: 0
B74: Please Select… | D74: please select… | E74: 0 | F74: 0 | G74: =E74-F74 -> 0 | I74: 0 | J74: 0 | K74: =I74-J74 -> 0
B75: Please Select… | D75: please select… | E75: 0 | F75: 0 | G75: =E75-F75 -> 0 | I75: 0 | J75: 0 | K75: =I75-J75 -> 0
B76: Please Select… | D76: please select… | E76: 0 | F76: 0 | G76: =E76-F76 -> 0 | I76: 0 | J76: 0 | K76: =I76-J76 -> 0
B77: Please Select… | D77: please select… | E77: 0 | F77: 0 | G77: 0 | I77: 0 | J77: 0 | K77: 0
B78: Please Select… | D78: please select… | E78: 0 | F78: 0 | G78: 0 | I78: 0 | J78: 0 | K78: 0
B79: Please Select… | D79: please select… | E79: 0 | F79: 0 | G79: =E79-F79 -> 0 | I79: 0 | J79: 0 | K79: =I79-J79 -> 0
B80: Please Select… | D80: please select… | E80: 0 | F80: 0 | G80: =E80-F80 -> 0 | I80: 0 | J80: 0 | K80: =I80-J80 -> 0
B81: Please Select… | D81: please select… | E81: 0 | F81: 0 | G81: =E81-F81 -> 0 | I81: 0 | J81: 0 | K81: =I81-J81 -> 0
B82: Please Select… | D82: please select… | E82: 0 | F82: 0 | G82: 0 | I82: 0 | J82: 0 | K82: 0
B83: Please Select… | D83: please select… | E83: 0 | F83: 0 | G83: 0 | I83: 0 | J83: 0 | K83: 0
B84: Please Select… | D84: please select… | E84: 0 | F84: 0 | G84: 0 | I84: 0 | J84: 0 | K84: 0
B85: Please Select… | D85: please select… | E85: 0 | F85: 0 | G85: 0 | I85: 0 | J85: 0 | K85: 0
B86: Please Select… | D86: please select… | E86: 0 | F86: 0 | G86: 0 | I86: 0 | J86: 0 | K86: 0
B87: Please Select… | D87: please select… | E87: 0 | F87: 0 | G87: 0 | I87: 0 | J87: 0 | K87: 0
B88: Please Select… | D88: please select… | E88: 0 | F88: 0 | G88: 0 | I88: 0 | J88: 0 | K88: 0
B89: Please Select… | D89: please select… | E89: 0 | F89: 0 | G89: =E89-F89 -> 0 | I89: 0 | J89: 0 | K89: =I89-J89 -> 0
B90: Please Select… | D90: please select… | E90: 0 | F90: 0 | G90: =E90-F90 -> 0 | I90: 0 | J90: 0 | K90: =I90-J90 -> 0
B91: Please Select… | D91: please select… | E91: 0 | F91: 0 | G91: =E91-F91 -> 0 | I91: 0 | J91: 0 | K91: =I91-J91 -> 0
B92: Please Select… | D92: please select… | E92: 0 | F92: 0 | G92: 0 | I92: 0 | J92: 0 | K92: 0
B93: Please Select… | D93: please select… | E93: 0 | F93: 0 | G93: =E93-F93 -> 0 | I93: 0 | J93: 0 | K93: =I93-J93 -> 0
B94: Please Select… | D94: please select… | E94: 0 | F94: 0 | G94: =E94-F94 -> 0 | I94: 0 | J94: 0 | K94: =I94-J94 -> 0
B95: Please Select… | D95: please select… | E95: 0 | F95: 0 | G95: =E95-F95 -> 0 | I95: 0 | J95: 0 | K95: =I95-J95 -> 0
B96: Please Select… | D96: please select… | E96: 0 | F96: 0 | G96: 0 | I96: 0 | J96: 0 | K96: 0
B97: Please Select… | D97: please select… | E97: 0 | F97: 0 | G97: =E97-F97 -> 0 | I97: 0 | J97: 0 | K97: =I97-J97 -> 0
B98: Please Select… | D98: please select… | E98: 0 | F98: 0 | G98: 0 | I98: 0 | J98: 0 | K98: 0
B99: Please Select… | D99: please select… | E99: 0 | F99: 0 | G99: 0 | I99: 0 | J99: 0 | K99: 0
B100: Please Select… | D100: please select… | E100: 0 | F100: 0 | G100: =E100-F100 -> 0 | I100: 0 | J100: 0 | K100: =I100-J100 -> 0
B101: Please Select… | D101: please select… | E101: 0 | F101: 0 | G101: =E101-F101 -> 0 | I101: 0 | J101: 0 | K101: =I101-J101 -> 0
B102: Please Select… | D102: please select… | E102: 0 | F102: 0 | G102: =E102-F102 -> 0 | I102: 0 | J102: 0 | K102: =I102-J102 -> 0
B103: Please Select… | D103: please select… | E103: 0 | F103: 0 | G103: 0 | I103: 0 | J103: 0 | K103: 0
B104: Please Select… | D104: please select… | E104: 0 | F104: 0 | G104: 0 | I104: 0 | J104: 0 | K104: 0
B105: Please Select… | D105: please select… | E105: 0 | F105: 0 | G105: =E105-F105 -> 0 | I105: 0 | J105: 0 | K105: =I105-J105 -> 0
B106: Please Select… | D106: please select… | E106: 0 | F106: 0 | G106: =E106-F106 -> 0 | I106: 0 | J106: 0 | K106: =I106-J106 -> 0
B107: Please Select… | D107: please select… | E107: 0 | F107: 0 | G107: =E107-F107 -> 0 | I107: 0 | J107: 0 | K107: =I107-J107 -> 0
B108: Please Select… | D108: please select… | E108: 0 | F108: 0 | G108: 0 | I108: 0 | J108: 0 | K108: 0
B109: Please Select… | D109: please select… | E109: 0 | F109: 0 | G109: 0 | I109: 0 | J109: 0 | K109: 0
B110: Please Select… | D110: please select… | E110: 0 | F110: 0 | G110: 0 | I110: 0 | J110: 0 | K110: 0
A111: TOTAL | E111: =SUM(E36:E110) -> 2852884.045 | F111: =SUM(F36:F110) -> 2305014.263 | G111: =SUM(G36:G110) -> 547869.7813 | I111: =SUM(I36:I110) -> 17581514.55 | J111: =SUM(J36:J110) -> 11781811.05 | K111: =SUM(K36:K110) -> 5799703.497
A116: C- BREAKDOWN* BY IMPLEMENTING ENTITY | E116: Current Reporting Period | I116: Cumulative Reporting Period
A117: # | B117: PR/SR | C117: Name | D117: Type of Implementing Entity | E117: Budget | F117: Expenditures | G117: Variance | H117: Reason for Variance | I117: Cumulative Budget | J117: Cumulative Expenditure | K117: Variance | L117: Reason for Variance
A118: 1 | B118: SR | C118: SRS | D118: NGO/CBO/Academic | E118: 44046.59222 | F118: 49191.04988 | G118: =E118-F118 -> -5144.457661 | I118: 252856.9247 | J118: 175727.3074 | K118: =I118-J118 -> 77129.61727
A119: 2 | B119: SR | C119: Georgian Harm Reducation Network | D119: NGO/CBO/Academic | E119: 552391.762 | F119: 630346.9285 | G119: =E119-F119 -> -77955.16651 | I119: 2358896.318 | J119: 2530242.054 | K119: =I119-J119 -> -171345.7363
A120: 3 | B120: SR | C120: Center of Mental Health and Prevention of Drug Addiction | D120: Other Government | E120: 295324.2203 | F120: 345019.9989 | G120: -49695.77869 | I120: 1155943.496 | J120: 1301852.346 | K120: -145908.8502
A121: 4 | B121: SR | C121: Tanadgoma | D121: NGO/CBO/Academic | E121: 218314.2087 | F121: 250292.0804 | G121: -31977.87174 | I121: 922860.7367 | J121: 1009907.37 | K121: -87046.63378
A122: 5 | B122: SR | C122: Infectious Diseases, AIDS and Clinical Immunology Research Center | D122: Other Government | E122: 310838.3188 | F122: 357134.0674 | G122: -46295.74862 | I122: 1409355.044 | J122: 1360803.938 | K122: 48551.10649
A123: 6 | B123: SR | C123: HIV/AIDS Patients Support Foundation | D123: NGO/CBO/Academic | E123: 51269.15672 | F123: 58257.06008 | G123: -6987.903364 | I123: 266338.6666 | J123: 277342.3717 | K123: -11003.70506
A124: 7 | B124: SR | C124: Curatio International Foundation | D124: Private Sector | E124: 0 | F124: 11525.90201 | G124: =E124-F124 -> -11525.90201 | I124: 401411.2644 | J124: 335956.4617 | K124: =I124-J124 -> 65454.80277
A125: 8 | B125: PR | C125: National Center for Disease Control and Public Health | D125: Other Government | E125: 1380699.786 | F125: 603247.176 | G125: 777452.6099 | H125: Net variance of EUR 777,453 consists of Positive variance of EUR 1,026,137 and negative variance of EUR 248,684 Positive variance EUR 1,026,137 consists of the following Savings: EUR 12,887 - Actual cost and Quantity (to match the county’s quota for the drug) for Methadone was less than budgeted. EUR 798,345 – Commitment for PFSCM order for ARVs placed in 2014 and new order placed in 2015 is transferred to NFM budget. EUR 106,688 – Part of IDA commitment was reimbursed by the GF by the end of 2015 and remaining amount was moved to NFM budget. EUR 91,604 – Actual cost for HPHE was less than budgeted, also procurement of Saliva Tests was cancelled due to failure of supplier to deliver the tests. EUR 338- Actual printing cost was less than budgeted. EUR 16,275 – Actual cost for fuel provided to SRs was less than budgeted Negative Variance EUR 248,684 consists of the following: EUR 415– Actual Cost of MPP provided to TG was slightly greater than budgeted. EUR 247,740– Actual cost of HPHE was greater than budgeted due to: some activities budgeted in the previous reporting period and increased Quantities of ART monitoring tests and supplies based on the SR’s renewed request. EUR 529 – Project management cost (Consultant fee and PR fuel cost) - committed in the Dec 2015 and payment carried out in January 2016. | I125: 10813852.06 | J125: 4789979.201 | K125: 6023872.856 | L125: Net cumulative variance of EUR 6,023,873 consists of Positive variance of EUR 6,404,580 and negative variance of EUR 380,707 Total Saving EUR 6,404,580 include: EUR 74,081 – Actual cost and quantities for SRs fuel was less than budgeted EUR 4,635,799– Savings from MPP &PSM (ARVs, interferon, methadone, STI medicines, quality control of ARVs) is derived from cancelled activities, actual consumption rates, lower unit prices, including lower unit prices of ARVs offered by PPM and also regimens were simplified. Considerably lower price procurement of interferon through the local tender. Also Procurement of pegylated interferon and ribavirin budgeted at 340,200 EUR was canceled as within the State Hep C Elimination program the MoH has procured these medications for Hep C patients and patients with HIV/HCV co-infection were given the priority for inclusion in the State Hep C Treatment Program. Procurement of methadone was conducted at much lower price than budgeted also (4 EUR vs. 9 EUR). Commitment for PFSCM order for ARVs placed in 2014 and new order placed in 2015 is transferred to NFM budget. EUR 1,243,769 – Saving from HPHE procurement (lab supplies, disinfectants, tests systems, Flow cytometer; syringes, condoms) is derived from low unit prices as a result of tenders; revision of the q-ties based on the consumption data and some cancelled activities. In addition instead of one flow cytometer with high technical characteristic, in agreement with GF and AIDS Center, four field equipment – BD Presto, were procured for CD4 count measurement, which has resulted in substantial saving. EUR 128,036 - Procurement of office equipment/furniture and printing of materials through tenders resulted in saving. Database development cost budgeted in GHRN is moved to NFM period, the amount is included in the savings. EUR 77,978 - Procurement of Vehicles for SRs was cancelled in agreement with GF. EUR 244,917 - Saving in Project management costs including International PSM consultant's fee, in HR (HIV M&E specialist , finance specialist, logistics specialist ) ; saving related to renovation of office; procuring furniture (It was handed over from previous PR) ; fuel; tender announcement costs, Technical assistance; late start of media campaign, Audit fee. The FX rate had also impact on savings. Negative Variance EUR 380,707 include: EUR 370,128 – Overspending in procurement of HPHE including cost of additional 4 mobile ambulatories approved by GF and tests-lab supplies provided to Aids Center EUR 1,396 – Actual cost of office equipment/furniture was slightly greater than budgeted. EUR 7,580 – Actual need of STI medicines was increased based on the current consumption. EUR 1,603– Actual Cost of Printing info materials for TG was greater than budgeted.
B126: Please Select … | D126: Please Select… | E126: 0 | F126: 0 | G126: 0 | I126: 0 | J126: 0 | K126: 0
B127: Please Select … | D127: Please Select… | E127: 0 | F127: 0 | G127: 0 | I127: 0 | J127: 0 | K127: 0
B128: Please Select … | D128: Please Select… | E128: 0 | F128: 0 | G128: 0 | I128: 0 | J128: 0 | K128: 0
B129: Please Select … | D129: Please Select… | E129: 0 | F129: 0 | G129: 0 | I129: 0 | J129: 0 | K129: 0
B130: Please Select … | D130: Please Select… | E130: 0 | F130: 0 | G130: 0 | I130: 0 | J130: 0 | K130: 0
B131: Please Select … | D131: Please Select… | E131: 0 | F131: 0 | G131: =E131-F131 -> 0 | I131: 0 | J131: 0 | K131: =I131-J131 -> 0
B132: Please Select … | D132: Please Select… | E132: 0 | F132: 0 | G132: 0 | I132: 0 | J132: 0 | K132: 0
B133: Please Select … | D133: Please Select… | E133: 0 | F133: 0 | G133: 0 | I133: 0 | J133: 0 | K133: 0
B134: Please Select … | D134: Please Select… | E134: 0 | F134: 0 | G134: =E134-F134 -> 0 | I134: 0 | J134: 0 | K134: =I134-J134 -> 0
B135: Please Select … | D135: Please Select… | E135: 0 | F135: 0 | G135: 0 | I135: 0 | J135: 0 | K135: 0
B136: Please Select … | D136: Please Select… | E136: 0 | F136: 0 | G136: 0 | I136: 0 | J136: 0 | K136: 0
B137: Please Select … | D137: Please Select… | E137: 0 | F137: 0 | G137: =E137-F137 -> 0 | I137: 0 | J137: 0 | K137: =I137-J137 -> 0
B138: Please Select … | D138: Please Select… | E138: 0 | F138: 0 | G138: 0 | I138: 0 | J138: 0 | K138: 0
B139: Please Select … | D139: Please Select… | E139: 0 | F139: 0 | G139: 0 | I139: 0 | J139: 0 | K139: 0
B140: Please Select … | D140: Please Select… | E140: 0 | F140: 0 | G140: 0 | I140: 0 | J140: 0 | K140: 0
B141: Please Select … | D141: Please Select… | E141: 0 | F141: 0 | G141: 0 | I141: 0 | J141: 0 | K141: 0
B142: Please Select … | D142: Please Select… | E142: 0 | F142: 0 | G142: 0 | I142: 0 | J142: 0 | K142: 0
B143: Please Select … | D143: Please Select… | E143: 0 | F143: 0 | G143: 0 | I143: 0 | J143: 0 | K143: 0
B144: Please Select … | D144: Please Select… | E144: 0 | F144: 0 | G144: 0 | I144: 0 | J144: 0 | K144: 0
B145: Please Select … | D145: Please Select… | E145: 0 | F145: 0 | G145: 0 | I145: 0 | J145: 0 | K145: 0
B146: Please Select … | D146: Please Select… | E146: 0 | F146: 0 | G146: 0 | I146: 0 | J146: 0 | K146: 0
B147: Please Select … | D147: Please Select… | E147: 0 | F147: 0 | G147: 0 | I147: 0 | J147: 0 | K147: 0
B148: Please Select … | D148: Please Select… | E148: 0 | F148: 0 | G148: 0 | I148: 0 | J148: 0 | K148: 0
B149: Please Select … | D149: Please Select… | E149: 0 | F149: 0 | G149: 0 | I149: 0 | J149: 0 | K149: 0
B150: Please Select … | D150: Please Select… | E150: 0 | F150: 0 | G150: 0 | I150: 0 | J150: 0 | K150: 0
B151: Please Select … | D151: Please Select… | E151: 0 | F151: 0 | G151: 0 | I151: 0 | J151: 0 | K151: 0
B152: Please Select … | D152: Please Select… | E152: 0 | F152: 0 | G152: 0 | I152: 0 | J152: 0 | K152: 0
B153: Please Select … | D153: Please Select… | E153: 0 | F153: 0 | G153: 0 | I153: 0 | J153: 0 | K153: 0
B154: Please Select … | D154: Please Select… | E154: 0 | F154: 0 | G154: 0 | I154: 0 | J154: 0 | K154: 0
B155: Please Select … | D155: Please Select… | E155: 0 | F155: 0 | G155: 0 | I155: 0 | J155: 0 | K155: 0
B156: Please Select … | D156: Please Select… | E156: 0 | F156: 0 | G156: 0 | I156: 0 | J156: 0 | K156: 0
B157: Please Select … | D157: Please Select… | E157: 0 | F157: 0 | G157: =E157-F157 -> 0 | I157: 0 | J157: 0 | K157: =I157-J157 -> 0
B158: Please Select … | D158: Please Select… | E158: 0 | F158: 0 | G158: 0 | I158: 0 | J158: 0 | K158: 0
B159: Please Select … | D159: Please Select… | E159: 0 | F159: 0 | G159: 0 | I159: 0 | J159: 0 | K159: 0
B160: Please Select … | D160: Please Select… | E160: 0 | F160: 0 | G160: 0 | I160: 0 | J160: 0 | K160: 0
D161: TOTAL | E161: =SUM(E118:E160) -> 2852884.045 | F161: =SUM(F118:F160) -> 2305014.263 | G161: =SUM(G118:G160) -> 547869.7813 | I161: =SUM(I118:I160) -> 17581514.51 | J161: =SUM(J118:J160) -> 11781811.05 | K161: =SUM(K118:K160) -> 5799703.457
A166: * The sum of all three breakdowns should be equal (A- Budget Line-item, B- Program Activity, C- Implementing Entity).
A167: ** For the purposes of this report, the SDA Program management and administration should be included in the Supportive Environment Macro Category.
A169: D- ADDITIONAL INFORMATION
A170: Please disclose any relevant information concerning the information in the above tables. Refer to the Guidelines for Completing the Template if required.
A177: E- DISBURSEMENTS BREAKDOWN BY IMPLEMENTING ENTITY | E177: Cumulative Reporting Period
A178: # | B178: Name | C178: Type of Implementing Entity | D178: Cumulative Disbursements | E178: Comments
A179: 1 | B179: Real People, Real Vision | C179: NGO/CBO/Academic | D179: 31130.44 | E179: Activities under Objective 1 had 3 implementers (Srs) -Real people real vision (2 contracts); Tanadgoma( 1 contract) ; HAPS (1 contract)
A180: 2 | B180: Tanadgoma | C180: NGO/CBO/Academic | D180: =76601.91+49191.05 -> 125792.96
A181: 3 | B181: HIV/AIDS Patients Support Foundation | C181: NGO/CBO/Academic | D181: 18803.83
A182: 4 | B182: Georgian Harm Reducation Network | C182: NGO/CBO/Academic | D182: 2530242.054
A183: 5 | B183: Center of Mental Health and Prevention of Drug Addiction | C183: Other Government | D183: 1301852.346
A184: 6 | B184: Tanadgoma | C184: NGO/CBO/Academic | D184: 1009907.37
A185: 7 | B185: Infectious Diseases, AIDS and Clinical Immunology Research Center | C185: Other Government | D185: 1360803.938
A186: 8 | B186: HIV/AIDS Patients Support Foundation | C186: NGO/CBO/Academic | D186: 269246.3717
A187: 9 | B187: BCG Research | C187: Private Sector | D187: 8096 | E187: Stigma Survey among healthcare workers was budgeted under SR HAPS, but through tender another organization was identified as winner
A188: 10 | B188: Curatio International Foundation | C188: Private Sector | D188: 335956.4617
C189: Please Select… | D189: 0
C190: Please Select… | D190: 0
C191: Please Select… | D191: 0
C192: Please Select… | D192: 0
C193: Please Select… | D193: 0
C194: Please Select… | D194: 0
C195: Please Select… | D195: 0
C196: Please Select… | D196: 0
C197: Please Select… | D197: 0
C198: Please Select… | D198: 0
C199: Please Select… | D199: 0
C200: Please Select… | D200: 0
C201: Please Select… | D201: 0
C202: Please Select… | D202: 0
C203: Please Select… | D203: 0
C204: Please Select… | D204: 0
C205: Please Select… | D205: 0
C206: TOTAL | D206: =SUM(D179:D205) -> 6991831.771

Sheet LFA EFR_7B
A1: Ongoing Progress Update and Disbursement Request
A2: Section 7B: LFA - Enhanced Financial Reporting
A4: Country | C4: =CoverSheet!D5 -> Georgia | F4: PLEASE REFER TO THE "GUIDANCE FOR COMPLETION OF THE ENHANCED FINANCIAL REPORTING TEMPLATE" DOCUMENT TO ASSIST YOU IN COMPLETING THE TEMPLATE
A5: Grant No. | C5: =CoverSheet!D7 -> GEO-H-NCDC
A6: PR | C6: =CoverSheet!D8 -> National Center for Disease Control and Public Health | F6: TO BE COMPLETED ONLY ONCE A YEAR
A7: Currency | C7: =CoverSheet!D11 -> EUR
A8: Disease(Component) | C8: =CoverSheet!D6 -> HIV/AIDS | G8: dd-mm-yyyy | K8: dd-mm-yyyy
E9: Current Reporting Period | F9: Start Date: | I9: Cumulative Reporting Period | J9: Start Date:
F10: End Date: | J10: End Date:
H11: The end date for the current reporting period and cumulative reporting period must be the same
C12: =CONCATENATE("EFR",SUBSTITUTE(SUBSTITUTE(C8,"/","")," ","")) -> EFRHIVAIDS
C13: =CONCATENATE("SDA",SUBSTITUTE(SUBSTITUTE(C8,"/","")," ","")) -> SDAHIVAIDS | E13: The "TOTAL" rows in Table A, B and C will have a RED background if the amounts in each table do not agree. If the Totals for each Table agrees, these rows will have a YELLOW background.
A16: A- BREAKDOWN* BY EXPENDITURE CATEGORY | E16: Current Reporting Period | I16: Cumulative Reporting Period | P16: =IF('[3]PR_Programmatic Progress_1A'!R15="Select","Please select currency on Page 'PR_Programmatic Achievement (1)'", "All amounts are in: "&'[3]PR_Programmatic Progress_1A'!R15) -> All amounts are in: | R16: Budget for Reporting Period | S16: Actual Cash Outflow for Reporting Period | T16: Variance | U16: Reason for Variance | W16: Cumulative Budget through period of Progress Update | X16: Cumulative Actual Cash Outflow through period of Progress Update | Y16: Variance | Z16: Reason for Variance
A17: # | B17: Category | E17: Budget | F17: Expenditures | G17: Variance | H17: Reason for Variance | I17: Cumulative Budget | J17: Cumulative Expenditure | K17: Variance | L17: Reason for Variance | P17: 1. Total PR cash outflow vs. budget | R17: =R18+R19 -> 0 | S17: =S18+S19 -> 0 | T17: =IF(R17="",IF(S17="","",R17-S17),R17-S17) -> 0 | W17: =W18+W19 -> 0 | X17: =X18+X19 -> 0 | Y17: =IF(W17="",IF(X17="","",W17-X17),W17-X17) -> 0
A18: 1 | B18: Human Resources | E18: 0 | F18: 0 | G18: =E18-F18 -> 0 | I18: 0 | J18: 0 | K18: =I18-J18 -> 0 | P18: 1a. PR's total expenditures | R18: ='[3]PR_Total PR Cash Outflow_3A'!C13 -> 0 | S18: ='[3]PR_Total PR Cash Outflow_3A'!D13 -> 0 | T18: =IF(R18="",IF(S18="",0,R18-S18),R18-S18) -> 0 | W18: ='[3]PR_Total PR Cash Outflow_3A'!H13 -> 0 | X18: ='[3]PR_Total PR Cash Outflow_3A'!I13 -> 0 | Y18: =IF(W18="",IF(X18="",0,W18-X18),W18-X18) -> 0
A19: 2 | B19: Technical Assistance | E19: 0 | F19: 0 | G19: =E19-F19 -> 0 | I19: 0 | J19: 0 | K19: =I19-J19 -> 0 | P19: 1b. Disbursements to sub-recipients | R19: ='[3]PR_Total PR Cash Outflow_3A'!C14 -> 0 | S19: ='[3]PR_Total PR Cash Outflow_3A'!D14 -> 0 | T19: =IF(R19="",IF(S19="",0,R19-S19),R19-S19) -> 0 | W19: ='[3]PR_Total PR Cash Outflow_3A'!H14 -> 0 | X19: ='[3]PR_Total PR Cash Outflow_3A'!I14 -> 0 | Y19: =IF(W19="",IF(X19="",0,W19-X19),W19-X19) -> 0
A20: 3 | B20: Training | E20: 0 | F20: 0 | G20: 0 | I20: 0 | J20: 0 | K20: 0
A21: 4 | B21: Health Products and Health Equipment | E21: 0 | F21: 0 | G21: 0 | I21: 0 | J21: 0 | K21: 0 | R21: Budget for Reporting Period* | S21: Actual Cash Outflow for Reporting Period | T21: Variance | U21: Reason for Variance | W21: Cumulative Budget through period of Progress Update | X21: Cumulative Actual Cash Outflow through period of Progress Update | Y21: Variance | Z21: Reason for Variance
A22: 5 | B22: Medicines and Pharmaceutical Products | E22: 0 | F22: 0 | G22: 0 | I22: 0 | J22: 0 | K22: 0 | P22: 2. Total pharmaceutical & health product expenditures vs. budget | R22: =R23+R24 -> 0 | S22: =S23+S24 -> 0 | T22: =IF(R22="",IF(S22="","",R22-S22),R22-S22) -> 0 | W22: =W23+W24 -> 0 | X22: =X23+X24 -> 0 | Y22: =IF(W22="",IF(X22="","",W22-X22),W22-X22) -> 0
A23: 6 | B23: Procurement and Supply Management Costs | E23: 0 | F23: 0 | G23: 0 | I23: 0 | J23: 0 | K23: 0 | P23: 2a. Medicines and pharmaceutical products | R23: ='[3]PR_Total PR Cash Outflow_3A'!C18 -> 0 | S23: ='[3]PR_Total PR Cash Outflow_3A'!D18 -> 0 | T23: =IF(R23="",IF(S23="",0,R23-S23),R23-S23) -> 0 | W23: ='[3]PR_Total PR Cash Outflow_3A'!H18 -> 0 | X23: ='[3]PR_Total PR Cash Outflow_3A'!I18 -> 0 | Y23: =IF(W23="",IF(X23="",0,W23-X23),W23-X23) -> 0
A24: 7 | B24: Infrastructure and Other Equipment | E24: 0 | F24: 0 | G24: 0 | I24: 0 | J24: 0 | K24: 0 | P24: 2b. Health products and health equipment | R24: ='[3]PR_Total PR Cash Outflow_3A'!C19 -> 0 | S24: ='[3]PR_Total PR Cash Outflow_3A'!D19 -> 0 | T24: =IF(R24="",IF(S24="",0,R24-S24),R24-S24) -> 0 | W24: ='[3]PR_Total PR Cash Outflow_3A'!H19 -> 0 | X24: ='[3]PR_Total PR Cash Outflow_3A'!I19 -> 0 | Y24: =IF(W24="",IF(X24="",0,W24-X24),W24-X24) -> 0
A25: 8 | B25: Communication Materials | E25: 0 | F25: 0 | G25: 0 | I25: 0 | J25: 0 | K25: 0
A26: 9 | B26: Monitoring & Evaluation | E26: 0 | F26: 0 | G26: 0 | I26: 0 | J26: 0 | K26: 0
A27: 10 | B27: Living Support to Clients/Target Populations | E27: 0 | F27: 0 | G27: 0 | I27: 0 | J27: 0 | K27: 0
A28: 11 | B28: Planning and Administration | E28: 0 | F28: 0 | G28: 0 | I28: 0 | J28: 0 | K28: 0
A29: 12 | B29: Overheads | E29: 0 | F29: 0 | G29: 0 | I29: 0 | J29: 0 | K29: 0
A30: 13 | B30: Other | E30: 0 | F30: 0 | G30: 0 | I30: 0 | J30: 0 | K30: 0
D31: TOTAL | E31: =SUM(E18:E30) -> 0 | F31: =SUM(F18:F30) -> 0 | G31: =SUM(G18:G30) -> 0 | I31: =SUM(I18:I30) -> 0 | J31: =SUM(J18:J30) -> 0 | K31: 0
A34: B- BREAKDOWN* BY PROGRAM ACTIVITY | E34: Current Reporting Period | I34: Cumulative Reporting Period
A35: # | B35: Macro-category | C35: Objectives | D35: Service Delivery Area | E35: Budget | F35: Expenditures | G35: Variance | H35: Reason for Variance | I35: Cumulative Budget | J35: Cumulative Expenditure | K35: Variance | L35: Reason for Variance
B36: Please Select… | D36: please select… | E36: 0 | F36: 0 | G36: =E36-F36 -> 0 | I36: 0 | J36: 0 | K36: =I36-J36 -> 0
B37: Please Select… | D37: please select… | E37: 0 | F37: 0 | G37: =E37-F37 -> 0 | I37: 0 | J37: 0 | K37: =I37-J37 -> 0
B38: Please Select… | D38: please select… | E38: 0 | F38: 0 | G38: 0 | I38: 0 | J38: 0 | K38: 0
B39: Please Select… | D39: please select… | E39: 0 | F39: 0 | G39: 0 | I39: 0 | J39: 0 | K39: 0
B40: Please Select… | D40: please select… | E40: 0 | F40: 0 | G40: 0 | I40: 0 | J40: 0 | K40: 0
B41: Please Select… | D41: please select… | E41: 0 | F41: 0 | G41: 0 | I41: 0 | J41: 0 | K41: 0
B42: Please Select… | D42: please select… | E42: 0 | F42: 0 | G42: 0 | I42: 0 | J42: 0 | K42: 0
B43: Please Select… | D43: please select… | E43: 0 | F43: 0 | G43: 0 | I43: 0 | J43: 0 | K43: 0
B44: Please Select… | D44: please select… | E44: 0 | F44: 0 | G44: 0 | I44: 0 | J44: 0 | K44: 0
B45: Please Select… | D45: please select… | E45: 0 | F45: 0 | G45: 0 | I45: 0 | J45: 0 | K45: 0
B46: Please Select… | D46: please select… | E46: 0 | F46: 0 | G46: 0 | I46: 0 | J46: 0 | K46: 0
B47: Please Select… | D47: please select… | E47: 0 | F47: 0 | G47: 0 | I47: 0 | J47: 0 | K47: 0
B48: Please Select… | D48: please select… | E48: 0 | F48: 0 | G48: 0 | I48: 0 | J48: 0 | K48: 0
B49: Please Select… | D49: please select… | E49: 0 | F49: 0 | G49: 0 | I49: 0 | J49: 0 | K49: 0
B50: Please Select… | D50: please select… | E50: 0 | F50: 0 | G50: 0 | I50: 0 | J50: 0 | K50: 0
B51: Please Select… | D51: please select… | E51: 0 | F51: 0 | G51: =E51-F51 -> 0 | I51: 0 | J51: 0 | K51: =I51-J51 -> 0
B52: Please Select… | D52: please select… | E52: 0 | F52: 0 | G52: 0 | I52: 0 | J52: 0 | K52: 0
B53: Please Select… | D53: please select… | E53: 0 | F53: 0 | G53: 0 | I53: 0 | J53: 0 | K53: 0
B54: Please Select… | D54: please select… | E54: 0 | F54: 0 | G54: 0 | I54: 0 | J54: 0 | K54: 0
B55: Please Select… | D55: please select… | E55: 0 | F55: 0 | G55: 0 | I55: 0 | J55: 0 | K55: 0
B56: Please Select… | D56: please select… | E56: 0 | F56: 0 | G56: 0 | I56: 0 | J56: 0 | K56: 0
B57: Please Select… | D57: please select… | E57: 0 | F57: 0 | G57: 0 | I57: 0 | J57: 0 | K57: 0
B58: Please Select… | D58: please select… | E58: 0 | F58: 0 | G58: 0 | I58: 0 | J58: 0 | K58: 0
B59: Please Select… | D59: please select… | E59: 0 | F59: 0 | G59: 0 | I59: 0 | J59: 0 | K59: 0
B60: Please Select… | D60: please select… | E60: 0 | F60: 0 | G60: 0 | I60: 0 | J60: 0 | K60: 0
B61: Please Select… | D61: please select… | E61: 0 | F61: 0 | G61: 0 | I61: 0 | J61: 0 | K61: 0
B62: Please Select… | D62: please select… | E62: 0 | F62: 0 | G62: 0 | I62: 0 | J62: 0 | K62: 0
B63: Please Select… | D63: please select… | E63: 0 | F63: 0 | G63: 0 | I63: 0 | J63: 0 | K63: 0
B64: Please Select… | D64: please select… | E64: 0 | F64: 0 | G64: 0 | I64: 0 | J64: 0 | K64: 0
B65: Please Select… | D65: please select… | E65: 0 | F65: 0 | G65: 0 | I65: 0 | J65: 0 | K65: 0
B66: Please Select… | D66: please select… | E66: 0 | F66: 0 | G66: 0 | I66: 0 | J66: 0 | K66: 0
B67: Please Select… | D67: please select… | E67: 0 | F67: 0 | G67: 0 | I67: 0 | J67: 0 | K67: 0
B68: Please Select… | D68: please select… | E68: 0 | F68: 0 | G68: 0 | I68: 0 | J68: 0 | K68: 0
B69: Please Select… | D69: please select… | E69: 0 | F69: 0 | G69: 0 | I69: 0 | J69: 0 | K69: 0
B70: Please Select… | D70: please select… | E70: 0 | F70: 0 | G70: 0 | I70: 0 | J70: 0 | K70: 0
B71: Please Select… | D71: please select… | E71: 0 | F71: 0 | G71: 0 | I71: 0 | J71: 0 | K71: 0
B72: Please Select… | D72: please select… | E72: 0 | F72: 0 | G72: 0 | I72: 0 | J72: 0 | K72: 0
B73: Please Select… | D73: please select… | E73: 0 | F73: 0 | G73: =E73-F73 -> 0 | I73: 0 | J73: 0 | K73: =I73-J73 -> 0
B74: Please Select… | D74: please select… | E74: 0 | F74: 0 | G74: 0 | I74: 0 | J74: 0 | K74: 0
B75: Please Select… | D75: please select… | E75: 0 | F75: 0 | G75: 0 | I75: 0 | J75: 0 | K75: 0
B76: Please Select… | D76: please select… | E76: 0 | F76: 0 | G76: 0 | I76: 0 | J76: 0 | K76: 0
B77: Please Select… | D77: please select… | E77: 0 | F77: 0 | G77: 0 | I77: 0 | J77: 0 | K77: 0
B78: Please Select… | D78: please select… | E78: 0 | F78: 0 | G78: 0 | I78: 0 | J78: 0 | K78: 0
B79: Please Select… | D79: please select… | E79: 0 | F79: 0 | G79: 0 | I79: 0 | J79: 0 | K79: 0
B80: Please Select… | D80: please select… | E80: 0 | F80: 0 | G80: 0 | I80: 0 | J80: 0 | K80: 0
B81: Please Select… | D81: please select… | E81: 0 | F81: 0 | G81: 0 | I81: 0 | J81: 0 | K81: 0
B82: Please Select… | D82: please select… | E82: 0 | F82: 0 | G82: 0 | I82: 0 | J82: 0 | K82: 0
B83: Please Select… | D83: please select… | E83: 0 | F83: 0 | G83: =E83-F83 -> 0 | I83: 0 | J83: 0 | K83: =I83-J83 -> 0
B84: Please Select… | D84: please select… | E84: 0 | F84: 0 | G84: 0 | I84: 0 | J84: 0 | K84: 0
B85: Please Select… | D85: please select… | E85: 0 | F85: 0 | G85: 0 | I85: 0 | J85: 0 | K85: 0
B86: Please Select… | D86: please select… | E86: 0 | F86: 0 | G86: 0 | I86: 0 | J86: 0 | K86: 0
B87: Please Select… | D87: please select… | E87: 0 | F87: 0 | G87: 0 | I87: 0 | J87: 0 | K87: 0
B88: Please Select… | D88: please select… | E88: 0 | F88: 0 | G88: 0 | I88: 0 | J88: 0 | K88: 0
B89: Please Select… | D89: please select… | E89: 0 | F89: 0 | G89: 0 | I89: 0 | J89: 0 | K89: 0
B90: Please Select… | D90: please select… | E90: 0 | F90: 0 | G90: 0 | I90: 0 | J90: 0 | K90: 0
B91: Please Select… | D91: please select… | E91: 0 | F91: 0 | G91: 0 | I91: 0 | J91: 0 | K91: 0
B92: Please Select… | D92: please select… | E92: 0 | F92: 0 | G92: 0 | I92: 0 | J92: 0 | K92: 0
B93: Please Select… | D93: please select… | E93: 0 | F93: 0 | G93: 0 | I93: 0 | J93: 0 | K93: 0
B94: Please Select… | D94: please select… | E94: 0 | F94: 0 | G94: 0 | I94: 0 | J94: 0 | K94: 0
B95: Please Select… | D95: please select… | E95: 0 | F95: 0 | G95: 0 | I95: 0 | J95: 0 | K95: 0
B96: Please Select… | D96: please select… | E96: 0 | F96: 0 | G96: 0 | I96: 0 | J96: 0 | K96: 0
B97: Please Select… | D97: please select… | E97: 0 | F97: 0 | G97: =E97-F97 -> 0 | I97: 0 | J97: 0 | K97: =I97-J97 -> 0
B98: Please Select… | D98: please select… | E98: 0 | F98: 0 | G98: 0 | I98: 0 | J98: 0 | K98: 0
B99: Please Select… | D99: please select… | E99: 0 | F99: 0 | G99: 0 | I99: 0 | J99: 0 | K99: 0
B100: Please Select… | D100: please select… | E100: 0 | F100: 0 | G100: 0 | I100: 0 | J100: 0 | K100: 0
B101: Please Select… | D101: please select… | E101: 0 | F101: 0 | G101: 0 | I101: 0 | J101: 0 | K101: 0
B102: Please Select… | D102: please select… | E102: 0 | F102: 0 | G102: 0 | I102: 0 | J102: 0 | K102: 0
B103: Please Select… | D103: please select… | E103: 0 | F103: 0 | G103: 0 | I103: 0 | J103: 0 | K103: 0
B104: Please Select… | D104: please select… | E104: 0 | F104: 0 | G104: =E104-F104 -> 0 | I104: 0 | J104: 0 | K104: =I104-J104 -> 0
B105: Please Select… | D105: please select… | E105: 0 | F105: 0 | G105: 0 | I105: 0 | J105: 0 | K105: 0
B106: Please Select… | D106: please select… | E106: 0 | F106: 0 | G106: 0 | I106: 0 | J106: 0 | K106: 0
B107: Please Select… | D107: please select… | E107: 0 | F107: 0 | G107: =E107-F107 -> 0 | I107: 0 | J107: 0 | K107: =I107-J107 -> 0
B108: Please Select… | D108: please select… | E108: 0 | F108: 0 | G108: 0 | I108: 0 | J108: 0 | K108: 0
B109: Please Select… | D109: please select… | E109: 0 | F109: 0 | G109: 0 | I109: 0 | J109: 0 | K109: 0
B110: Please Select… | D110: please select… | E110: 0 | F110: 0 | G110: 0 | I110: 0 | J110: 0 | K110: 0
A111: TOTAL | E111: =SUM(E36:E110) -> 0 | F111: =SUM(F36:F110) -> 0 | G111: =SUM(G36:G110) -> 0 | I111: =SUM(I36:I110) -> 0 | J111: =SUM(J36:J110) -> 0 | K111: =SUM(K36:K110) -> 0
A116: C- BREAKDOWN* BY IMPLEMENTING ENTITY | E116: Current Reporting Period | I116: Cumulative Reporting Period
A117: # | B117: PR/SR | C117: Name | D117: Type of Implementing Entity | E117: Budget | F117: Expenditures | G117: Variance | H117: Reason for Variance | I117: Cumulative Budget | J117: Cumulative Expenditure | K117: Variance | L117: Reason for Variance
B118: Please Select … | D118: Please Select… | E118: 0 | F118: 0 | G118: =E118-F118 -> 0 | I118: 0 | J118: 0 | K118: =I118-J118 -> 0
B119: Please Select … | D119: Please Select… | E119: 0 | F119: 0 | G119: =E119-F119 -> 0 | I119: 0 | J119: 0 | K119: =I119-J119 -> 0
B120: Please Select … | D120: Please Select… | E120: 0 | F120: 0 | G120: 0 | I120: 0 | J120: 0 | K120: 0
B121: Please Select … | D121: Please Select… | E121: 0 | F121: 0 | G121: 0 | I121: 0 | J121: 0 | K121: 0
B122: Please Select … | D122: Please Select… | E122: 0 | F122: 0 | G122: =E122-F122 -> 0 | I122: 0 | J122: 0 | K122: =I122-J122 -> 0
B123: Please Select … | D123: Please Select… | E123: 0 | F123: 0 | G123: 0 | I123: 0 | J123: 0 | K123: 0
B124: Please Select … | D124: Please Select… | E124: 0 | F124: 0 | G124: 0 | I124: 0 | J124: 0 | K124: 0
B125: Please Select … | D125: Please Select… | E125: 0 | F125: 0 | G125: 0 | I125: 0 | J125: 0 | K125: 0
B126: Please Select … | D126: Please Select… | E126: 0 | F126: 0 | G126: 0 | I126: 0 | J126: 0 | K126: 0
B127: Please Select … | D127: Please Select… | E127: 0 | F127: 0 | G127: =E127-F127 -> 0 | I127: 0 | J127: 0 | K127: =I127-J127 -> 0
B128: Please Select … | D128: Please Select… | E128: 0 | F128: 0 | G128: 0 | I128: 0 | J128: 0 | K128: 0
B129: Please Select … | D129: Please Select… | E129: 0 | F129: 0 | G129: 0 | I129: 0 | J129: 0 | K129: 0
B130: Please Select … | D130: Please Select… | E130: 0 | F130: 0 | G130: 0 | I130: 0 | J130: 0 | K130: 0
B131: Please Select … | D131: Please Select… | E131: 0 | F131: 0 | G131: =E131-F131 -> 0 | I131: 0 | J131: 0 | K131: =I131-J131 -> 0
B132: Please Select … | D132: Please Select… | E132: 0 | F132: 0 | G132: 0 | I132: 0 | J132: 0 | K132: 0
B133: Please Select … | D133: Please Select… | E133: 0 | F133: 0 | G133: 0 | I133: 0 | J133: 0 | K133: 0
B134: Please Select … | D134: Please Select… | E134: 0 | F134: 0 | G134: 0 | I134: 0 | J134: 0 | K134: 0
B135: Please Select … | D135: Please Select… | E135: 0 | F135: 0 | G135: 0 | I135: 0 | J135: 0 | K135: 0
B136: Please Select … | D136: Please Select… | E136: 0 | F136: 0 | G136: 0 | I136: 0 | J136: 0 | K136: 0
B137: Please Select … | D137: Please Select… | E137: 0 | F137: 0 | G137: 0 | I137: 0 | J137: 0 | K137: 0
B138: Please Select … | D138: Please Select… | E138: 0 | F138: 0 | G138: 0 | I138: 0 | J138: 0 | K138: 0
B139: Please Select … | D139: Please Select… | E139: 0 | F139: 0 | G139: 0 | I139: 0 | J139: 0 | K139: 0
B140: Please Select … | D140: Please Select… | E140: 0 | F140: 0 | G140: 0 | I140: 0 | J140: 0 | K140: 0
B141: Please Select … | D141: Please Select… | E141: 0 | F141: 0 | G141: 0 | I141: 0 | J141: 0 | K141: 0
B142: Please Select … | D142: Please Select… | E142: 0 | F142: 0 | G142: 0 | I142: 0 | J142: 0 | K142: 0
B143: Please Select … | D143: Please Select… | E143: 0 | F143: 0 | G143: 0 | I143: 0 | J143: 0 | K143: 0
B144: Please Select … | D144: Please Select… | E144: 0 | F144: 0 | G144: 0 | I144: 0 | J144: 0 | K144: 0
B145: Please Select … | D145: Please Select… | E145: 0 | F145: 0 | G145: 0 | I145: 0 | J145: 0 | K145: 0
B146: Please Select … | D146: Please Select… | E146: 0 | F146: 0 | G146: 0 | I146: 0 | J146: 0 | K146: 0
B147: Please Select … | D147: Please Select… | E147: 0 | F147: 0 | G147: =E147-F147 -> 0 | I147: 0 | J147: 0 | K147: =I147-J147 -> 0
B148: Please Select … | D148: Please Select… | E148: 0 | F148: 0 | G148: 0 | I148: 0 | J148: 0 | K148: 0
B149: Please Select … | D149: Please Select… | E149: 0 | F149: 0 | G149: 0 | I149: 0 | J149: 0 | K149: 0
B150: Please Select … | D150: Please Select… | E150: 0 | F150: 0 | G150: 0 | I150: 0 | J150: 0 | K150: 0
B151: Please Select … | D151: Please Select… | E151: 0 | F151: 0 | G151: 0 | I151: 0 | J151: 0 | K151: 0
B152: Please Select … | D152: Please Select… | E152: 0 | F152: 0 | G152: 0 | I152: 0 | J152: 0 | K152: 0
B153: Please Select … | D153: Please Select… | E153: 0 | F153: 0 | G153: 0 | I153: 0 | J153: 0 | K153: 0
B154: Please Select … | D154: Please Select… | E154: 0 | F154: 0 | G154: 0 | I154: 0 | J154: 0 | K154: 0
B155: Please Select … | D155: Please Select… | E155: 0 | F155: 0 | G155: 0 | I155: 0 | J155: 0 | K155: 0
B156: Please Select … | D156: Please Select… | E156: 0 | F156: 0 | G156: 0 | I156: 0 | J156: 0 | K156: 0
B157: Please Select … | D157: Please Select… | E157: 0 | F157: 0 | G157: 0 | I157: 0 | J157: 0 | K157: 0
B158: Please Select … | D158: Please Select… | E158: 0 | F158: 0 | G158: 0 | I158: 0 | J158: 0 | K158: 0
B159: Please Select … | D159: Please Select… | E159: 0 | F159: 0 | G159: 0 | I159: 0 | J159: 0 | K159: 0
B160: Please Select … | D160: Please Select… | E160: 0 | F160: 0 | G160: 0 | I160: 0 | J160: 0 | K160: 0
D161: TOTAL | E161: =SUM(E118:E160) -> 0 | F161: =SUM(F118:F160) -> 0 | G161: =SUM(G118:G160) -> 0 | I161: =SUM(I118:I160) -> 0 | J161: =SUM(J118:J160) -> 0 | K161: =SUM(K118:K160) -> 0
A166: * The sum of all three breakdowns should be equal (A- Budget Line-item, B- Program Activity, C- Implementing Entity).
A167: ** For the purposes of this report, the SDA Program management and administration should be included in the Supportive Environment Macro Category.
A169: D- ADDITIONAL INFORMATION
A170: Please disclose any relevant information concerning the information in the above tables. Refer to the Guidelines for Completing the Template if required.
A177: E- DISBURSEMENTS BREAKDOWN BY IMPLEMENTING ENTITY | E177: Cumulative Reporting Period
A178: # | B178: Name | C178: Type of Implementing Entity | D178: Cumulative Disbursements | E178: Comments
C179: Please Select… | D179: 0
C180: Please Select… | D180: 0
C181: Please Select… | D181: 0
C182: Please Select… | D182: 0
C183: Please Select… | D183: 0
C184: Please Select… | D184: 0
C185: Please Select… | D185: 0
C186: Please Select… | D186: 0
C187: Please Select… | D187: 0
C188: Please Select… | D188: 0
C189: Please Select… | D189: 0
C190: Please Select… | D190: 0
C191: Please Select… | D191: 0
C192: Please Select… | D192: 0
C193: Please Select… | D193: 0
C194: Please Select… | D194: 0
C195: Please Select… | D195: 0
C196: Please Select… | D196: 0
C197: Please Select… | D197: 0
C198: Please Select… | D198: 0
C199: Please Select… | D199: 0
C200: Please Select… | D200: 0
C201: Please Select… | D201: 0
C202: Please Select… | D202: 0
C203: Please Select… | D203: 0
C204: Please Select… | D204: 0
C205: Please Select… | D205: 0
C206: TOTAL | D206: =SUM(D179:D205) -> 0

Sheet Annual Cash Forecast_8A
A1: Ongoing Progress Update and Disbursement Request
A3: Section 8A: The Global Fund Annual Forecast Template
A4: =#REF! ->  | B4: =+#REF! -> 
A5: =#REF! ->  | B5: =+#REF! -> 
A6: =#REF! ->  | B6: =+#REF! -> 
A7: =#REF! ->  | B7: =+#REF! -> 
A8: =#REF! ->  | B8: =+#REF! -> 
A9: =#REF! ->  | B9: =+#REF! -> 
A10: =#REF! ->  | B10: =+#REF! -> 
A11: =#REF! ->  | B11: =+#REF! -> 
A13: Reporting Cycle | B13: From | C13: To
A14: Current reporting period | B14: 2015-01-01 | C14: 2015-12-31
A15: Cumulative Reporting period | B15: 2015-01-01 | C15: 2015-12-31
A20: Summary Breakdown by Cost Grouping
A22: Costing Dimension (Cost Grouping) | B22: Budget for Forecast Period | C22: Unspent from previous periods | D22: Budget for the Buffer Period | E22: Total Budget available (including the buffer) | F22: Adjustment for the Forecast Period (based on implementable activities) | G22: Adjustment for the Buffer Period | H22: Total Principal Recipient Forecast (including Buffer) | I22: Comments | K22: Local Fund Agent Adjustment on PR Budget | L22: Local Fund Agent Adjustment on Budget for the Buffer Period | M22: Local Fund Agent Adjustment on the Forecast | N22: Local Fund Agent Adjustment on the Buffer Forecast | O22: Local Fund Agent - Adjusted Forecast (including the buffer) | P22: Comments
A23: Human Resources (HR) | B23: 0 | C23: ='PR EFR_7A'!K18 -> -470559.7221 | D23: 0 | E23: =B23+C23+D23 -> -470559.7221 | F23: 471327.5226 | G23: 0 | H23: =E23+F23+G23 -> 767.8004631 | O23: =K23+L23+H23+M23+N23 -> 767.8004631
A24: Technical Assistance | B24: 0 | C24: ='PR EFR_7A'!K19 -> 92980.95671 | D24: 0 | E24: =B24+C24+D24 -> 92980.95671 | F24: -92973.85847 | G24: 0 | H24: =E24+F24+G24 -> 7.098247579 | O24: =K24+L24+H24+M24+N24 -> 7.098247579
A25: Training | B25: 0 | C25: ='PR EFR_7A'!K20 -> 147559.0364 | D25: 0 | E25: 147559.0364 | F25: -147528.0129 | G25: 0 | H25: 31.02354003 | O25: 31.02354003
A26: Health Products and Health Equipment | B26: 0 | C26: ='PR EFR_7A'!K21 -> 840511.5863 | D26: 0 | E26: 840511.5863 | F26: -840511.5863 | G26: 0 | H26: -2.328306437e-10 | O26: -2.328306437e-10
A27: Medicines and Pharmaceutical Products | B27: 0 | C27: ='PR EFR_7A'!K22 -> 3701666.025 | D27: 0 | E27: 3701666.025 | F27: -3701666.025 | G27: 0 | H27: -9.313225746e-10 | O27: -9.313225746e-10
A28: Procurement and Supply Management Costs | B28: 0 | C28: ='PR EFR_7A'!K23 -> 917108.0154 | D28: 0 | E28: 917108.0154 | F28: -917101.3776 | G28: 0 | H28: 6.637757828 | O28: 6.637757828
A29: Infrastructure and Other Equipment | B29: 0 | C29: ='PR EFR_7A'!K24 -> 206345.42 | D29: 0 | E29: 206345.42 | F29: -206331.8173 | G29: 0 | H29: 13.60261649 | O29: 13.60261649
A30: Communication Materials | B30: 0 | C30: ='PR EFR_7A'!K25 -> 64430.72226 | D30: 0 | E30: 64430.72226 | F30: -64430.72226 | G30: 0 | H30: -2.182787284e-11 | O30: -2.182787284e-11
A31: Monitoring & Evaluation | B31: 0 | C31: ='PR EFR_7A'!K26 -> 83114.42765 | D31: 0 | E31: 83114.42765 | F31: -83101.31295 | G31: 0 | H31: 13.11469753 | O31: 13.11469753
A32: Living Support to Clients/Target Populations | B32: 0 | C32: ='PR EFR_7A'!K27 -> 55997.662 | D32: 0 | E32: 55997.662 | F32: -55975.42423 | G32: 0 | H32: 22.23776597 | O32: 22.23776597
A33: Planning and Administration | B33: 0 | C33: ='PR EFR_7A'!K28 -> 35589.7761 | D33: 0 | E33: 35589.7761 | F33: -35576.87073 | G33: 0 | H33: 12.9053664 | O33: 12.9053664
A34: Overheads | B34: 0 | C34: ='PR EFR_7A'!K29 -> 138595.6077 | D34: 0 | E34: 138595.6077 | F34: -138451.3108 | G34: 0 | H34: 144.2969342 | O34: 144.2969342
A35: Other | B35: 0 | C35: ='PR EFR_7A'!K30 -> -13636.04625 | D35: 0 | E35: -13636.04625 | F35: 12617.32293 | G35: 0 | H35: -1018.723317 | O35: -1018.723317
A36: Grand Total | B36: =SUM(B23:B35) -> 0 | C36: =SUM(C23:C35) -> 5799703.467 | D36: =SUM(D23:D35) -> 0 | E36: =SUM(E23:E35) -> 5799703.467 | F36: =SUM(F23:F35) -> -5799703.473 | G36: 0 | H36: -0.005927932825 | K36: =SUM(K23:K35) -> 0 | L36: =SUM(L23:L35) -> 0 | M36: 0 | N36: 0 | O36: -0.005927932825

Sheet Request and Recommendation_8B
A1: Ongoing Progress Review and Disbursement Request
A2: DISBURSEMENT REQUEST PERIOD
A3: Grant Name: | F3: =#REF! -> 
A4: Disbursement Request - Disbursement Period: | F4: Cycle: | H4: =IF(#REF!="Select","",#REF!) ->  | I4: Number: | J4: =IF(#REF!="Select","",#REF!) -> 
A5: Disbursement Request - Period Covered: | F5: Beginning Date: | H5: =IF(#REF!="Select","",#REF!) ->  | I5: End Date: | J5: =IF(#REF!="Select","",#REF!) -> 
A6: Disbursement Request - Number: | F6: =IF(#REF!=""," ",#REF!) -> 
A7: Currency: | F7: =IF(#REF!=""," ",#REF!) -> 
A9: Section 8B. Disbursement Request and Recommendation
A11: Total forecasted net cash expenditures by the Principal Recipient for the period immediately following the period covered by the Progress Update:
A13: 1. Period beginning date: | F13: =IF(CoverSheet!J11="","",CoverSheet!J11) ->  | H13: end date: | I13: =IF(CoverSheet!L11="","",CoverSheet!L11) ->  | K13: Approved budget amount (PR): | M13: ='Annual Cash Forecast_8A'!B36 -> 0 | O13: Forecasted amount (PR) | P13: ='Annual Cash Forecast_8A'!B36+'Annual Cash Forecast_8A'!C36+'Annual Cash Forecast_8A'!F36 -> -0.005927934311
K15: LFA-verified approved budget amount: | M15: ='Annual Cash Forecast_8A'!B36+'Annual Cash Forecast_8A'!K36 -> 0 | O15: LFA-adjusted forecasted amount: | P15: =P13+'Annual Cash Forecast_8A'!M36 -> -0.005927934311
A16: 2a. Cash buffer period (by default)
A17: (cash "buffer") beginning date: | F17: =IF(I13="","",I13+1) ->  | H17: end date: | I17: =IF(F17="","",DATE(YEAR(F17),MONTH(F17)+3,DAY(F17)-1)) ->  | K17: Approved budget amount (PR): | M17: ='Annual Cash Forecast_8A'!D36 -> 0 | O17: Forecasted amount (PR): | P17: ='Annual Cash Forecast_8A'!D36+'Annual Cash Forecast_8A'!G36 -> 0
K19: LFA-verified approved budget amount: | M19: ='Annual Cash Forecast_8A'!D36+'Annual Cash Forecast_8A'!L36 -> 0 | O19: LFA-adjusted forecasted amount: | P19: =P17+'Annual Cash Forecast_8A'!N36 -> 0 | R19: PR Total Forecast
A20: 2b. Additional "buffer" (discretionary, select only if there is a prior agreement with the FPM) (1) | R20: =P13+P17+P24 -> -0.005927934311
B21: Cash "buffer" agreed with FPM (2) | F21: Select | R21: LFA Total Forecast
R22: =P15+P19+P26 -> -0.005927934311
A24: (cash "buffer") beginning date | F24: =IF(I17="","",I17+1) ->  | H24: end date: | I24: =IF(F21="","",IF(F21="1M",DATE(YEAR(I17),MONTH(I17)+1,DAY(I17)-1),IF(F21="2M",DATE(YEAR(I17),MONTH(I17)+2,DAY(I17)-1),IF(F21="3M",DATE(YEAR(I17),MONTH(I17)+3,DAY(I17)-1),"")))) ->  | K24: Approved budget amount: | M24: 0 | O24: Forecasted amount: | P24: 0
K26: LFA-verified approved budget amount: | O26: LFA-adjusted forecasted amount:
A28: (1) Upon agreement with the FPM, additional Cash buffer can be requested if the PU/DR report contains a completed AFR or EFR report or if there is a request from the Secretariat for the PR to complete the report on SR Cash Reconciliation contained in the “SR Cash Reconciliation 2D”, or if there are any additional Global Fund-specific requirements that cannot be delivered within 60 days. However such requests may or may not be satisfied based on the review of the current PU/DR.
A29: (2) When the additional (cash "buffer" ) period is 1 or 2 months, the approved budget and forecasted amounts should be calculated as prorated values for the period following the regular buffer period.
A31: PR's explanation of any significant variance between forecasted amounts and amounts as originally budgeted. Please explain any significant variance (based on your judgment) between the forecasted amounts and the amounts as per approved budgets. Please specify the main factors and related amounts that are the major drivers of the variance. NB. Consider the following items when providing the analysis. - Expected timing of payments for any significant budgetary items, - Impact of existing cash balance at SR levels - Current confirmed commitments to be paid during disbursement request period - Current/expected unit prices compared to those in the budget - Change in quantities compared to budget - Exchange rates and inflation - Linkage between budget absorption and programmatic performance to-date. ! The forecast should include any existing commitments (eligible under this grant) as of the end of the reporting period and which are likely to be paid during the disbursement period
A33: LFA comments on PR's explanation of any significant variance between forecasted amounts and amounts as originally budgeted.
A37: Less: | B37: 3. Cash Balance: End of period covered by Progress Update (Item 5.1 in PRLFA Cash Reconciliation): | J37: PR-reported amounts | K37: PR Comments | L37: LFA-verified amounts | N37: LFA Comments
J38: ='PR Cash Reconciliation_2A,B,C'!D52 -> 222863.8029 | K38: The remaining cash balance includes USD 193,278 - commited to NFM Budget | L38: ='PR Cash Reconciliation_2A,B,C'!H52 -> 222863.8029
B39: 4. Cash in Transit for the reporting period (Disbursements to PR & third party disbursements): | J39: ='PR Cash Reconciliation_2A,B,C'!D63 -> 0 | L39: ='PR Cash Reconciliation_2A,B,C'!H63 -> 0
B40: 5.Cash in Transit after the current reporting period (Disbursements to PR & third party disbursements) : | J40: ='PR Cash Reconciliation_2A,B,C'!D64 -> 0 | L40: ='PR Cash Reconciliation_2A,B,C'!H64 -> 0
J41: PR-requested amount | K41: PR Comments | L41: LFA-verified amounts | N41: LFA Comments
